{"text_format":"1","workbook":"xlsx","n_sheets":7,"sheets":["Benutzerhinweise","Zielvereinbarung","Bewertung durch Anwender","Konformitätsprüfung","BNB-System","Gültigkeitsliste","hilfstabelle"],"not_rendered":{"charts":0,"images":0,"macros":1,"external_links":0,"defined_names":7,"comments":0,"pivot_tables":0},"unopened":[],"bounds":{"document_bytes":16777216,"sheet_cells":100000,"rows_first":2000,"rows_last":500,"rows_between":2000,"halvings":0,"cell_chars":16384,"cell_head_chars":4096},"cells_cut":0,"cells_raw":0,"read":"whole","date_system":"1900"}

{"sheet":"Benutzerhinweise","index":0,"n_rows":8,"n_cols":3,"rows_kept":8,"cut":false,"hidden":false,"merged":[[5,2,5,3],[7,2,7,3]]}
[]
[]
[]
[]
[null,null,"  Arbeitshilfe zum BNB_LN Version 2020"]
[]
[]
[null,null,"   EINFÜHRUNG"]

{"sheet":"Zielvereinbarung","index":1,"n_rows":271,"n_cols":15,"rows_kept":271,"cut":false,"hidden":false,"merged":[[0,2,0,3],[3,15,4,15],[3,13,4,13],[3,14,4,14],[6,1,6,2],[3,1,4,2],[3,3,4,3],[3,5,3,6],[3,7,4,7],[3,4,4,4],[3,12,4,12],[3,8,4,8],[3,9,4,9],[3,10,4,10],[3,11,4,11]]}
[null,{"$f":"'BNB-System'!B1","v":"Projekt:"},"Projektbezeichnung",null,"Datum:",null,"2020-12-02"]
[null,{"$f":"'BNB-System'!B2","v":"Bewertungssystem Nachhaltiges Bauen (BNB)"}]
[null,{"$f":"'BNB-System'!B3","v":"Systemvariante Laborgebäude, Modul Neubau (BNB_LN) - Version 2020"}]
[null,"Nachhaltigkeitskriterien",null,"maximale Punktzahl","Gewichtung\nGesamt-bewertung","Zielwert \n der Ziel-vereinbarung",null,"Kommentar","erforderliche Leistungen, Maßnahmen, Methoden","erforderliche Dokumente/ Nachweise","Termin","Zuständigkeit",null,"Zielwert","Gesamt-bewertung gemäß \nEnd-bewertung"]
[null,null,null,null,null,"Soll","Punkt-\nzahl"]
[]
[null,"Gesamterfüllungsgrad",null,null,null,null,{"$f":"IF(SUM(O13:O229)>100%,100%,SUM(O13:O229))","v":0}]
[null,null,null,null,null,null,null,null,null,null,null,null,"qwertz"]
[]
[null,{"$f":"'BNB-System'!B6","v":"Ökologische Qualität"},null,null,{"$f":"'BNB-System'!G6","v":0.22500000000000001},null,{"$f":"G13*(E13/100)+G14*(E14/100)+G15*(E15/100)+G16*(E16/100)+G17*(E17/100)+G18*(E18/100)+G19*(E19/100)+G21*(E21/100)+G25*(E25/100)+G26*(E26/100)","v":0},null,null,null,null,null,null,{"$f":"'BNB-System'!H6","v":1600}]
[null,null,null,null,null,null,null,null,null,null,null,null,null,{"$f":"'BNB-System'!H7","v":0}]
[null,null,"Wirkungen auf die globale und lokale  Umwelt",null,null,null,null,null,null,null,null,null,null,{"$f":"'BNB-System'!H8","v":0}]
[null,{"$f":"'BNB-System'!B9","v":" 1.1.1"},{"$f":"'BNB-System'!C9","v":"Treibhauspotenzial (GWP)"},{"$f":"'BNB-System'!D9","v":100},{"$f":"'BNB-System'!G9","v":4.2187500000000003E-2},null,null,null,null,null,null,null,null,{"$f":"'BNB-System'!H9","v":300},{"$f":"IF(ISNUMBER(E13*G13/100),E13*G13/100,0)","v":0}]
[null,{"$f":"'BNB-System'!B10","v":" 1.1.2"},{"$f":"'BNB-System'!C10","v":"Ozonschichtabbaupotenzial (ODP)"},{"$f":"'BNB-System'!D10","v":100},{"$f":"'BNB-System'!G10","v":1.40625E-2},null,null,null,null,null,null,null,null,{"$f":"'BNB-System'!H10","v":100},{"$f":"IF(ISNUMBER(E14*G14/100),E14*G14/100,0)","v":0}]
[null,{"$f":"'BNB-System'!B11","v":" 1.1.3"},{"$f":"'BNB-System'!C11","v":"Ozonbildungspotenzial (POCP)"},{"$f":"'BNB-System'!D11","v":100},{"$f":"'BNB-System'!G11","v":1.40625E-2},null,null,null,null,null,null,null,null,{"$f":"'BNB-System'!H11","v":100},0]
[null,{"$f":"'BNB-System'!B12","v":" 1.1.4"},{"$f":"'BNB-System'!C12","v":"Versauerungspotenzial (AP)"},{"$f":"'BNB-System'!D12","v":100},{"$f":"'BNB-System'!G12","v":1.40625E-2},null,null,null,null,null,null,null,null,{"$f":"'BNB-System'!H12","v":100},0]
[null,{"$f":"'BNB-System'!B13","v":" 1.1.5"},{"$f":"'BNB-System'!C13","v":"Überdüngungspotenzial (EP)"},{"$f":"'BNB-System'!D13","v":100},{"$f":"'BNB-System'!G13","v":1.40625E-2},null,null,null,null,null,null,null,null,{"$f":"'BNB-System'!H13","v":100},0]
[null,{"$f":"'BNB-System'!B14","v":" 1.1.6"},{"$f":"'BNB-System'!C14","v":"Risiken für die lokale Umwelt"},{"$f":"'BNB-System'!D14","v":100},{"$f":"'BNB-System'!G14","v":4.2187500000000003E-2},null,null,null,null,null,null,null,null,{"$f":"'BNB-System'!H14","v":300},0]
[null,{"$f":"'BNB-System'!B15","v":" 1.1.7"},{"$f":"'BNB-System'!C15","v":"Nachhaltige Materialgewinnung / Biodiversität"},{"$f":"'BNB-System'!D15","v":100},{"$f":"'BNB-System'!G15","v":1.40625E-2},null,null,null,null,null,null,null,null,{"$f":"'BNB-System'!H15","v":100},0]
[null,null,{"$f":"'BNB-System'!C16","v":"Ressourceninanspruchnahme"},null,null,null,null,null,null,null,null,null,null,{"$f":"'BNB-System'!H16","v":0}]
[null,{"$f":"'BNB-System'!B17","v":" 1.2.1"},{"$f":"'BNB-System'!C17","v":"Primärenergiebedarf"},{"$f":"'BNB-System'!D17","v":100},{"$f":"'BNB-System'!G17","v":4.2187500000000003E-2},null,{"$f":"IF(SUM(G22:G24)>100,100,SUM(G22:G24))","v":0},null,null,null,null,null,null,{"$f":"'BNB-System'!H17","v":300},0]
[null,null,{"$f":"'BNB-System'!C18","v":"Primärenergiebedarf nicht erneuerbar (PEne)"},{"$f":"'BNB-System'!D18","v":60},null,null,null,null,null,null,null,null,null,{"$f":"'BNB-System'!H18","v":0}]
[null,null,{"$f":"'BNB-System'!C19","v":"Gesamtprimärenergiebedarf (PEges)"},{"$f":"'BNB-System'!D19","v":40},null,null,null,null,null,null,null,null,null,{"$f":"'BNB-System'!H19","v":0}]
[null,null,{"$f":"'BNB-System'!C20","v":"Anteil erneuerbarer Primärenergie"},{"$f":"'BNB-System'!D20","v":20},null,null,null,null,null,null,null,null,null,{"$f":"'BNB-System'!H20","v":0}]
[null,{"$f":"'BNB-System'!B21","v":" 1.2.3"},{"$f":"'BNB-System'!C21","v":"Trinkwasserbedarf und Abwasseraufkommen"},{"$f":"'BNB-System'!D21","v":100},{"$f":"'BNB-System'!G21","v":1.40625E-2},null,null,null,null,null,null,null,null,{"$f":"'BNB-System'!H21","v":100},{"$f":"IF(ISNUMBER(E25*G25/100),E25*G25/100,0)","v":0}]
[null,{"$f":"'BNB-System'!B22","v":" 1.2.4"},{"$f":"'BNB-System'!C22","v":"Flächeninanspruchnahme"},{"$f":"'BNB-System'!D22","v":100},{"$f":"'BNB-System'!G22","v":1.40625E-2},null,null,null,null,null,null,null,null,{"$f":"'BNB-System'!H22","v":100},0]
[null,null,null,null,null,null,null,null,null,null,null,null,null,{"$f":"'BNB-System'!H23","v":0}]
[null,{"$f":"'BNB-System'!B24","v":"Ökonomische Qualität"},null,null,{"$f":"'BNB-System'!G24","v":0.22500000000000001},null,{"$f":"G31*(E31/100)+G33*(E33/100)+G34*(E34/100)","v":0},null,null,null,null,null,null,{"$f":"'BNB-System'!H24","v":600}]
[null,{"$f":"'BNB-System'!B25","v":0},null,null,null,null,null,null,null,null,null,null,null,{"$f":"'BNB-System'!H25","v":0}]
[null,null,{"$f":"'BNB-System'!C26","v":"Lebenszykluskosten"},null,null,null,null,null,null,null,null,null,null,{"$f":"'BNB-System'!H26","v":0}]
[null,{"$f":"'BNB-System'!B27","v":" 2.1.1"},{"$f":"'BNB-System'!C27","v":"Gebäudebezogene Kosten im Lebenszyklus"},{"$f":"'BNB-System'!D27","v":100},{"$f":"'BNB-System'!G27","v":0.1125},null,null,null,null,null,null,null,null,{"$f":"'BNB-System'!H27","v":300},{"$f":"IF(ISNUMBER(E31*G31/100),E31*G31/100,0)","v":0}]
[null,null,{"$f":"'BNB-System'!C28","v":"Wirtschaftlichkeit und Wertstabilität"},null,null,null,null,null,null,null,null,null,null,{"$f":"'BNB-System'!H28","v":0}]
[null,{"$f":"'BNB-System'!B29","v":" 2.2.1"},{"$f":"'BNB-System'!C29","v":"Flächeneffizienz"},{"$f":"'BNB-System'!D29","v":100},{"$f":"'BNB-System'!G29","v":3.7499999999999999E-2},null,null,null,null,null,null,null,null,{"$f":"'BNB-System'!H29","v":100},{"$f":"IF(ISNUMBER(E33*G33/100),E33*G33/100,0)","v":0}]
[null,{"$f":"'BNB-System'!B30","v":" 2.2.2"},{"$f":"'BNB-System'!C30","v":"Anpassungsfähigkeit "},{"$f":"'BNB-System'!D30","v":100},{"$f":"'BNB-System'!G30","v":7.4999999999999997E-2},"o",{"$f":"SUM(G35:G46)","v":0},null,null,null,null,null,null,{"$f":"'BNB-System'!H30","v":200},0]
[null,null,{"$f":"'BNB-System'!C31","v":"Raumhöhe"},{"$f":"'BNB-System'!D31","v":8},null,null,null,null,null,null,null,null,null,{"$f":"'BNB-System'!H31","v":0}]
[null,null,{"$f":"'BNB-System'!C32","v":"Grundrissorganisation"},null,null,null,null,null,null,null,null,null,null,{"$f":"'BNB-System'!H32","v":0}]
[null,null,{"$f":"'BNB-System'!C33","v":"Positionierung der Erschließung"},{"$f":"'BNB-System'!D33","v":5},null,null,null,null,null,null,null,null,null,{"$f":"'BNB-System'!H33","v":0}]
[null,null,{"$f":"'BNB-System'!C34","v":"Rettungswege"},{"$f":"'BNB-System'!D34","v":2},null,null,null,null,null,null,null,null,null,{"$f":"'BNB-System'!H34","v":0}]
[null,null,{"$f":"'BNB-System'!C35","v":"sanitäre Anlagen"},{"$f":"'BNB-System'!D35","v":2},null,null,null,null,null,null,null,null,null,{"$f":"'BNB-System'!H35","v":0}]
[null,null,{"$f":"'BNB-System'!C36","v":"Konstruktion"},null,null,null,null,null,null,null,null,null,null,{"$f":"'BNB-System'!H36","v":0}]
[null,null,{"$f":"'BNB-System'!C37","v":"Anteil nicht tragender Innenwände"},{"$f":"'BNB-System'!D37","v":5},null,null,null,null,null,null,null,null,null,{"$f":"'BNB-System'!H37","v":0}]
[null,null,{"$f":"'BNB-System'!C38","v":"Anschluss von Trennwänden an der Fassadenachse"},{"$f":"'BNB-System'!D38","v":1},null,null,null,null,null,null,null,null,null,{"$f":"'BNB-System'!H38","v":0}]
[null,null,{"$f":"'BNB-System'!C39","v":"kein Eingriff von Trennwänden in Fußboden, Decke, Abhangdecke"},{"$f":"'BNB-System'!D39","v":1},null,null,null,null,null,null,null,null,null,{"$f":"'BNB-System'!H39","v":0}]
[null,null,{"$f":"'BNB-System'!C40","v":"zulässige Nutzlasten"},{"$f":"'BNB-System'!D40","v":1},null,null,null,null,null,null,null,null,null,{"$f":"'BNB-System'!H40","v":0}]
[null,null,{"$f":"'BNB-System'!C41","v":"Technische Ausstattung"},null,null,null,null,null,null,null,null,null,null,{"$f":"'BNB-System'!H41","v":0}]
[null,null,{"$f":"'BNB-System'!C42","v":"Technische Ausstattung"},{"$f":"'BNB-System'!D42","v":75},null,null,null,null,null,null,null,null,null,{"$f":"'BNB-System'!H42","v":0}]
[null,null,null,null,null,null,null,null,null,null,null,null,null,{"$f":"'BNB-System'!H43","v":0}]
[null,{"$f":"'BNB-System'!B44","v":"Soziokulturelle und funktionale Qualität"},null,null,{"$f":"'BNB-System'!G44","v":0.22500000000000001},null,{"$f":"G51*(E51/100)+G62*(E62/100)+G65*(E65/100)+G73*(E73/100)+G81*(E81/100)+G90*(E90/100)+G104*(E104/100)+G114*(E114/100)+G115*(E115/100)+G119*(E119/100)+G140*(E140/100)+G148*(E148/100)","v":0},null,null,null,null,null,null,{"$f":"'BNB-System'!H44","v":1800}]
[null,null,null,null,null,null,null,null,null,null,null,null,null,{"$f":"'BNB-System'!H45","v":0}]
[null,null,{"$f":"'BNB-System'!C46","v":"Gesundheit, Behaglichkeit und Nutzerzufriedenheit"},null,null,null,null,null,null,null,null,null,null,{"$f":"'BNB-System'!H46","v":0}]
[null,{"$f":"'BNB-System'!B47","v":" 3.1.1"},{"$f":"'BNB-System'!C47","v":"Thermischer Komfort"},{"$f":"'BNB-System'!D47","v":100},{"$f":"'BNB-System'!G47","v":2.4999999999999998E-2},null,{"$f":"SUM(G52:G61)","v":0},null,null,null,null,null,null,{"$f":"'BNB-System'!H47","v":200},{"$f":"IF(ISNUMBER(E51*G51/100),E51*G51/100,0)","v":0}]
[null,null,{"$f":"'BNB-System'!C48","v":"Winter"},null,null,null,null,null,null,null,null,null,null,{"$f":"'BNB-System'!H48","v":0}]
[null,null,{"$f":"'BNB-System'!C49","v":"Operative Temperatur"},{"$f":"'BNB-System'!D49","v":10},null,null,null,null,null,null,null,null,null,{"$f":"'BNB-System'!H49","v":0}]
[null,null,{"$f":"'BNB-System'!C50","v":" Zugluft"},{"$f":"'BNB-System'!D50","v":10},null,null,null,null,null,null,null,null,null,{"$f":"'BNB-System'!H50","v":0}]
[null,null,{"$f":"'BNB-System'!C51","v":"Stahlungstemperaturasymmetrie und Fußbodentemperatur"},{"$f":"'BNB-System'!D51","v":10},null,null,null,null,null,null,null,null,null,{"$f":"'BNB-System'!H51","v":0}]
[null,null,{"$f":"'BNB-System'!C52","v":"Luftfeuchte"},{"$f":"'BNB-System'!D52","v":10},null,null,null,null,null,null,null,null,null,{"$f":"'BNB-System'!H52","v":0}]
[null,null,{"$f":"'BNB-System'!C53","v":"Sommer"},null,null,null,null,null,null,null,null,null,null,{"$f":"'BNB-System'!H53","v":0}]
[null,null,{"$f":"'BNB-System'!C54","v":"Operative Temperatur"},{"$f":"'BNB-System'!D54","v":30},null,null,null,null,null,null,null,null,null,{"$f":"'BNB-System'!H54","v":0}]
[null,null,{"$f":"'BNB-System'!C55","v":" Zugluft"},{"$f":"'BNB-System'!D55","v":10},null,null,null,null,null,null,null,null,null,{"$f":"'BNB-System'!H55","v":0}]
[null,null,{"$f":"'BNB-System'!C56","v":"Stahlungstemperaturasymmetrie und Fußbodentemperatur"},{"$f":"'BNB-System'!D56","v":10},null,null,null,null,null,null,null,null,null,{"$f":"'BNB-System'!H56","v":0}]
[null,null,{"$f":"'BNB-System'!C57","v":"Luftfeuchte"},{"$f":"'BNB-System'!D57","v":10},null,null,null,null,null,null,null,null,null,{"$f":"'BNB-System'!H57","v":0}]
[null,{"$f":"'BNB-System'!B58","v":" 3.1.3"},{"$f":"'BNB-System'!C58","v":"Innenraumlufthygiene"},{"$f":"'BNB-System'!D58","v":100},{"$f":"'BNB-System'!G58","v":2.4999999999999998E-2},null,{"$f":"SUM(G63:G64)","v":0},null,null,null,null,null,null,{"$f":"'BNB-System'!H58","v":200},{"$f":"IF(ISNUMBER(E62*G62/100),E62*G62/100,0)","v":0}]
[null,null,{"$f":"'BNB-System'!C59","v":"Flüchtige organische Stoffe (VOC) und Formaldehyd"},{"$f":"'BNB-System'!D59","v":50},null,null,null,null,null,null,null,null,null,{"$f":"'BNB-System'!H59","v":0}]
[null,null,{"$f":"'BNB-System'!C60","v":"Kohlendioxidgehalt"},{"$f":"'BNB-System'!D60","v":50},null,null,null,null,null,null,null,null,null,{"$f":"'BNB-System'!H60","v":0}]
[null,{"$f":"'BNB-System'!B61","v":" 3.1.4"},{"$f":"'BNB-System'!C61","v":"Akustischer Komfort"},{"$f":"'BNB-System'!D61","v":100},{"$f":"'BNB-System'!G61","v":1.2499999999999999E-2},null,{"$f":"(IF(IF((ISNUMBER(ROUND(G67/(G67+G69+G71)*G67+G69/(G67+G69+G71)*G68+G71/(G67+G69+G71)*G70,1))),ROUND(G67/(G67+G69+G71)*G66+G69/(G67+G69+G71)*G68+G71/(G67+G69+G71)*G70,1),0)>100,100,IF(ISNUMBER(ROUND(G67/(G67+G69+G71)*G66+G69/(G67+G69+G71)*G68+G71/(G67+G69+G71)*G70,1)),ROUND(G67/(G67+G69+G71)*G66+G69/(G67+G69+G71)*G68+G71/(G67+G69+G71)*G70,1),0)))-G72","v":0},null,null,null,null,null,null,{"$f":"'BNB-System'!H61","v":100},{"$f":"IF(ISNUMBER(E65*G65/100),E65*G65/100,0)","v":0}]
[null,null,{"$f":"'BNB-System'!C62","v":"Einzel- und Mehrpersonenbüros bis 100 m²"},null,null,null,null,null,null,null,null,null,null,{"$f":"'BNB-System'!H62","v":0}]
[null,null,{"$f":"'BNB-System'!C63","v":"NF Einzel- und Mehrpersonenbüros bis 100 m² "},null,null,null,null,null,null,null,null,null,null,{"$f":"'BNB-System'!H63","v":0}]
[null,null,{"$f":"'BNB-System'!C64","v":"Mehrpersonenbüros über 100 m²"},null,null,null,null,null,null,null,null,null,null,{"$f":"'BNB-System'!H64","v":0}]
[null,null,{"$f":"'BNB-System'!C65","v":"NF Mehrpersonenbüros über 100m²"},null,null,null,null,null,null,null,null,null,null,{"$f":"'BNB-System'!H65","v":0}]
[null,null,{"$f":"'BNB-System'!C66","v":"Weitere Räume über geringere (Gesprächs-)Entfernung (außer Büros)"},null,null,null,null,null,null,null,null,null,null,{"$f":"'BNB-System'!H66","v":0}]
[null,null,{"$f":"'BNB-System'!C67","v":"NF weiterer Räume"},null,null,null,null,null,null,null,null,null,null,{"$f":"'BNB-System'!H67","v":0}]
[null,null,{"$f":"'BNB-System'!C68","v":"Punktabzug"},null,null,null,null,null,null,null,null,null,null,{"$f":"'BNB-System'!H68","v":0}]
[null,{"$f":"'BNB-System'!B69","v":" 3.1.5"},{"$f":"'BNB-System'!C69","v":"Visueller Komfort"},{"$f":"'BNB-System'!D69","v":100},{"$f":"'BNB-System'!G69","v":2.4999999999999998E-2},null,{"$f":"SUM(G74:G80)","v":0},null,null,null,null,null,null,{"$f":"'BNB-System'!H69","v":200},{"$f":"IF(ISNUMBER(E73*G73/100),E73*G73/100,0)","v":0}]
[null,null,{"$f":"'BNB-System'!C70","v":"Tageslichtverfügbarkeit Gesamtgebäude"},{"$f":"'BNB-System'!D70","v":15},null,null,null,null,null,null,null,null,null,{"$f":"'BNB-System'!H70","v":0}]
[null,null,{"$f":"'BNB-System'!C71","v":"Tageslichtverfügbarkeit ständige Arbeitsplätze"},{"$f":"'BNB-System'!D71","v":15},null,null,null,null,null,null,null,null,null,{"$f":"'BNB-System'!H71","v":0}]
[null,null,{"$f":"'BNB-System'!C72","v":"Nachweis der Sichtverbindung nach außen"},{"$f":"'BNB-System'!D72","v":25},null,null,null,null,null,null,null,null,null,{"$f":"'BNB-System'!H72","v":0}]
[null,null,{"$f":"'BNB-System'!C73","v":"Blendfreiheit Tageslicht"},{"$f":"'BNB-System'!D73","v":12},null,null,null,null,null,null,null,null,null,{"$f":"'BNB-System'!H73","v":0}]
[null,null,{"$f":"'BNB-System'!C74","v":"Blendfreiheit  Kunstlicht"},{"$f":"'BNB-System'!D74","v":9},null,null,null,null,null,null,null,null,null,{"$f":"'BNB-System'!H74","v":0}]
[null,null,{"$f":"'BNB-System'!C75","v":"Lichtverteilung"},{"$f":"'BNB-System'!D75","v":12},null,null,null,null,null,null,null,null,null,{"$f":"'BNB-System'!H75","v":0}]
[null,null,{"$f":"'BNB-System'!C76","v":"Farbwiedergabe"},{"$f":"'BNB-System'!D76","v":12},null,null,null,null,null,null,null,null,null,{"$f":"'BNB-System'!H76","v":0}]
[null,{"$f":"'BNB-System'!B77","v":" 3.1.6"},{"$f":"'BNB-System'!C77","v":"Einflussnahmemöglichkeiten durch Nutzer"},{"$f":"'BNB-System'!D77","v":100},{"$f":"'BNB-System'!G77","v":1.2499999999999999E-2},null,{"$f":"SUM(G82:G89)","v":0},null,null,null,null,null,null,{"$f":"'BNB-System'!H77","v":100},{"$f":"IF(ISNUMBER(E81*G81/100),E81*G81/100,0)","v":0}]
[null,null,{"$f":"'BNB-System'!C78","v":"Lüftung"},{"$f":"'BNB-System'!D78","v":10},null,null,null,null,null,null,null,null,null,{"$f":"'BNB-System'!H78","v":0}]
[null,null,{"$f":"'BNB-System'!C79","v":"Sonnenschutz"},{"$f":"'BNB-System'!D79","v":10},null,null,null,null,null,null,null,null,null,{"$f":"'BNB-System'!H79","v":0}]
[null,null,{"$f":"'BNB-System'!C80","v":"Blendschutz"},{"$f":"'BNB-System'!D80","v":10},null,null,null,null,null,null,null,null,null,{"$f":"'BNB-System'!H80","v":0}]
[null,null,{"$f":"'BNB-System'!C81","v":"Temperaturen während der Heizperiode"},{"$f":"'BNB-System'!D81","v":10},null,null,null,null,null,null,null,null,null,{"$f":"'BNB-System'!H81","v":0}]
[null,null,{"$f":"'BNB-System'!C82","v":"Temperaturen außerhalb der Heizperiode"},{"$f":"'BNB-System'!D82","v":15},null,null,null,null,null,null,null,null,null,{"$f":"'BNB-System'!H82","v":0}]
[null,null,{"$f":"'BNB-System'!C83","v":"Steuerung von Tageslicht"},{"$f":"'BNB-System'!D83","v":15},null,null,null,null,null,null,null,null,null,{"$f":"'BNB-System'!H83","v":0}]
[null,null,{"$f":"'BNB-System'!C84","v":"Steuerung von  Kunstlicht"},{"$f":"'BNB-System'!D84","v":15},null,null,null,null,null,null,null,null,null,{"$f":"'BNB-System'!H84","v":0}]
[null,null,{"$f":"'BNB-System'!C85","v":"Bedienfreundlichkeit"},{"$f":"'BNB-System'!D85","v":15},null,null,null,null,null,null,null,null,null,{"$f":"'BNB-System'!H85","v":0}]
[null,{"$f":"'BNB-System'!B86","v":" 3.1.7"},{"$f":"'BNB-System'!C86","v":"Aufenthaltsqualitäten"},{"$f":"'BNB-System'!D86","v":100},{"$f":"'BNB-System'!G86","v":1.2499999999999999E-2},null,{"$f":"SUM(G91:G103)","v":0},null,null,null,null,null,null,{"$f":"'BNB-System'!H86","v":100},{"$f":"IF(ISNUMBER(E90*G90/100),E90*G90/100,0)","v":0}]
[null,null,{"$f":"'BNB-System'!C87","v":"Anzahl der Aufenthaltsbereiche im Gebäude"},{"$f":"'BNB-System'!D87","v":10},null,null,null,null,null,null,null,null,null,{"$f":"'BNB-System'!H87","v":0}]
[null,null,{"$f":"'BNB-System'!C88","v":"Anzahl der Aufenthaltsbereiche im Außenraum"},{"$f":"'BNB-System'!D88","v":10},null,null,null,null,null,null,null,null,null,{"$f":"'BNB-System'!H88","v":0}]
[null,null,{"$f":"'BNB-System'!C89","v":"Anzahl der Sitzmöglichkeiten in diesen Bereichen"},{"$f":"'BNB-System'!D89","v":40},null,null,null,null,null,null,null,null,null,{"$f":"'BNB-System'!H89","v":0}]
[null,null,{"$f":"'BNB-System'!C90","v":"uneingeschränkte Nutzbarkeit der Erschließungsflächen als Aufenthaltsflächen"},{"$f":"'BNB-System'!D90","v":10},null,null,null,null,null,null,null,null,null,{"$f":"'BNB-System'!H90","v":0}]
[null,null,{"$f":"'BNB-System'!C91","v":"Sichtbeziehungen"},{"$f":"'BNB-System'!D91","v":10},null,null,null,null,null,null,null,null,null,{"$f":"'BNB-System'!H91","v":0}]
[null,null,{"$f":"'BNB-System'!C92","v":"Außenbezug"},{"$f":"'BNB-System'!D92","v":10},null,null,null,null,null,null,null,null,null,{"$f":"'BNB-System'!H92","v":0}]
[null,null,{"$f":"'BNB-System'!C93","v":"Ausstattungsqualität der Aufenthaltsbereiche im Außenraum"},null,null,null,null,null,null,null,null,null,null,{"$f":"'BNB-System'!H93","v":0}]
[null,null,{"$f":"'BNB-System'!C94","v":"Beleuchtung"},{"$f":"'BNB-System'!D94","v":2},null,null,null,null,null,null,null,null,null,{"$f":"'BNB-System'!H94","v":0}]
[null,null,{"$f":"'BNB-System'!C95","v":"Windschutz"},{"$f":"'BNB-System'!D95","v":2},null,null,null,null,null,null,null,null,null,{"$f":"'BNB-System'!H95","v":0}]
[null,null,{"$f":"'BNB-System'!C96","v":"Überdachung / Regenschutz"},{"$f":"'BNB-System'!D96","v":2},null,null,null,null,null,null,null,null,null,{"$f":"'BNB-System'!H96","v":0}]
[null,null,{"$f":"'BNB-System'!C97","v":"Sonnenschutz"},{"$f":"'BNB-System'!D97","v":2},null,null,null,null,null,null,null,null,null,{"$f":"'BNB-System'!H97","v":0}]
[null,null,{"$f":"'BNB-System'!C98","v":"Stromversorgung für Außenarbeitsplätze"},{"$f":"'BNB-System'!D98","v":1},null,null,null,null,null,null,null,null,null,{"$f":"'BNB-System'!H98","v":0}]
[null,null,{"$f":"'BNB-System'!C99","v":"Bepflanzung / Begrünung"},{"$f":"'BNB-System'!D99","v":1},null,null,null,null,null,null,null,null,null,{"$f":"'BNB-System'!H99","v":0}]
[null,{"$f":"'BNB-System'!B100","v":" 3.1.8"},{"$f":"'BNB-System'!C100","v":"Sicherheit"},{"$f":"'BNB-System'!D100","v":100},{"$f":"'BNB-System'!G100","v":2.4999999999999998E-2},null,{"$f":"SUM(G105:G112)","v":0},null,null,null,null,null,null,{"$f":"'BNB-System'!H100","v":200},{"$f":"IF(ISNUMBER(E104*G104/100),E104*G104/100,0)","v":0}]
[null,null,{"$f":"'BNB-System'!C101","v":"Übersichtliche Wegführungen"},{"$f":"'BNB-System'!D101","v":40},null,null,null,null,null,null,null,null,null,{"$f":"'BNB-System'!H101","v":0}]
[null,null,{"$f":"'BNB-System'!C102","v":"Stellplätze"},{"$f":"'BNB-System'!D102","v":8},null,null,null,null,null,null,null,null,null,{"$f":"'BNB-System'!H102","v":0}]
[null,null,{"$f":"'BNB-System'!C103","v":"Sicherheitsbereiche"},{"$f":"'BNB-System'!D103","v":8},null,null,null,null,null,null,null,null,null,{"$f":"'BNB-System'!H103","v":0}]
[null,null,{"$f":"'BNB-System'!C104","v":"Beleuchtung Wege"},{"$f":"'BNB-System'!D104","v":12},null,null,null,null,null,null,null,null,null,{"$f":"'BNB-System'!H104","v":0}]
[null,null,{"$f":"'BNB-System'!C105","v":"Beleuchtung Stellplätze"},{"$f":"'BNB-System'!D105","v":8},null,null,null,null,null,null,null,null,null,{"$f":"'BNB-System'!H105","v":0}]
[null,null,{"$f":"'BNB-System'!C106","v":"Beleuchtung Sicherheits- und Gefahrenbereiche"},{"$f":"'BNB-System'!D106","v":8},null,null,null,null,null,null,null,null,null,{"$f":"'BNB-System'!H106","v":0}]
[null,null,{"$f":"'BNB-System'!C107","v":"Technische Sicherheitseinrichtungen"},{"$f":"'BNB-System'!D107","v":8},null,null,null,null,null,null,null,null,null,{"$f":"'BNB-System'!H107","v":0}]
[null,null,{"$f":"'BNB-System'!C108","v":"Reduktion von Brandgasrisiken"},{"$f":"'BNB-System'!D108","v":8},null,null,null,null,null,null,null,null,null,{"$f":"'BNB-System'!H108","v":0}]
[null,null,{"$f":"'BNB-System'!C109","v":"Funktionalität"},null,null,null,null,null,null,null,null,null,null,{"$f":"'BNB-System'!H109","v":0}]
[null,{"$f":"'BNB-System'!B110","v":" 3.2.1"},{"$f":"'BNB-System'!C110","v":"Barrierefreiheit"},{"$f":"'BNB-System'!D110","v":100},{"$f":"'BNB-System'!G110","v":2.4999999999999998E-2},null,null,null,null,null,null,null,null,{"$f":"'BNB-System'!H110","v":200},{"$f":"IF(ISNUMBER(E114*G114/100),E114*G114/100,0)","v":0}]
[null,{"$f":"'BNB-System'!B111","v":" 3.2.4"},{"$f":"'BNB-System'!C111","v":"Zugänglichkeit"},{"$f":"'BNB-System'!D111","v":100},{"$f":"'BNB-System'!G111","v":1.2499999999999999E-2},null,{"$f":"SUM(G116:G118)","v":0},null,null,null,null,null,null,{"$f":"'BNB-System'!H111","v":100},0]
[null,null,{"$f":"'BNB-System'!C112","v":"Grundsätzliche Zugänglichkeit des Gebäudes"},{"$f":"'BNB-System'!D112","v":35},null,null,null,null,null,null,null,null,null,{"$f":"'BNB-System'!H112","v":0}]
[null,null,{"$f":"'BNB-System'!C113","v":"Öffnung der Außenanlagen für die Öffentlichkeit"},{"$f":"'BNB-System'!D113","v":35},null,null,null,null,null,null,null,null,null,{"$f":"'BNB-System'!H113","v":0}]
[null,null,{"$f":"'BNB-System'!C114","v":"Öffnung gebäudeinterner Einrichtungen für die Öffentlichkeit"},{"$f":"'BNB-System'!D114","v":30},null,null,null,null,null,null,null,null,null,{"$f":"'BNB-System'!H114","v":0}]
[null,{"$f":"'BNB-System'!B115","v":" 3.2.5"},{"$f":"'BNB-System'!C115","v":"Mobilitätsinfrastruktur"},{"$f":"'BNB-System'!D115","v":100},{"$f":"'BNB-System'!G115","v":1.2499999999999999E-2},null,{"$f":"IF(SUM(G120:G138)>100,100,SUM(G120:G138))","v":0},null,null,null,null,null,null,{"$f":"'BNB-System'!H115","v":100},{"$f":"IF(ISNUMBER(E119*G119/100),E119*G119/100,0)","v":0}]
[null,null,{"$f":"'BNB-System'!C116","v":"Anzahl der Fahrradstellplätze"},null,null,null,null,null,null,null,null,null,null,{"$f":"'BNB-System'!H116","v":0}]
[null,null,{"$f":"'BNB-System'!C117","v":"1 Fahrradstellplatz / 40 m²NF oder 1 Fahrradstellplatz / 3 Nutzer"},{"$f":"'BNB-System'!D117","v":40},null,null,null,null,null,null,null,null,null,{"$f":"'BNB-System'!H117","v":0}]
[null,null,{"$f":"'BNB-System'!C118","v":"1 Fahrradstellplatz / 80m²NF oder 1 Fahrradstellplatz / 6 Nutzer"},{"$f":"'BNB-System'!D118","v":30},null,null,null,null,null,null,null,null,null,{"$f":"'BNB-System'!H118","v":0}]
[null,null,{"$f":"'BNB-System'!C119","v":"1 Fahrradstellplatz / 120m²NF oder 1 Fahrradstellplatz / 9 Nutzer"},{"$f":"'BNB-System'!D119","v":20},null,null,null,null,null,null,null,null,null,{"$f":"'BNB-System'!H119","v":0}]
[null,null,{"$f":"'BNB-System'!C120","v":"1 Fahrradstellplatz / 160m²NF oder 1 Fahrradstellplatz / 12 Nutzer"},{"$f":"'BNB-System'!D120","v":10},null,null,null,null,null,null,null,null,null,{"$f":"'BNB-System'!H120","v":0}]
[null,null,{"$f":"'BNB-System'!C121","v":"Anzahl der Lademöglichkeiten und Carsharing-Stellplätze"},null,null,null,null,null,null,null,null,null,null,{"$f":"'BNB-System'!H121","v":0}]
[null,null,{"$f":"'BNB-System'!C122","v":"Lademögl. für E-Räder für 10 % der Rad-Stellplätze (mind. 2) vorhanden"},{"$f":"'BNB-System'!D122","v":10},null,null,null,null,null,null,null,null,null,{"$f":"'BNB-System'!H122","v":0}]
[null,null,{"$f":"'BNB-System'!C123","v":"Lademögl. für E-Pkw für 5 % der Pkw-Stellplätze (mind. 1) vorhanden"},{"$f":"'BNB-System'!D123","v":5},null,null,null,null,null,null,null,null,null,{"$f":"'BNB-System'!H123","v":0}]
[null,null,{"$f":"'BNB-System'!C124","v":"Carsharing-Stellplatz ist öffentlich zugänglich auf Grundstück vorhanden"},{"$f":"'BNB-System'!D124","v":5},null,null,null,null,null,null,null,null,null,{"$f":"'BNB-System'!H124","v":0}]
[null,null,{"$f":"'BNB-System'!C125","v":"Qualitative Anforderungen an Fahrradstellplätze"},null,null,null,null,null,null,null,null,null,null,{"$f":"'BNB-System'!H125","v":0}]
[null,null,{"$f":"'BNB-System'!C126","v":" Anordnungsprinzipien und Abstände"},{"$f":"'BNB-System'!D126","v":10},null,null,null,null,null,null,null,null,null,{"$f":"'BNB-System'!H126","v":0}]
[null,null,{"$f":"'BNB-System'!C127","v":"Position der Fahrradstellplätze für Besucher"},{"$f":"'BNB-System'!D127","v":5},null,null,null,null,null,null,null,null,null,{"$f":"'BNB-System'!H127","v":0}]
[null,null,{"$f":"'BNB-System'!C128","v":"Position der Fahrradstellplätze für Nutzer"},{"$f":"'BNB-System'!D128","v":5},null,null,null,null,null,null,null,null,null,{"$f":"'BNB-System'!H128","v":0}]
[null,null,{"$f":"'BNB-System'!C129","v":"Witterungsgeschutz"},{"$f":"'BNB-System'!D129","v":10},null,null,null,null,null,null,null,null,null,{"$f":"'BNB-System'!H129","v":0}]
[null,null,{"$f":"'BNB-System'!C130","v":"Beleuchtung"},{"$f":"'BNB-System'!D130","v":10},null,null,null,null,null,null,null,null,null,{"$f":"'BNB-System'!H130","v":0}]
[null,null,{"$f":"'BNB-System'!C131","v":"Diebstahlgesicherter Bereich"},{"$f":"'BNB-System'!D131","v":5},null,null,null,null,null,null,null,null,null,{"$f":"'BNB-System'!H131","v":0}]
[null,null,{"$f":"'BNB-System'!C132","v":"Fläche mit Ausstattung  für Wartungsarbeiten"},{"$f":"'BNB-System'!D132","v":5},null,null,null,null,null,null,null,null,null,{"$f":"'BNB-System'!H132","v":0}]
[null,null,{"$f":"'BNB-System'!C133","v":"Duschen und Umkleiden"},{"$f":"'BNB-System'!D133","v":5},null,null,null,null,null,null,null,null,null,{"$f":"'BNB-System'!H133","v":0}]
[null,null,{"$f":"'BNB-System'!C134","v":"Trocknungsmöglichkeiten"},{"$f":"'BNB-System'!D134","v":5},null,null,null,null,null,null,null,null,null,{"$f":"'BNB-System'!H134","v":0}]
[null,null,{"$f":"'BNB-System'!C135","v":"Sicherung der Gestaltungsqualität"},null,null,null,null,null,null,null,null,null,null,{"$f":"'BNB-System'!H135","v":0}]
[null,{"$f":"'BNB-System'!B136","v":" 3.3.1"},{"$f":"'BNB-System'!C136","v":"Gestalterische und städtebauliche Qualität"},{"$f":"'BNB-System'!D136","v":100},{"$f":"'BNB-System'!G136","v":2.4999999999999998E-2},null,{"$f":"IF(AND(G141>0,G145<=G146),SUM(G141:G144),IF(AND(G141>0,G146<=G145),SUM(G141:G144),IF(G145>0,G145,IF(G146>0,G146,G147))))","v":0},null,null,null,null,null,null,{"$f":"'BNB-System'!H136","v":200},{"$f":"IF(ISNUMBER(E140*G140/100),E140*G140/100,0)","v":0}]
[null,null,{"$f":"'BNB-System'!C137","v":"Durchführung von Planungswettbewerben"},{"$f":"'BNB-System'!D137","v":20},null,null,null,null,null,null,null,null,null,{"$f":"'BNB-System'!H137","v":0}]
[null,null,{"$f":"'BNB-System'!C138","v":"Wettbewerbsverfahren"},{"$f":"'BNB-System'!D138","v":40},null,null,null,null,null,null,null,null,null,{"$f":"'BNB-System'!H138","v":0}]
[null,null,{"$f":"'BNB-System'!C139","v":"Ausführung des Entwurfs eines der Preisträger"},{"$f":"'BNB-System'!D139","v":30},null,null,null,null,null,null,null,null,null,{"$f":"'BNB-System'!H139","v":0}]
[null,null,{"$f":"'BNB-System'!C140","v":"Beauftragung des Planungsteams"},{"$f":"'BNB-System'!D140","v":10},null,null,null,null,null,null,null,null,null,{"$f":"'BNB-System'!H140","v":0}]
[null,null,{"$f":"'BNB-System'!C141","v":"Auszeichnung mit einem Architekturpreis"},{"$f":"'BNB-System'!D141","v":60},null,null,null,null,null,null,null,null,null,{"$f":"'BNB-System'!H141","v":0}]
[null,null,{"$f":"'BNB-System'!C142","v":"Unabhängiges Expertengremium"},{"$f":"'BNB-System'!D142","v":40},null,null,null,null,null,null,null,null,null,{"$f":"'BNB-System'!H142","v":0}]
[null,null,{"$f":"'BNB-System'!C143","v":"Sonderfall Mindestanforderung"},{"$f":"'BNB-System'!D143","v":10},null,null,null,null,null,null,null,null,null,{"$f":"'BNB-System'!H143","v":0}]
[null,{"$f":"'BNB-System'!B144","v":" 3.3.2"},{"$f":"'BNB-System'!C144","v":"Kunst am Bau "},{"$f":"'BNB-System'!D144","v":100},{"$f":"'BNB-System'!G144","v":1.2499999999999999E-2},null,{"$f":"SUM(G149:G152)","v":0},null,null,null,null,null,null,{"$f":"'BNB-System'!H144","v":100},{"$f":"IF(ISNUMBER(E148*G148/100),E148*G148/100,0)","v":0}]
[null,null,{"$f":"'BNB-System'!C145","v":"Mindestanforderung"},{"$f":"'BNB-System'!D145","v":10},null,null,null,null,null,null,null,null,null,{"$f":"'BNB-System'!H145","v":0}]
[null,null,{"$f":"'BNB-System'!C146","v":"Bereitstellung von Mitteln im Rahmen der Bauaufgabe"},{"$f":"'BNB-System'!D146","v":30},null,null,null,null,null,null,null,null,null,{"$f":"'BNB-System'!H146","v":0}]
[null,null,{"$f":"'BNB-System'!C147","v":"Umsetzung des BMVBS-Leitfadens Kunst am Bau"},{"$f":"'BNB-System'!D147","v":40},null,null,null,null,null,null,null,null,null,{"$f":"'BNB-System'!H147","v":0}]
[null,null,{"$f":"'BNB-System'!C148","v":"Öffentlichkeitsarbeit, Rezeption  der Kunst am Bau"},{"$f":"'BNB-System'!D148","v":20},null,null,null,null,null,null,null,null,null,{"$f":"'BNB-System'!H148","v":0}]
[null,null,null,null,null,null,null,null,null,null,null,null,null,{"$f":"'BNB-System'!H149","v":0}]
[null,{"$f":"'BNB-System'!B150","v":"Technische Qualität"},null,null,{"$f":"'BNB-System'!G150","v":0.22500000000000001},null,{"$f":"G157*(E157/100)+G162*(E162/100)+G169*(E169/100)+G179*(E179/100)+G180*(E180/100)+G181*(E181/100)+G182*(E182/100)","v":0},null,null,null,null,null,null,{"$f":"'BNB-System'!H150","v":1100}]
[null,null,null,null,null,null,null,null,null,null,null,null,null,{"$f":"'BNB-System'!H151","v":0}]
[null,null,{"$f":"'BNB-System'!C152","v":"technische Ausführung"},null,null,null,null,null,null,null,null,null,null,{"$f":"'BNB-System'!H152","v":0}]
[null,{"$f":"'BNB-System'!B153","v":" 4.1.1"},{"$f":"'BNB-System'!C153","v":"Schallschutz "},{"$f":"'BNB-System'!D153","v":100},{"$f":"'BNB-System'!G153","v":2.0454545454545454E-2},null,{"$f":"SUM(G158:G161)","v":0},null,null,null,null,null,null,{"$f":"'BNB-System'!H153","v":100},{"$f":"IF(ISNUMBER(E157*G157/100),E157*G157/100,0)","v":0}]
[null,null,{"$f":"'BNB-System'!C154","v":"Luftschallschutz gegen Außenlärm"},{"$f":"'BNB-System'!D154","v":20},null,null,null,null,null,null,null,null,null,{"$f":"'BNB-System'!H154","v":0}]
[null,null,{"$f":"'BNB-System'!C155","v":"Luftschallschutz im Gebäudeinneren"},{"$f":"'BNB-System'!D155","v":30},null,null,null,null,null,null,null,null,null,{"$f":"'BNB-System'!H155","v":0}]
[null,null,{"$f":"'BNB-System'!C156","v":"Trittschallschutz gegenüber fremden und eigenen Arbeitsbereichen"},{"$f":"'BNB-System'!D156","v":30},null,null,null,null,null,null,null,null,null,{"$f":"'BNB-System'!H156","v":0}]
[null,null,{"$f":"'BNB-System'!C157","v":"Schallschutz gegenüber haustechnischen Anlagen"},{"$f":"'BNB-System'!D157","v":20},null,null,null,null,null,null,null,null,null,{"$f":"'BNB-System'!H157","v":0}]
[null,{"$f":"'BNB-System'!B158","v":" 4.1.2"},{"$f":"'BNB-System'!C158","v":"Wärme- und Tauwasserschutz "},{"$f":"'BNB-System'!D158","v":100},{"$f":"'BNB-System'!G158","v":2.0454545454545454E-2},null,{"$f":"SUM(G163:G168)","v":0},null,null,null,null,null,null,{"$f":"'BNB-System'!H158","v":100},{"$f":"IF(ISNUMBER(E162*G162/100),E162*G162/100,0)","v":0}]
[null,null,{"$f":"'BNB-System'!C159","v":"Mittlere Wärmeduchgangskoeffizienten"},{"$f":"'BNB-System'!D159","v":30},null,null,null,null,null,null,null,null,null,{"$f":"'BNB-System'!H159","v":0}]
[null,null,{"$f":"'BNB-System'!C160","v":"Wärmebrückenzuschlag"},{"$f":"'BNB-System'!D160","v":15},null,null,null,null,null,null,null,null,null,{"$f":"'BNB-System'!H160","v":0}]
[null,null,{"$f":"'BNB-System'!C161","v":"Klassen der Luftdurchlässigkeit (Fugendurchlässigkeit)"},{"$f":"'BNB-System'!D161","v":15},null,null,null,null,null,null,null,null,null,{"$f":"'BNB-System'!H161","v":0}]
[null,null,{"$f":"'BNB-System'!C162","v":"Tauwasserbildung"},{"$f":"'BNB-System'!D162","v":10},null,null,null,null,null,null,null,null,null,{"$f":"'BNB-System'!H162","v":0}]
[null,null,{"$f":"'BNB-System'!C163","v":"Luftwechsel"},{"$f":"'BNB-System'!D163","v":15},null,null,null,null,null,null,null,null,null,{"$f":"'BNB-System'!H163","v":0}]
[null,null,{"$f":"'BNB-System'!C164","v":"Sonneneintragswert"},{"$f":"'BNB-System'!D164","v":15},null,null,null,null,null,null,null,null,null,{"$f":"'BNB-System'!H164","v":0}]
[null,{"$f":"'BNB-System'!B165","v":" 4.1.3"},{"$f":"'BNB-System'!C165","v":"Reinigungs- und Instandhaltungsfreundlichkeit"},{"$f":"'BNB-System'!D165","v":100},{"$f":"'BNB-System'!G165","v":4.0909090909090909E-2},null,{"$f":"SUM(G170:G178)","v":0},null,null,null,null,null,null,{"$f":"'BNB-System'!H165","v":200},{"$f":"IF(ISNUMBER(E169*G169/100),E169*G169/100,0)","v":0}]
[null,null,{"$f":"'BNB-System'!C166","v":"Tragkonstruktion"},{"$f":"'BNB-System'!D166","v":15},null,null,null,null,null,null,null,null,null,{"$f":"'BNB-System'!H166","v":0}]
[null,null,{"$f":"'BNB-System'!C167","v":"Zugänglichkeit der Außenglasflächen"},{"$f":"'BNB-System'!D167","v":15},null,null,null,null,null,null,null,null,null,{"$f":"'BNB-System'!H167","v":0}]
[null,null,{"$f":"'BNB-System'!C168","v":"Außenbauteile"},{"$f":"'BNB-System'!D168","v":9},null,null,null,null,null,null,null,null,null,{"$f":"'BNB-System'!H168","v":0}]
[null,null,{"$f":"'BNB-System'!C169","v":"Bodenbelag"},{"$f":"'BNB-System'!D169","v":9},null,null,null,null,null,null,null,null,null,{"$f":"'BNB-System'!H169","v":0}]
[null,null,{"$f":"'BNB-System'!C170","v":"Schmutzfangzone"},{"$f":"'BNB-System'!D170","v":9},null,null,null,null,null,null,null,null,null,{"$f":"'BNB-System'!H170","v":0}]
[null,null,{"$f":"'BNB-System'!C171","v":"Fußbodenleisten"},{"$f":"'BNB-System'!D171","v":9},null,null,null,null,null,null,null,null,null,{"$f":"'BNB-System'!H171","v":0}]
[null,null,{"$f":"'BNB-System'!C172","v":"Hindernisfreie Grundrissgestaltung"},{"$f":"'BNB-System'!D172","v":9},null,null,null,null,null,null,null,null,null,{"$f":"'BNB-System'!H172","v":0}]
[null,null,{"$f":"'BNB-System'!C173","v":"Einbauten"},{"$f":"'BNB-System'!D173","v":10},null,null,null,null,null,null,null,null,null,{"$f":"'BNB-System'!H173","v":0}]
[null,null,{"$f":"'BNB-System'!C174","v":"Zugänglichkeit der Innenglasflächen "},{"$f":"'BNB-System'!D174","v":15},null,null,null,null,null,null,null,null,null,{"$f":"'BNB-System'!H174","v":0}]
[null,{"$f":"'BNB-System'!B175","v":" 4.1.4"},{"$f":"'BNB-System'!C175","v":"Rückbau, Trennung und Verwertung"},{"$f":"'BNB-System'!D175","v":100},{"$f":"'BNB-System'!G175","v":2.0454545454545454E-2},null,null,null,null,null,null,null,null,{"$f":"'BNB-System'!H175","v":100},{"$f":"IF(ISNUMBER(E179*G179/100),E179*G179/100,0)","v":0}]
[null,{"$f":"'BNB-System'!B176","v":" 4.1.5"},{"$f":"'BNB-System'!C176","v":"Widerstandsfähigkeit gegen Naturgefahren"},{"$f":"'BNB-System'!D176","v":100},{"$f":"'BNB-System'!G176","v":2.0454545454545454E-2},null,null,null,null,null,null,null,null,{"$f":"'BNB-System'!H176","v":100},0]
[null,{"$f":"'BNB-System'!B177","v":" 4.1.6"},{"$f":"'BNB-System'!C177","v":"Bedienungs- und Instandhaltungsfreundlichkeit der TGA"},{"$f":"'BNB-System'!D177","v":100},{"$f":"'BNB-System'!G177","v":4.0909090909090909E-2},null,null,null,null,null,null,null,null,{"$f":"'BNB-System'!H177","v":200},{"$f":"IF(ISNUMBER(E181*G181/100),E181*G181/100,0)","v":0}]
[null,{"$f":"'BNB-System'!B178","v":" 4.1.7"},{"$f":"'BNB-System'!C178","v":"Systemqualität der TGA"},{"$f":"'BNB-System'!D178","v":100},{"$f":"'BNB-System'!G178","v":6.1363636363636363E-2},null,null,null,null,null,null,null,null,{"$f":"'BNB-System'!H178","v":300},{"$f":"IF(ISNUMBER(E182*G182/100),E182*G182/100,0)","v":0}]
[null,null,null,null,null,null,null,null,null,null,null,null,null,{"$f":"'BNB-System'!H179","v":0}]
[null,{"$f":"'BNB-System'!B180","v":"Prozessqualität"},null,null,{"$f":"'BNB-System'!G180","v":0.1},null,{"$f":"G187*(E187/100)+G191*(E191/100)+G197*(E197/100)+G213*(E213/100)+G214*(E214/100)+G221*(E221/100)+G226*(E226/100)+G229*(E229/100)","v":0},null,null,null,null,null,null,{"$f":"'BNB-System'!H180","v":2100}]
[null,null,null,null,null,null,null,null,null,null,null,null,null,{"$f":"'BNB-System'!H181","v":0}]
[null,null,{"$f":"'BNB-System'!C182","v":"Planung"},null,null,null,null,null,null,null,null,null,null,{"$f":"'BNB-System'!H182","v":0}]
[null,{"$f":"'BNB-System'!B183","v":" 5.1.1"},{"$f":"'BNB-System'!C183","v":"Projektvorbereitung"},{"$f":"'BNB-System'!D183","v":100},{"$f":"'BNB-System'!G183","v":1.4285714285714285E-2},null,{"$f":"SUM(G188:G190)","v":0},null,null,null,null,null,null,{"$f":"'BNB-System'!H183","v":300},{"$f":"IF(ISNUMBER(E187*G187/100),E187*G187/100,0)","v":0}]
[null,null,{"$f":"'BNB-System'!C184","v":"Bedarfsplanung oder vergleichbare Planung"},{"$f":"'BNB-System'!D184","v":35},null,null,null,null,null,null,null,null,null,{"$f":"'BNB-System'!H184","v":0}]
[null,null,{"$f":"'BNB-System'!C185","v":"Zielvereinbarung"},{"$f":"'BNB-System'!D185","v":35},null,null,null,null,null,null,null,null,null,{"$f":"'BNB-System'!H185","v":0}]
[null,null,{"$f":"'BNB-System'!C186","v":"Architektenwettbewerb"},{"$f":"'BNB-System'!D186","v":30},null,null,null,null,null,null,null,null,null,{"$f":"'BNB-System'!H186","v":0}]
[null,{"$f":"'BNB-System'!B187","v":" 5.1.2"},{"$f":"'BNB-System'!C187","v":"Integrale Planung"},{"$f":"'BNB-System'!D187","v":100},{"$f":"'BNB-System'!G187","v":1.4285714285714285E-2},null,{"$f":"SUM(G192:G196)","v":0},null,null,null,null,null,null,{"$f":"'BNB-System'!H187","v":300},{"$f":"IF(ISNUMBER(E191*G191/100),E191*G191/100,0)","v":0}]
[null,null,{"$f":"'BNB-System'!C188","v":"Interdisziplinäres Projektteam"},{"$f":"'BNB-System'!D188","v":30},null,null,null,null,null,null,null,null,null,{"$f":"'BNB-System'!H188","v":0}]
[null,null,{"$f":"'BNB-System'!C189","v":"Qualifikation des Projektteams"},{"$f":"'BNB-System'!D189","v":20},null,null,null,null,null,null,null,null,null,{"$f":"'BNB-System'!H189","v":0}]
[null,null,{"$f":"'BNB-System'!C190","v":"Integraler Planungsprozess"},{"$f":"'BNB-System'!D190","v":20},null,null,null,null,null,null,null,null,null,{"$f":"'BNB-System'!H190","v":0}]
[null,null,{"$f":"'BNB-System'!C191","v":"Nutzerbeteiligung"},{"$f":"'BNB-System'!D191","v":20},null,null,null,null,null,null,null,null,null,{"$f":"'BNB-System'!H191","v":0}]
[null,null,{"$f":"'BNB-System'!C192","v":"Öffentlichkeitsbeteiligung"},{"$f":"'BNB-System'!D192","v":10},null,null,null,null,null,null,null,null,null,{"$f":"'BNB-System'!H192","v":0}]
[null,{"$f":"'BNB-System'!B193","v":" 5.1.3"},{"$f":"'BNB-System'!C193","v":"Komplexität und Optimierung der Planung"},{"$f":"'BNB-System'!D193","v":100},{"$f":"'BNB-System'!G193","v":1.4285714285714285E-2},null,{"$f":"IF(SUM(G198:G212)>100,100,SUM(G198:G212))","v":0},null,null,null,null,null,null,{"$f":"'BNB-System'!H193","v":300},{"$f":"IF(ISNUMBER(E197*G197/100),E197*G197/100,0)","v":0}]
[null,null,{"$f":"'BNB-System'!C194","v":"SiGe-Plan"},{"$f":"'BNB-System'!D194","v":10},null,null,null,null,null,null,null,null,null,{"$f":"'BNB-System'!H194","v":0}]
[null,null,{"$f":"'BNB-System'!C195","v":"Ver- und Entsiegelungskonzept"},{"$f":"'BNB-System'!D195","v":10},null,null,null,null,null,null,null,null,null,{"$f":"'BNB-System'!H195","v":0}]
[null,null,{"$f":"'BNB-System'!C196","v":"Energiekonzept"},{"$f":"'BNB-System'!D196","v":15},null,null,null,null,null,null,null,null,null,{"$f":"'BNB-System'!H196","v":0}]
[null,null,{"$f":"'BNB-System'!C197","v":"Mess- und Monitoringkonzept"},{"$f":"'BNB-System'!D197","v":15},null,null,null,null,null,null,null,null,null,{"$f":"'BNB-System'!H197","v":0}]
[null,null,{"$f":"'BNB-System'!C198","v":"Wasserkonzept"},{"$f":"'BNB-System'!D198","v":20},null,null,null,null,null,null,null,null,null,{"$f":"'BNB-System'!H198","v":0}]
[null,null,{"$f":"'BNB-System'!C199","v":"Konzept zur Vermeid. von Umwelt- & Gesundheitsrisiken aus Bauprod."},{"$f":"'BNB-System'!D199","v":10},null,null,null,null,null,null,null,null,null,{"$f":"'BNB-System'!H199","v":0}]
[null,null,{"$f":"'BNB-System'!C200","v":"Lüftungskonzept"},{"$f":"'BNB-System'!D200","v":10},null,null,null,null,null,null,null,null,null,{"$f":"'BNB-System'!H200","v":0}]
[null,null,{"$f":"'BNB-System'!C201","v":"Abfallkonzept / Wertstoffkonzept"},{"$f":"'BNB-System'!D201","v":5},null,null,null,null,null,null,null,null,null,{"$f":"'BNB-System'!H201","v":0}]
[null,null,{"$f":"'BNB-System'!C202","v":"Tages- / Kunstlichtoptimierung"},{"$f":"'BNB-System'!D202","v":10},null,null,null,null,null,null,null,null,null,{"$f":"'BNB-System'!H202","v":0}]
[null,null,{"$f":"'BNB-System'!C203","v":"Konzept zur Sicherung der Reinigungs- & Instandhaltungsfreundlichk."},{"$f":"'BNB-System'!D203","v":10},null,null,null,null,null,null,null,null,null,{"$f":"'BNB-System'!H203","v":0}]
[null,null,{"$f":"'BNB-System'!C204","v":"Anpassbarkeits-, Rückbau- und Recyclingkonzept"},{"$f":"'BNB-System'!D204","v":10},null,null,null,null,null,null,null,null,null,{"$f":"'BNB-System'!H204","v":0}]
[null,null,{"$f":"'BNB-System'!C205","v":"Konzept zur Vermeidung und Beherrschung von Risiken"},{"$f":"'BNB-System'!D205","v":10},null,null,null,null,null,null,null,null,null,{"$f":"'BNB-System'!H205","v":0}]
[null,null,{"$f":"'BNB-System'!C206","v":"Sonstige Konzepte zum Nachhaltigen Bauen"},{"$f":"'BNB-System'!D206","v":10},null,null,null,null,null,null,null,null,null,{"$f":"'BNB-System'!H206","v":0}]
[null,null,{"$f":"'BNB-System'!C207","v":"Prüfung der Planungsunterlagen durch unabhängige Dritte"},{"$f":"'BNB-System'!D207","v":5},null,null,null,null,null,null,null,null,null,{"$f":"'BNB-System'!H207","v":0}]
[null,null,{"$f":"'BNB-System'!C208","v":"Durchführung von Variantenvergleichen"},{"$f":"'BNB-System'!D208","v":10},null,null,null,null,null,null,null,null,null,{"$f":"'BNB-System'!H208","v":0}]
[null,{"$f":"'BNB-System'!B209","v":" 5.1.4"},{"$f":"'BNB-System'!C209","v":"Ausschreibung und Vergabe"},{"$f":"'BNB-System'!D209","v":100},{"$f":"'BNB-System'!G209","v":9.5238095238095247E-3},null,null,null,null,null,null,null,null,{"$f":"'BNB-System'!H209","v":200},{"$f":"IF(ISNUMBER(E213*G213/100),E213*G213/100,0)","v":0}]
[null,{"$f":"'BNB-System'!B210","v":" 5.1.5"},{"$f":"'BNB-System'!C210","v":"Voraussetzungen für eine optimale Bewirtschaftung"},{"$f":"'BNB-System'!D210","v":100},{"$f":"'BNB-System'!G210","v":9.5238095238095247E-3},null,{"$f":"SUM(G215:G219)","v":0},null,null,null,null,null,null,{"$f":"'BNB-System'!H210","v":200},0]
[null,null,{"$f":"'BNB-System'!C211","v":"Erstellung einer Gebäudeakte / Objektdokumentation"},{"$f":"'BNB-System'!D211","v":20},null,null,null,null,null,null,null,null,null,{"$f":"'BNB-System'!H211","v":0}]
[null,null,{"$f":"'BNB-System'!C212","v":"Erstellung von Wartungs-, Inspektions-, Betriebs-, Pflegeanleitungen"},{"$f":"'BNB-System'!D212","v":20},null,null,null,null,null,null,null,null,null,{"$f":"'BNB-System'!H212","v":0}]
[null,null,{"$f":"'BNB-System'!C213","v":"Anpassung der Pläne und Berechnungen an das realisierte Gebäude"},{"$f":"'BNB-System'!D213","v":20},null,null,null,null,null,null,null,null,null,{"$f":"'BNB-System'!H213","v":0}]
[null,null,{"$f":"'BNB-System'!C214","v":"Erstellung eines Nutzerhandbuches"},{"$f":"'BNB-System'!D214","v":20},null,null,null,null,null,null,null,null,null,{"$f":"'BNB-System'!H214","v":0}]
[null,null,{"$f":"'BNB-System'!C215","v":"Nutzereinweisung"},{"$f":"'BNB-System'!D215","v":20},null,null,null,null,null,null,null,null,null,{"$f":"'BNB-System'!H215","v":0}]
[null,null,{"$f":"'BNB-System'!C216","v":"Bauausführung"},null,null,null,null,null,null,null,null,null,null,{"$f":"'BNB-System'!H216","v":0}]
[null,{"$f":"'BNB-System'!B217","v":" 5.2.1"},{"$f":"'BNB-System'!C217","v":"Baustelle / Bauprozess"},{"$f":"'BNB-System'!D217","v":100},{"$f":"'BNB-System'!G217","v":9.5238095238095247E-3},null,{"$f":"SUM(G222:G225)","v":0},null,null,null,null,null,null,{"$f":"'BNB-System'!H217","v":200},{"$f":"IF(ISNUMBER(E221*G221/100),E221*G221/100,0)","v":0}]
[null,null,{"$f":"'BNB-System'!C218","v":"Wertstoffoptimierte Baustelle"},{"$f":"'BNB-System'!D218","v":25},null,null,null,null,null,null,null,null,null,{"$f":"'BNB-System'!H218","v":0}]
[null,null,{"$f":"'BNB-System'!C219","v":"Lärmarme Baustelle"},{"$f":"'BNB-System'!D219","v":25},null,null,null,null,null,null,null,null,null,{"$f":"'BNB-System'!H219","v":0}]
[null,null,{"$f":"'BNB-System'!C220","v":"Staubarme Baustelle"},{"$f":"'BNB-System'!D220","v":25},null,null,null,null,null,null,null,null,null,{"$f":"'BNB-System'!H220","v":0}]
[null,null,{"$f":"'BNB-System'!C221","v":"Bodenschutz auf der Baustelle"},{"$f":"'BNB-System'!D221","v":25},null,null,null,null,null,null,null,null,null,{"$f":"'BNB-System'!H221","v":0}]
[null,{"$f":"'BNB-System'!B222","v":" 5.2.2"},{"$f":"'BNB-System'!C222","v":"Qualitätssicherung der Bauausführung"},{"$f":"'BNB-System'!D222","v":100},{"$f":"'BNB-System'!G222","v":1.4285714285714285E-2},null,{"$f":"SUM(G227:G228)","v":0},null,null,null,null,null,null,{"$f":"'BNB-System'!H222","v":300},{"$f":"IF(ISNUMBER(E226*G226/100),E226*G226/100,0)","v":0}]
[null,null,{"$f":"'BNB-System'!C223","v":"Dokumentation"},{"$f":"'BNB-System'!D223","v":50},null,null,null,null,null,null,null,null,null,{"$f":"'BNB-System'!H223","v":0}]
[null,null,{"$f":"'BNB-System'!C224","v":"Messungen zur Qualitätskontrolle"},{"$f":"'BNB-System'!D224","v":50},null,null,null,null,null,null,null,null,null,{"$f":"'BNB-System'!H224","v":0}]
[null,{"$f":"'BNB-System'!B225","v":" 5.2.3"},{"$f":"'BNB-System'!C225","v":"Systematische Inbetriebnahme"},{"$f":"'BNB-System'!D225","v":100},{"$f":"'BNB-System'!G225","v":1.4285714285714285E-2},null,null,null,null,null,null,null,null,{"$f":"'BNB-System'!H225","v":300},{"$f":"IF(ISNUMBER(E229*G229/100),E229*G229/100,0)","v":0}]
[null,null,null,null,null,null,null,null,null,null,null,null,null,{"$f":"'BNB-System'!H226","v":0}]
[null,null,null,null,null,null,null,null,null,null,null,null,null,{"$f":"'BNB-System'!H227","v":0}]
[null,{"$f":"'BNB-System'!B228","v":"Standortmerkmale"},null,null,{"$f":"'BNB-System'!G228","v":1},null,{"$f":"G235*(E235/100)+G241*(E241/100)+G248*(E248/100)+G253*(E253/100)+G257*(E257/100)+G267*(E267/100)","v":0},null,null,null,null,null,null,{"$f":"'BNB-System'!H228","v":1300}]
[null,null,null,null,null,null,null,null,null,null,null,null,null,{"$f":"'BNB-System'!H229","v":0}]
[null,null,{"$f":"'BNB-System'!C230","v":"Standortmerkmale"},null,null,null,null,null,null,null,null,null,null,{"$f":"'BNB-System'!H230","v":0}]
[null,{"$f":"'BNB-System'!B231","v":" 6.1.1"},{"$f":"'BNB-System'!C231","v":"Risiken am Mikrostandort"},{"$f":"'BNB-System'!D231","v":100},{"$f":"'BNB-System'!G231","v":0.15384615384615385},null,{"$f":"SUM(G236:G240)","v":0},null,null,null,null,null,null,{"$f":"'BNB-System'!H231","v":200},{"$f":"IF(ISNUMBER(E235*G235/100),E235*G235/100,0)","v":0}]
[null,null,{"$f":"'BNB-System'!C232","v":"Risiken aus Man-Made-Hazards (Unfälle)"},{"$f":"'BNB-System'!D232","v":20}]
[null,null,{"$f":"'BNB-System'!C233","v":"Risiken aus Erdbeben"},{"$f":"'BNB-System'!D233","v":20}]
[null,null,{"$f":"'BNB-System'!C234","v":"Risiken aus Lawinen"},{"$f":"'BNB-System'!D234","v":20}]
[null,null,{"$f":"'BNB-System'!C235","v":"Risiken aus Sturm"},{"$f":"'BNB-System'!D235","v":20}]
[null,null,{"$f":"'BNB-System'!C236","v":"Risiken aus Hochwasser"},{"$f":"'BNB-System'!D236","v":20}]
[null,{"$f":"'BNB-System'!B237","v":" 6.1.2"},{"$f":"'BNB-System'!C237","v":"Verhältnisse am Mikrostandort"},{"$f":"'BNB-System'!D237","v":100},{"$f":"'BNB-System'!G237","v":0.15384615384615385},null,{"$f":"SUM(G242:G247)","v":0},null,null,null,null,null,null,{"$f":"'BNB-System'!H237","v":200},0]
[null,null,{"$f":"'BNB-System'!C238","v":"Außenluftqualität"},{"$f":"'BNB-System'!D238","v":16}]
[null,null,{"$f":"'BNB-System'!C239","v":"Außenlärmpegel"},{"$f":"'BNB-System'!D239","v":20}]
[null,null,{"$f":"'BNB-System'!C240","v":"Baugrundverhältnisse, Bodenbelastungen"},{"$f":"'BNB-System'!D240","v":16}]
[null,null,{"$f":"'BNB-System'!C241","v":"Elektromagnetische Felder"},{"$f":"'BNB-System'!D241","v":16}]
[null,null,{"$f":"'BNB-System'!C242","v":"Vorkommen von Radon"},{"$f":"'BNB-System'!D242","v":16}]
[null,null,{"$f":"'BNB-System'!C243","v":"Stadt- und Landschaftsbild / Sichtbeziehungen"},{"$f":"'BNB-System'!D243","v":16}]
[null,{"$f":"'BNB-System'!B244","v":" 6.1.3"},{"$f":"'BNB-System'!C244","v":"Quartiersmerkmale"},{"$f":"'BNB-System'!D244","v":100},{"$f":"'BNB-System'!G244","v":0.15384615384615385},null,{"$f":"SUM(G249:G252)","v":0},null,null,null,null,null,null,{"$f":"'BNB-System'!H244","v":200},0]
[null,null,{"$f":"'BNB-System'!C245","v":"Image, Attraktivität"},{"$f":"'BNB-System'!D245","v":25}]
[null,null,{"$f":"'BNB-System'!C246","v":"Synergie- und Konfliktpotenziale"},{"$f":"'BNB-System'!D246","v":25}]
[null,null,{"$f":"'BNB-System'!C247","v":"Kriminalität"},{"$f":"'BNB-System'!D247","v":25}]
[null,null,{"$f":"'BNB-System'!C248","v":"Pflege und Erhaltungszustand"},{"$f":"'BNB-System'!D248","v":25}]
[null,{"$f":"'BNB-System'!B249","v":" 6.1.4"},{"$f":"'BNB-System'!C249","v":"Verkehrsanbindung"},{"$f":"'BNB-System'!D249","v":100},{"$f":"'BNB-System'!G249","v":0.23076923076923078},null,{"$f":"SUM(G254:G256)","v":0},null,null,null,null,null,null,{"$f":"'BNB-System'!H249","v":300},0]
[null,null,{"$f":"'BNB-System'!C250","v":"Erreichbarkeit Haupt-/ Fernbahnhof"},{"$f":"'BNB-System'!D250","v":30}]
[null,null,{"$f":"'BNB-System'!C251","v":"Erreichbarkeit ÖPNV"},{"$f":"'BNB-System'!D251","v":30}]
[null,null,{"$f":"'BNB-System'!C252","v":"Fuß- und Radwege"},{"$f":"'BNB-System'!D252","v":40}]
[null,{"$f":"'BNB-System'!B253","v":" 6.1.5"},{"$f":"'BNB-System'!C253","v":"Nähe zu nutzungsrelevanten Einrichtungen"},{"$f":"'BNB-System'!D253","v":100},{"$f":"'BNB-System'!G253","v":0.15384615384615385},null,{"$f":"SUM(G258:G266)","v":0},null,null,null,null,null,null,{"$f":"'BNB-System'!H253","v":200},0]
[null,null,{"$f":"'BNB-System'!C254","v":"Gastronomie"},{"$f":"'BNB-System'!D254","v":10}]
[null,null,{"$f":"'BNB-System'!C255","v":"Nahversorgung"},{"$f":"'BNB-System'!D255","v":10}]
[null,null,{"$f":"'BNB-System'!C256","v":"Parkanlagen und Freiräume"},{"$f":"'BNB-System'!D256","v":20}]
[null,null,{"$f":"'BNB-System'!C257","v":"Bildung"},{"$f":"'BNB-System'!D257","v":10}]
[null,null,{"$f":"'BNB-System'!C258","v":"Öffentliche Verwaltung"},{"$f":"'BNB-System'!D258","v":10}]
[null,null,{"$f":"'BNB-System'!C259","v":"Medizinische Versorgung"},{"$f":"'BNB-System'!D259","v":10}]
[null,null,{"$f":"'BNB-System'!C260","v":"Sportstätten"},{"$f":"'BNB-System'!D260","v":10}]
[null,null,{"$f":"'BNB-System'!C261","v":"Freizeit"},{"$f":"'BNB-System'!D261","v":10}]
[null,null,{"$f":"'BNB-System'!C262","v":"Dienstleister"},{"$f":"'BNB-System'!D262","v":10}]
[null,{"$f":"'BNB-System'!B263","v":" 6.1.6"},{"$f":"'BNB-System'!C263","v":"Anliegende Medien / Erschließung"},{"$f":"'BNB-System'!D263","v":100},{"$f":"'BNB-System'!G263","v":0.15384615384615385},null,{"$f":"SUM(G268:G271)","v":0},null,null,null,null,null,null,{"$f":"'BNB-System'!H263","v":200},0]
[null,null,{"$f":"'BNB-System'!C264","v":"Leitungsgebundene Energie"},{"$f":"'BNB-System'!D264","v":25}]
[null,null,{"$f":"'BNB-System'!C265","v":"Solarenergie"},{"$f":"'BNB-System'!D265","v":25}]
[null,null,{"$f":"'BNB-System'!C266","v":"Breitband-Anschluss"},{"$f":"'BNB-System'!D266","v":25}]
[null,null,{"$f":"'BNB-System'!C267","v":"Regenwasserversickerung"},{"$f":"'BNB-System'!D267","v":25}]

{"sheet":"Bewertung durch Anwender","index":2,"n_rows":271,"n_cols":17,"rows_kept":271,"cut":false,"hidden":false,"merged":[[0,2,0,6],[3,16,4,16],[3,4,4,4],[3,17,4,17],[6,1,6,2],[3,1,4,2],[3,15,4,15],[3,3,4,3],[3,14,4,14]]}
[null,{"$f":"'BNB-System'!B1","v":"Projekt:"},{"$f":"Zielvereinbarung!C1","v":"Projektbezeichnung"},null,null,null,null,null,null,null,null,null,null,{"$f":"Zielvereinbarung!$G$1","v":"2020-12-02"}]
[null,{"$f":"'BNB-System'!B2","v":"Bewertungssystem Nachhaltiges Bauen (BNB)"}]
[null,{"$f":"'BNB-System'!B3","v":"Systemvariante Laborgebäude, Modul Neubau (BNB_LN) - Version 2020"}]
[null,"Nachhaltigkeitskriterien",null,"maximale Punktzahl","Gewichtung\nGesamt-bewertung","Zielwert aus der Ziel-vereinbarung","Zielwert  der Ziel-vereinbarung","Zielwert  der Ziel-vereinbarung","1. Korrektur \nZielwert","Kommentar","2. Korrektur \nZielwert","Kommentar"," Zwischen-bewertung","Endbewertung",null,"Zielwert","Gesamt-bewertung gemäß \nEnd-bewertung"]
[null,null,null,null,null,null,"Soll","aus Registerkarte \"Zielvereinbarung\"",{"$f":"TODAY()","v":"2021-01-14"},"Eintrag erforderlich\n für Zielwertkorrektur","2015-02-22","Eintrag erforderlich\n für Zielwertkorrektur",{"$f":"TODAY()","v":"2021-01-14"}]
[]
[null,"Gesamterfüllungsgrad",null,null,null,null,{"$f":"G10+G28+G48+G154+G184","v":0},{"$f":"Zielvereinbarung!G7","v":0},null,null,null,null,{"$f":"M10+M28+M48+M154+M184","v":0},{"$f":"N10+N28+N48+N154+N184","v":0}]
[null,null,null,null,null,null,null,null,null,null,null,null,"to_copy_zb","to_insert_zb","qwertz"]
[]
[null,{"$f":"'BNB-System'!B6","v":"Ökologische Qualität"},null,null,0.22500000000000001,null,{"$f":"G13*($E$13/100)+G14*($E$14/100)+G15*($E$15/100)+G16*($E$16/100)+G17*($E$17/100)+G18*($E$18/100)+G19*($E$19/100)+G21*($E$21/100)+G25*($E$25/100)+G26*($E$26/100)","v":0},{"$f":"Zielvereinbarung!G10","v":0},null,null,null,null,{"$f":"M13*($E$13/100)+M14*($E$14/100)+M15*($E$15/100)+M16*($E$16/100)+M17*($E$17/100)+M18*($E$18/100)+M19*($E$19/100)+M21*($E$21/100)+M25*($E$25/100)+M26*($E$26/100)","v":0},{"$f":"N13*($E$13/100)+N14*($E$14/100)+N15*($E$15/100)+N16*($E$16/100)+N17*($E$17/100)+N18*($E$18/100)+N19*($E$19/100)+N21*($E$21/100)+N25*($E$25/100)+N26*($E$26/100)","v":0},null,{"$f":"'BNB-System'!H6","v":1600}]
[null,null,null,null,null,null,null,null,null,null,null,null,null,null,null,{"$f":"'BNB-System'!H7","v":0}]
[null,null,"Wirkungen auf die globale und lokale  Umwelt",null,null,null,null,null,null,null,null,null,null,null,null,{"$f":"'BNB-System'!H8","v":0}]
[null,{"$f":"'BNB-System'!B9","v":" 1.1.1"},{"$f":"'BNB-System'!C9","v":"Treibhauspotenzial (GWP)"},{"$f":"'BNB-System'!D9","v":100},{"$f":"'BNB-System'!G9","v":4.2187500000000003E-2},null,{"$f":"IF(AND(NOT(ISBLANK(K13)),NOT(ISBLANK(L13))),('Bewertung durch Anwender'!K13),IF(AND(NOT(ISBLANK(J13)),NOT(ISBLANK(I13))),('Bewertung durch Anwender'!I13),(Zielvereinbarung!G13)))","v":0},{"$f":"Zielvereinbarung!G13","v":0},null,null,null,null,null,null,null,{"$f":"'BNB-System'!H9","v":300},{"$f":"IF(ISNUMBER(E13*N13/100),E13*N13/100,0)","v":0}]
[null,{"$f":"'BNB-System'!B10","v":" 1.1.2"},{"$f":"'BNB-System'!C10","v":"Ozonschichtabbaupotenzial (ODP)"},{"$f":"'BNB-System'!D10","v":100},{"$f":"'BNB-System'!G10","v":1.40625E-2},null,{"$f":"IF(AND(NOT(ISBLANK(K14)),NOT(ISBLANK(L14))),('Bewertung durch Anwender'!K14),IF(AND(NOT(ISBLANK(J14)),NOT(ISBLANK(I14))),('Bewertung durch Anwender'!I14),(Zielvereinbarung!G14)))","v":0},{"$f":"Zielvereinbarung!G14","v":0},null,null,null,null,null,null,null,{"$f":"'BNB-System'!H10","v":100},0]
[null,{"$f":"'BNB-System'!B11","v":" 1.1.3"},{"$f":"'BNB-System'!C11","v":"Ozonbildungspotenzial (POCP)"},{"$f":"'BNB-System'!D11","v":100},{"$f":"'BNB-System'!G11","v":1.40625E-2},null,{"$f":"IF(AND(NOT(ISBLANK(K15)),NOT(ISBLANK(L15))),('Bewertung durch Anwender'!K15),IF(AND(NOT(ISBLANK(J15)),NOT(ISBLANK(I15))),('Bewertung durch Anwender'!I15),(Zielvereinbarung!G15)))","v":0},{"$f":"Zielvereinbarung!G15","v":0},null,null,null,null,null,null,null,{"$f":"'BNB-System'!H11","v":100},0]
[null,{"$f":"'BNB-System'!B12","v":" 1.1.4"},{"$f":"'BNB-System'!C12","v":"Versauerungspotenzial (AP)"},{"$f":"'BNB-System'!D12","v":100},{"$f":"'BNB-System'!G12","v":1.40625E-2},null,{"$f":"IF(AND(NOT(ISBLANK(K16)),NOT(ISBLANK(L16))),('Bewertung durch Anwender'!K16),IF(AND(NOT(ISBLANK(J16)),NOT(ISBLANK(I16))),('Bewertung durch Anwender'!I16),(Zielvereinbarung!G16)))","v":0},{"$f":"Zielvereinbarung!G16","v":0},null,null,null,null,null,null,null,{"$f":"'BNB-System'!H12","v":100},0]
[null,{"$f":"'BNB-System'!B13","v":" 1.1.5"},{"$f":"'BNB-System'!C13","v":"Überdüngungspotenzial (EP)"},{"$f":"'BNB-System'!D13","v":100},{"$f":"'BNB-System'!G13","v":1.40625E-2},null,{"$f":"IF(AND(NOT(ISBLANK(K17)),NOT(ISBLANK(L17))),('Bewertung durch Anwender'!K17),IF(AND(NOT(ISBLANK(J17)),NOT(ISBLANK(I17))),('Bewertung durch Anwender'!I17),(Zielvereinbarung!G17)))","v":0},{"$f":"Zielvereinbarung!G17","v":0},null,null,null,null,null,null,null,{"$f":"'BNB-System'!H13","v":100},0]
[null,{"$f":"'BNB-System'!B14","v":" 1.1.6"},{"$f":"'BNB-System'!C14","v":"Risiken für die lokale Umwelt"},{"$f":"'BNB-System'!D14","v":100},{"$f":"'BNB-System'!G14","v":4.2187500000000003E-2},null,{"$f":"IF(AND(NOT(ISBLANK(K18)),NOT(ISBLANK(L18))),('Bewertung durch Anwender'!K18),IF(AND(NOT(ISBLANK(J18)),NOT(ISBLANK(I18))),('Bewertung durch Anwender'!I18),(Zielvereinbarung!G18)))","v":0},{"$f":"Zielvereinbarung!G18","v":0},null,null,null,null,null,null,null,{"$f":"'BNB-System'!H14","v":300},0]
[null,{"$f":"'BNB-System'!B15","v":" 1.1.7"},{"$f":"'BNB-System'!C15","v":"Nachhaltige Materialgewinnung / Biodiversität"},{"$f":"'BNB-System'!D15","v":100},{"$f":"'BNB-System'!G15","v":1.40625E-2},null,{"$f":"IF(AND(NOT(ISBLANK(K19)),NOT(ISBLANK(L19))),('Bewertung durch Anwender'!K19),IF(AND(NOT(ISBLANK(J19)),NOT(ISBLANK(I19))),('Bewertung durch Anwender'!I19),(Zielvereinbarung!G19)))","v":0},{"$f":"Zielvereinbarung!G19","v":0},null,null,null,null,null,null,null,{"$f":"'BNB-System'!H15","v":100},0]
[null,null,{"$f":"'BNB-System'!C16","v":"Ressourceninanspruchnahme"},null,null,null,null,null,null,null,null,null,null,null,null,{"$f":"'BNB-System'!H16","v":0}]
[null,{"$f":"'BNB-System'!B17","v":" 1.2.1"},{"$f":"'BNB-System'!C17","v":"Primärenergiebedarf"},{"$f":"'BNB-System'!D17","v":100},{"$f":"'BNB-System'!G17","v":4.2187500000000003E-2},null,{"$f":"IF(AND(NOT(ISBLANK(K21)),NOT(ISBLANK(L21))),('Bewertung durch Anwender'!K21),IF(AND(NOT(ISBLANK(J21)),NOT(ISBLANK(I21))),('Bewertung durch Anwender'!I21),(Zielvereinbarung!G21)))","v":0},{"$f":"Zielvereinbarung!G21","v":0},null,null,null,null,{"$f":"IF(SUM(M22:M24)>100,100,SUM(M22:M24))","v":0},{"$f":"IF(SUM(N22:N24)>100,100,SUM(N22:N24))","v":0},null,{"$f":"'BNB-System'!H17","v":300},{"$f":"IF(ISNUMBER(E21*N21/100),E21*N21/100,0)","v":0}]
[null,null,{"$f":"'BNB-System'!C18","v":"Primärenergiebedarf nicht erneuerbar (PEne)"},{"$f":"'BNB-System'!D18","v":60},null,null,{"$f":"IF(AND(NOT(ISBLANK(K22)),NOT(ISBLANK(L22))),('Bewertung durch Anwender'!K22),IF(AND(NOT(ISBLANK(J22)),NOT(ISBLANK(I22))),('Bewertung durch Anwender'!I22),(Zielvereinbarung!G22)))","v":0},{"$f":"Zielvereinbarung!G22","v":0},null,null,null,null,null,null,null,{"$f":"'BNB-System'!H18","v":0}]
[null,null,{"$f":"'BNB-System'!C19","v":"Gesamtprimärenergiebedarf (PEges)"},{"$f":"'BNB-System'!D19","v":40},null,null,{"$f":"IF(AND(NOT(ISBLANK(K23)),NOT(ISBLANK(L23))),('Bewertung durch Anwender'!K23),IF(AND(NOT(ISBLANK(J23)),NOT(ISBLANK(I23))),('Bewertung durch Anwender'!I23),(Zielvereinbarung!G23)))","v":0},{"$f":"Zielvereinbarung!G23","v":0},null,null,null,null,null,null,null,{"$f":"'BNB-System'!H19","v":0}]
[null,null,{"$f":"'BNB-System'!C20","v":"Anteil erneuerbarer Primärenergie"},{"$f":"'BNB-System'!D20","v":20},null,null,{"$f":"IF(AND(NOT(ISBLANK(K24)),NOT(ISBLANK(L24))),('Bewertung durch Anwender'!K24),IF(AND(NOT(ISBLANK(J24)),NOT(ISBLANK(I24))),('Bewertung durch Anwender'!I24),(Zielvereinbarung!G24)))","v":0},{"$f":"Zielvereinbarung!G24","v":0},null,null,null,null,null,null,null,{"$f":"'BNB-System'!H20","v":0}]
[null,{"$f":"'BNB-System'!B21","v":" 1.2.3"},{"$f":"'BNB-System'!C21","v":"Trinkwasserbedarf und Abwasseraufkommen"},{"$f":"'BNB-System'!D21","v":100},{"$f":"'BNB-System'!G21","v":1.40625E-2},null,{"$f":"IF(AND(NOT(ISBLANK(K25)),NOT(ISBLANK(L25))),('Bewertung durch Anwender'!K25),IF(AND(NOT(ISBLANK(J25)),NOT(ISBLANK(I25))),('Bewertung durch Anwender'!I25),(Zielvereinbarung!G25)))","v":0},{"$f":"Zielvereinbarung!G25","v":0},null,null,null,null,null,null,null,{"$f":"'BNB-System'!H21","v":100},{"$f":"IF(ISNUMBER(E25*N25/100),E25*N25/100,0)","v":0}]
[null,{"$f":"'BNB-System'!B22","v":" 1.2.4"},{"$f":"'BNB-System'!C22","v":"Flächeninanspruchnahme"},{"$f":"'BNB-System'!D22","v":100},{"$f":"'BNB-System'!G22","v":1.40625E-2},null,{"$f":"IF(AND(NOT(ISBLANK(K26)),NOT(ISBLANK(L26))),('Bewertung durch Anwender'!K26),IF(AND(NOT(ISBLANK(J26)),NOT(ISBLANK(I26))),('Bewertung durch Anwender'!I26),(Zielvereinbarung!G26)))","v":0},{"$f":"Zielvereinbarung!G26","v":0},null,null,null,null,null,null,null,{"$f":"'BNB-System'!H22","v":100},{"$f":"IF(ISNUMBER(E26*N26/100),E26*N26/100,0)","v":0}]
[null,null,null,null,null,null,null,null,null,null,null,null,null,null,null,{"$f":"'BNB-System'!H23","v":0}]
[null,{"$f":"'BNB-System'!B24","v":"Ökonomische Qualität"},null,null,{"$f":"'BNB-System'!G24","v":0.22500000000000001},null,{"$f":"IF(AND(NOT(ISBLANK(K28)),NOT(ISBLANK(L28))),('Bewertung durch Anwender'!K28),IF(AND(NOT(ISBLANK(J28)),NOT(ISBLANK(I28))),('Bewertung durch Anwender'!I28),(Zielvereinbarung!G28)))","v":0},{"$f":"Zielvereinbarung!G28","v":0},null,null,null,null,{"$f":"M31*($E$31/100)+M33*($E$33/100)+M34*($E$34/100)","v":0},{"$f":"N31*($E$31/100)+N33*($E$33/100)+N34*($E$34/100)","v":0},null,{"$f":"'BNB-System'!H24","v":600}]
[null,{"$f":"'BNB-System'!B25","v":0},null,null,null,null,null,null,null,null,null,null,null,null,null,{"$f":"'BNB-System'!H25","v":0}]
[null,null,{"$f":"'BNB-System'!C26","v":"Lebenszykluskosten"},null,null,null,null,null,null,null,null,null,null,null,null,{"$f":"'BNB-System'!H26","v":0}]
[null,{"$f":"'BNB-System'!B27","v":" 2.1.1"},{"$f":"'BNB-System'!C27","v":"Gebäudebezogene Kosten im Lebenszyklus"},{"$f":"'BNB-System'!D27","v":100},{"$f":"'BNB-System'!G27","v":0.1125},null,{"$f":"IF(AND(NOT(ISBLANK(K31)),NOT(ISBLANK(L31))),('Bewertung durch Anwender'!K31),IF(AND(NOT(ISBLANK(J31)),NOT(ISBLANK(I31))),('Bewertung durch Anwender'!I31),(Zielvereinbarung!G31)))","v":0},{"$f":"Zielvereinbarung!G31","v":0},null,null,null,null,null,null,null,{"$f":"'BNB-System'!H27","v":300},{"$f":"IF(ISNUMBER(E31*N31/100),E31*N31/100,0)","v":0}]
[null,null,{"$f":"'BNB-System'!C28","v":"Wirtschaftlichkeit und Wertstabilität"},null,null,null,null,null,null,null,null,null,null,null,null,{"$f":"'BNB-System'!H28","v":0}]
[null,{"$f":"'BNB-System'!B29","v":" 2.2.1"},{"$f":"'BNB-System'!C29","v":"Flächeneffizienz"},{"$f":"'BNB-System'!D29","v":100},{"$f":"'BNB-System'!G29","v":3.7499999999999999E-2},null,{"$f":"IF(AND(NOT(ISBLANK(K33)),NOT(ISBLANK(L33))),('Bewertung durch Anwender'!K33),IF(AND(NOT(ISBLANK(J33)),NOT(ISBLANK(I33))),('Bewertung durch Anwender'!I33),(Zielvereinbarung!G33)))","v":0},{"$f":"Zielvereinbarung!G33","v":0},null,null,null,null,null,null,null,{"$f":"'BNB-System'!H29","v":100},{"$f":"IF(ISNUMBER(E33*N33/100),E33*N33/100,0)","v":0}]
[null,{"$f":"'BNB-System'!B30","v":" 2.2.2"},{"$f":"'BNB-System'!C30","v":"Anpassungsfähigkeit "},{"$f":"'BNB-System'!D30","v":100},{"$f":"'BNB-System'!G30","v":7.4999999999999997E-2},null,{"$f":"IF(AND(NOT(ISBLANK(K34)),NOT(ISBLANK(L34))),('Bewertung durch Anwender'!K34),IF(AND(NOT(ISBLANK(J34)),NOT(ISBLANK(I34))),('Bewertung durch Anwender'!I34),(Zielvereinbarung!G34)))","v":0},{"$f":"Zielvereinbarung!G34","v":0},null,null,null,null,null,null,null,{"$f":"'BNB-System'!H30","v":200},{"$f":"IF(ISNUMBER(E34*N34/100),E34*N34/100,0)","v":0}]
[null,null,{"$f":"'BNB-System'!C31","v":"Raumhöhe"},{"$f":"'BNB-System'!D31","v":8},null,null,{"$f":"IF(AND(NOT(ISBLANK(K35)),NOT(ISBLANK(L35))),('Bewertung durch Anwender'!K35),IF(AND(NOT(ISBLANK(J35)),NOT(ISBLANK(I35))),('Bewertung durch Anwender'!I35),(Zielvereinbarung!G35)))","v":0},{"$f":"Zielvereinbarung!G35","v":0},null,null,null,null,null,null,null,{"$f":"'BNB-System'!H31","v":0}]
[null,null,{"$f":"'BNB-System'!C32","v":"Grundrissorganisation"},null,null,null,null,{"$f":"Zielvereinbarung!G36","v":0},null,null,null,null,null,null,null,{"$f":"'BNB-System'!H32","v":0}]
[null,null,{"$f":"'BNB-System'!C33","v":"Positionierung der Erschließung"},{"$f":"'BNB-System'!D33","v":5},null,null,{"$f":"IF(AND(NOT(ISBLANK(K37)),NOT(ISBLANK(L37))),('Bewertung durch Anwender'!K37),IF(AND(NOT(ISBLANK(J37)),NOT(ISBLANK(I37))),('Bewertung durch Anwender'!I37),(Zielvereinbarung!G37)))","v":0},{"$f":"Zielvereinbarung!G37","v":0},null,null,null,null,null,null,null,{"$f":"'BNB-System'!H33","v":0}]
[null,null,{"$f":"'BNB-System'!C34","v":"Rettungswege"},{"$f":"'BNB-System'!D34","v":2},null,null,{"$f":"IF(AND(NOT(ISBLANK(K38)),NOT(ISBLANK(L38))),('Bewertung durch Anwender'!K38),IF(AND(NOT(ISBLANK(J38)),NOT(ISBLANK(I38))),('Bewertung durch Anwender'!I38),(Zielvereinbarung!G38)))","v":0},{"$f":"Zielvereinbarung!G38","v":0},null,null,null,null,null,null,null,{"$f":"'BNB-System'!H34","v":0}]
[null,null,{"$f":"'BNB-System'!C35","v":"sanitäre Anlagen"},{"$f":"'BNB-System'!D35","v":2},null,null,{"$f":"IF(AND(NOT(ISBLANK(K39)),NOT(ISBLANK(L39))),('Bewertung durch Anwender'!K39),IF(AND(NOT(ISBLANK(J39)),NOT(ISBLANK(I39))),('Bewertung durch Anwender'!I39),(Zielvereinbarung!G39)))","v":0},{"$f":"Zielvereinbarung!G39","v":0},null,null,null,null,null,null,null,{"$f":"'BNB-System'!H35","v":0}]
[null,null,{"$f":"'BNB-System'!C36","v":"Konstruktion"},null,null,null,null,{"$f":"Zielvereinbarung!G40","v":0},null,null,null,null,null,null,null,{"$f":"'BNB-System'!H36","v":0}]
[null,null,{"$f":"'BNB-System'!C37","v":"Anteil nicht tragender Innenwände"},{"$f":"'BNB-System'!D37","v":5},null,null,{"$f":"IF(AND(NOT(ISBLANK(K41)),NOT(ISBLANK(L41))),('Bewertung durch Anwender'!K41),IF(AND(NOT(ISBLANK(J41)),NOT(ISBLANK(I41))),('Bewertung durch Anwender'!I41),(Zielvereinbarung!G41)))","v":0},{"$f":"Zielvereinbarung!G41","v":0},null,null,null,null,null,null,null,{"$f":"'BNB-System'!H37","v":0}]
[null,null,{"$f":"'BNB-System'!C38","v":"Anschluss von Trennwänden an der Fassadenachse"},{"$f":"'BNB-System'!D38","v":1},null,null,{"$f":"IF(AND(NOT(ISBLANK(K42)),NOT(ISBLANK(L42))),('Bewertung durch Anwender'!K42),IF(AND(NOT(ISBLANK(J42)),NOT(ISBLANK(I42))),('Bewertung durch Anwender'!I42),(Zielvereinbarung!G42)))","v":0},{"$f":"Zielvereinbarung!G42","v":0},null,null,null,null,null,null,null,{"$f":"'BNB-System'!H38","v":0}]
[null,null,{"$f":"'BNB-System'!C39","v":"kein Eingriff von Trennwänden in Fußboden, Decke, Abhangdecke"},{"$f":"'BNB-System'!D39","v":1},null,null,{"$f":"IF(AND(NOT(ISBLANK(K43)),NOT(ISBLANK(L43))),('Bewertung durch Anwender'!K43),IF(AND(NOT(ISBLANK(J43)),NOT(ISBLANK(I43))),('Bewertung durch Anwender'!I43),(Zielvereinbarung!G43)))","v":0},{"$f":"Zielvereinbarung!G43","v":0},null,null,null,null,null,null,null,{"$f":"'BNB-System'!H39","v":0}]
[null,null,{"$f":"'BNB-System'!C40","v":"zulässige Nutzlasten"},{"$f":"'BNB-System'!D40","v":1},null,null,{"$f":"IF(AND(NOT(ISBLANK(K44)),NOT(ISBLANK(L44))),('Bewertung durch Anwender'!K44),IF(AND(NOT(ISBLANK(J44)),NOT(ISBLANK(I44))),('Bewertung durch Anwender'!I44),(Zielvereinbarung!G44)))","v":0},{"$f":"Zielvereinbarung!G44","v":0},null,null,null,null,null,null,null,{"$f":"'BNB-System'!H40","v":0}]
[null,null,{"$f":"'BNB-System'!C41","v":"Technische Ausstattung"},null,null,null,null,{"$f":"Zielvereinbarung!G45","v":0},null,null,null,null,null,null,null,{"$f":"'BNB-System'!H41","v":0}]
[null,null,{"$f":"'BNB-System'!C42","v":"Technische Ausstattung"},{"$f":"'BNB-System'!D42","v":75},null,null,{"$f":"IF(AND(NOT(ISBLANK(K46)),NOT(ISBLANK(L46))),('Bewertung durch Anwender'!K46),IF(AND(NOT(ISBLANK(J46)),NOT(ISBLANK(I46))),('Bewertung durch Anwender'!I46),(Zielvereinbarung!G46)))","v":0},{"$f":"Zielvereinbarung!G46","v":0},null,null,null,null,null,null,null,{"$f":"'BNB-System'!H42","v":0}]
[null,null,null,null,null,null,null,null,null,null,null,null,null,null,null,{"$f":"'BNB-System'!H43","v":0}]
[null,{"$f":"'BNB-System'!B44","v":"Soziokulturelle und funktionale Qualität"},null,null,{"$f":"'BNB-System'!G44","v":0.22500000000000001},null,{"$f":"IF(AND(NOT(ISBLANK(K48)),NOT(ISBLANK(L48))),('Bewertung durch Anwender'!K48),IF(AND(NOT(ISBLANK(J48)),NOT(ISBLANK(I48))),('Bewertung durch Anwender'!I48),(Zielvereinbarung!G48)))","v":0},{"$f":"Zielvereinbarung!G48","v":0},null,null,null,null,{"$f":"M51*($E$51/100)+M62*($E$62/100)+M65*($E$65/100)+M73*($E$73/100)+M81*($E$81/100)+M90*($E$90/100)+M104*($E$104/100)+M114*($E$114/100)+M115*($E$115/100)+M119*($E$119/100)+M140*($E$140/100)+M148*($E$148/100)","v":0},{"$f":"N51*($E$51/100)+N62*($E$62/100)+N65*($E$65/100)+N73*($E$73/100)+N81*($E$81/100)+N90*($E$90/100)+N104*($E$104/100)+N114*($E$114/100)+N115*($E$115/100)+N119*($E$119/100)+N140*($E$140/100)+N148*($E$148/100)","v":0},null,{"$f":"'BNB-System'!H44","v":1800}]
[null,null,null,null,null,null,null,null,null,null,null,null,null,null,null,{"$f":"'BNB-System'!H45","v":0}]
[null,null,{"$f":"'BNB-System'!C46","v":"Gesundheit, Behaglichkeit und Nutzerzufriedenheit"},null,null,null,null,null,null,null,null,null,null,null,null,{"$f":"'BNB-System'!H46","v":0}]
[null,{"$f":"'BNB-System'!B47","v":" 3.1.1"},{"$f":"'BNB-System'!C47","v":"Thermischer Komfort"},{"$f":"'BNB-System'!D47","v":100},{"$f":"'BNB-System'!G47","v":2.4999999999999998E-2},null,{"$f":"IF(AND(NOT(ISBLANK(K51)),NOT(ISBLANK(L51))),('Bewertung durch Anwender'!K51),IF(AND(NOT(ISBLANK(J51)),NOT(ISBLANK(I51))),('Bewertung durch Anwender'!I51),(Zielvereinbarung!G51)))","v":0},{"$f":"Zielvereinbarung!G51","v":0},null,null,null,null,{"$f":"SUM(M53:M56,M58:M61)","v":0},{"$f":"SUM(N53:N56,N58:N61)","v":0},null,{"$f":"'BNB-System'!H47","v":200},{"$f":"IF(ISNUMBER(E51*N51/100),E51*N51/100,0)","v":0}]
[null,null,{"$f":"'BNB-System'!C48","v":"Winter"},null,null,null,{"$f":"IF(Zielvereinbarung!E52=0,\"\",Zielvereinbarung!E52)","v":""},{"$f":"Zielvereinbarung!G52","v":0},null,null,null,null,null,null,null,{"$f":"'BNB-System'!H48","v":0}]
[null,null,{"$f":"'BNB-System'!C49","v":"Operative Temperatur"},{"$f":"'BNB-System'!D49","v":10},null,null,{"$f":"IF(AND(NOT(ISBLANK(K53)),NOT(ISBLANK(L53))),('Bewertung durch Anwender'!K53),IF(AND(NOT(ISBLANK(J53)),NOT(ISBLANK(I53))),('Bewertung durch Anwender'!I53),(Zielvereinbarung!G53)))","v":0},{"$f":"Zielvereinbarung!G53","v":0},null,null,null,null,null,null,null,{"$f":"'BNB-System'!H49","v":0}]
[null,null,{"$f":"'BNB-System'!C50","v":" Zugluft"},{"$f":"'BNB-System'!D50","v":10},null,null,{"$f":"IF(AND(NOT(ISBLANK(K54)),NOT(ISBLANK(L54))),('Bewertung durch Anwender'!K54),IF(AND(NOT(ISBLANK(J54)),NOT(ISBLANK(I54))),('Bewertung durch Anwender'!I54),(Zielvereinbarung!G54)))","v":0},{"$f":"Zielvereinbarung!G54","v":0},null,null,null,null,null,null,null,{"$f":"'BNB-System'!H50","v":0}]
[null,null,{"$f":"'BNB-System'!C51","v":"Stahlungstemperaturasymmetrie und Fußbodentemperatur"},{"$f":"'BNB-System'!D51","v":10},null,null,{"$f":"IF(AND(NOT(ISBLANK(K55)),NOT(ISBLANK(L55))),('Bewertung durch Anwender'!K55),IF(AND(NOT(ISBLANK(J55)),NOT(ISBLANK(I55))),('Bewertung durch Anwender'!I55),(Zielvereinbarung!G55)))","v":0},{"$f":"Zielvereinbarung!G55","v":0},null,null,null,null,null,null,null,{"$f":"'BNB-System'!H51","v":0}]
[null,null,{"$f":"'BNB-System'!C52","v":"Luftfeuchte"},{"$f":"'BNB-System'!D52","v":10},null,null,{"$f":"IF(AND(NOT(ISBLANK(K56)),NOT(ISBLANK(L56))),('Bewertung durch Anwender'!K56),IF(AND(NOT(ISBLANK(J56)),NOT(ISBLANK(I56))),('Bewertung durch Anwender'!I56),(Zielvereinbarung!G56)))","v":0},{"$f":"Zielvereinbarung!G56","v":0},null,null,null,null,null,null,null,{"$f":"'BNB-System'!H52","v":0}]
[null,null,{"$f":"'BNB-System'!C53","v":"Sommer"},null,null,null,{"$f":"IF(Zielvereinbarung!E57=0,\"\",Zielvereinbarung!E57)","v":""},{"$f":"Zielvereinbarung!G57","v":0},null,null,null,null,null,null,null,{"$f":"'BNB-System'!H53","v":0}]
[null,null,{"$f":"'BNB-System'!C54","v":"Operative Temperatur"},{"$f":"'BNB-System'!D54","v":30},null,null,{"$f":"IF(AND(NOT(ISBLANK(K58)),NOT(ISBLANK(L58))),('Bewertung durch Anwender'!K58),IF(AND(NOT(ISBLANK(J58)),NOT(ISBLANK(I58))),('Bewertung durch Anwender'!I58),(Zielvereinbarung!G58)))","v":0},{"$f":"Zielvereinbarung!G58","v":0},null,null,null,null,null,null,null,{"$f":"'BNB-System'!H54","v":0}]
[null,null,{"$f":"'BNB-System'!C55","v":" Zugluft"},{"$f":"'BNB-System'!D55","v":10},null,null,{"$f":"IF(AND(NOT(ISBLANK(K59)),NOT(ISBLANK(L59))),('Bewertung durch Anwender'!K59),IF(AND(NOT(ISBLANK(J59)),NOT(ISBLANK(I59))),('Bewertung durch Anwender'!I59),(Zielvereinbarung!G59)))","v":0},{"$f":"Zielvereinbarung!G59","v":0},null,null,null,null,null,null,null,{"$f":"'BNB-System'!H55","v":0}]
[null,null,{"$f":"'BNB-System'!C56","v":"Stahlungstemperaturasymmetrie und Fußbodentemperatur"},{"$f":"'BNB-System'!D56","v":10},null,null,{"$f":"IF(AND(NOT(ISBLANK(K60)),NOT(ISBLANK(L60))),('Bewertung durch Anwender'!K60),IF(AND(NOT(ISBLANK(J60)),NOT(ISBLANK(I60))),('Bewertung durch Anwender'!I60),(Zielvereinbarung!G60)))","v":0},{"$f":"Zielvereinbarung!G60","v":0},null,null,null,null,null,null,null,{"$f":"'BNB-System'!H56","v":0}]
[null,null,{"$f":"'BNB-System'!C57","v":"Luftfeuchte"},{"$f":"'BNB-System'!D57","v":10},null,null,{"$f":"IF(AND(NOT(ISBLANK(K61)),NOT(ISBLANK(L61))),('Bewertung durch Anwender'!K61),IF(AND(NOT(ISBLANK(J61)),NOT(ISBLANK(I61))),('Bewertung durch Anwender'!I61),(Zielvereinbarung!G61)))","v":0},{"$f":"Zielvereinbarung!G61","v":0},null,null,null,null,null,null,null,{"$f":"'BNB-System'!H57","v":0}]
[null,{"$f":"'BNB-System'!B58","v":" 3.1.3"},{"$f":"'BNB-System'!C58","v":"Innenraumlufthygiene"},{"$f":"'BNB-System'!D58","v":100},{"$f":"'BNB-System'!G58","v":2.4999999999999998E-2},null,{"$f":"IF(AND(NOT(ISBLANK(K62)),NOT(ISBLANK(L62))),('Bewertung durch Anwender'!K62),IF(AND(NOT(ISBLANK(J62)),NOT(ISBLANK(I62))),('Bewertung durch Anwender'!I62),(Zielvereinbarung!G62)))","v":0},{"$f":"Zielvereinbarung!G62","v":0},null,null,null,null,{"$f":"SUM(M63:M64)","v":0},{"$f":"SUM(N63:N64)","v":0},null,{"$f":"'BNB-System'!H58","v":200},{"$f":"IF(ISNUMBER(E62*N62/100),E62*N62/100,0)","v":0}]
[null,null,{"$f":"'BNB-System'!C59","v":"Flüchtige organische Stoffe (VOC) und Formaldehyd"},{"$f":"'BNB-System'!D59","v":50},null,null,{"$f":"IF(AND(NOT(ISBLANK(K63)),NOT(ISBLANK(L63))),('Bewertung durch Anwender'!K63),IF(AND(NOT(ISBLANK(J63)),NOT(ISBLANK(I63))),('Bewertung durch Anwender'!I63),(Zielvereinbarung!G63)))","v":0},{"$f":"Zielvereinbarung!G63","v":0},null,null,null,null,null,null,null,{"$f":"'BNB-System'!H59","v":0}]
[null,null,{"$f":"'BNB-System'!C60","v":"Kohlendioxidgehalt"},{"$f":"'BNB-System'!D60","v":50},null,null,{"$f":"IF(AND(NOT(ISBLANK(K64)),NOT(ISBLANK(L64))),('Bewertung durch Anwender'!K64),IF(AND(NOT(ISBLANK(J64)),NOT(ISBLANK(I64))),('Bewertung durch Anwender'!I64),(Zielvereinbarung!G64)))","v":0},{"$f":"Zielvereinbarung!G64","v":0},null,null,null,null,null,null,null,{"$f":"'BNB-System'!H60","v":0}]
[null,{"$f":"'BNB-System'!B61","v":" 3.1.4"},{"$f":"'BNB-System'!C61","v":"Akustischer Komfort"},{"$f":"'BNB-System'!D61","v":100},{"$f":"'BNB-System'!G61","v":1.2499999999999999E-2},null,{"$f":"IF(AND(NOT(ISBLANK(K65)),NOT(ISBLANK(L65))),('Bewertung durch Anwender'!K65),IF(AND(NOT(ISBLANK(J65)),NOT(ISBLANK(I65))),('Bewertung durch Anwender'!I65),(Zielvereinbarung!G65)))","v":0},{"$f":"Zielvereinbarung!G65","v":0},null,null,null,null,{"$f":"(IF(IF((ISNUMBER(ROUND(M67/(M67+M69+M71)*M66+M69/(M67+M69+M71)*M68+M71/(M67+M69+M71)*M70,1))),ROUND(M67/(M67+M69+M71)*M66+M69/(M67+M69+M71)*M68+M71/(M67+M69+M71)*M70,1),0)>100,100,IF(ISNUMBER(ROUND(M67/(M67+M69+M71)*M66+M69/(M67+M69+M71)*M68+M71/(M67+M69+M71)*M70,1)),ROUND(M67/(M67+M69+M71)*M66+M69/(M67+M69+M71)*M68+M71/(M67+M69+M71)*M70,1),0)))-M72","v":0},{"$f":"(IF(IF((ISNUMBER(ROUND(N67/(N67+N69+N71)*N66+N69/(N67+N69+N71)*N68+N71/(N67+N69+N71)*N70,1))),ROUND(N67/(N67+N69+N71)*N66+N69/(N67+N69+N71)*N68+N71/(N67+N69+N71)*N70,1),0)>100,100,IF(ISNUMBER(ROUND(N67/(N67+N69+N71)*N66+N69/(N67+N69+N71)*N68+N71/(N67+N69+N71)*N70,1)),ROUND(N67/(N67+N69+N71)*N66+N69/(N67+N69+N71)*N68+N71/(N67+N69+N71)*N70,1),0)))-N72","v":0},null,{"$f":"'BNB-System'!H61","v":100},{"$f":"IF(ISNUMBER(E65*N65/100),E65*N65/100,0)","v":0}]
[null,null,{"$f":"'BNB-System'!C62","v":"Einzel- und Mehrpersonenbüros bis 100 m²"},{"$f":"'BNB-System'!D62","v":100},null,null,{"$f":"IF(AND(NOT(ISBLANK(K66)),NOT(ISBLANK(L66))),('Bewertung durch Anwender'!K66),IF(AND(NOT(ISBLANK(J66)),NOT(ISBLANK(I66))),('Bewertung durch Anwender'!I66),(Zielvereinbarung!G66)))","v":0},{"$f":"Zielvereinbarung!G66","v":0},null,null,null,null,null,null,null,{"$f":"'BNB-System'!H62","v":0}]
[null,null,{"$f":"'BNB-System'!C63","v":"NF Einzel- und Mehrpersonenbüros bis 100 m² "},{"$f":"'BNB-System'!D63","v":0},null,null,{"$f":"IF(AND(NOT(ISBLANK(K67)),NOT(ISBLANK(L67))),('Bewertung durch Anwender'!K67),IF(AND(NOT(ISBLANK(J67)),NOT(ISBLANK(I67))),('Bewertung durch Anwender'!I67),(Zielvereinbarung!G67)))","v":0},{"$f":"Zielvereinbarung!G67","v":0},null,null,null,null,null,null,null,{"$f":"'BNB-System'!H63","v":0}]
[null,null,{"$f":"'BNB-System'!C64","v":"Mehrpersonenbüros über 100 m²"},{"$f":"'BNB-System'!D64","v":100},null,null,{"$f":"IF(AND(NOT(ISBLANK(K68)),NOT(ISBLANK(L68))),('Bewertung durch Anwender'!K68),IF(AND(NOT(ISBLANK(J68)),NOT(ISBLANK(I68))),('Bewertung durch Anwender'!I68),(Zielvereinbarung!G68)))","v":0},{"$f":"Zielvereinbarung!G68","v":0},null,null,null,null,null,null,null,{"$f":"'BNB-System'!H64","v":0}]
[null,null,{"$f":"'BNB-System'!C65","v":"NF Mehrpersonenbüros über 100m²"},{"$f":"'BNB-System'!D65","v":0},null,null,{"$f":"IF(AND(NOT(ISBLANK(K69)),NOT(ISBLANK(L69))),('Bewertung durch Anwender'!K69),IF(AND(NOT(ISBLANK(J69)),NOT(ISBLANK(I69))),('Bewertung durch Anwender'!I69),(Zielvereinbarung!G69)))","v":0},{"$f":"Zielvereinbarung!G69","v":0},null,null,null,null,null,null,null,{"$f":"'BNB-System'!H65","v":0}]
[null,null,{"$f":"'BNB-System'!C66","v":"Weitere Räume über geringere (Gesprächs-)Entfernung (außer Büros)"},{"$f":"'BNB-System'!D66","v":100},null,null,{"$f":"IF(AND(NOT(ISBLANK(K70)),NOT(ISBLANK(L70))),('Bewertung durch Anwender'!K70),IF(AND(NOT(ISBLANK(J70)),NOT(ISBLANK(I70))),('Bewertung durch Anwender'!I70),(Zielvereinbarung!G70)))","v":0},{"$f":"Zielvereinbarung!G70","v":0},null,null,null,null,null,null,null,{"$f":"'BNB-System'!H66","v":0}]
[null,null,{"$f":"'BNB-System'!C67","v":"NF weiterer Räume"},{"$f":"'BNB-System'!D67","v":0},null,null,{"$f":"IF(AND(NOT(ISBLANK(K71)),NOT(ISBLANK(L71))),('Bewertung durch Anwender'!K71),IF(AND(NOT(ISBLANK(J71)),NOT(ISBLANK(I71))),('Bewertung durch Anwender'!I71),(Zielvereinbarung!G71)))","v":0},{"$f":"Zielvereinbarung!G71","v":0},null,null,null,null,null,null,null,{"$f":"'BNB-System'!H67","v":0}]
[null,null,{"$f":"'BNB-System'!C68","v":"Punktabzug"},{"$f":"'BNB-System'!D68","v":0},null,null,{"$f":"IF(AND(NOT(ISBLANK(K72)),NOT(ISBLANK(L72))),('Bewertung durch Anwender'!K72),IF(AND(NOT(ISBLANK(J72)),NOT(ISBLANK(I72))),('Bewertung durch Anwender'!I72),(Zielvereinbarung!G72)))","v":0},{"$f":"Zielvereinbarung!G72","v":0},null,null,null,null,null,null,null,{"$f":"'BNB-System'!H68","v":0}]
[null,{"$f":"'BNB-System'!B69","v":" 3.1.5"},{"$f":"'BNB-System'!C69","v":"Visueller Komfort"},{"$f":"'BNB-System'!D69","v":100},{"$f":"'BNB-System'!G69","v":2.4999999999999998E-2},null,{"$f":"IF(AND(NOT(ISBLANK(K73)),NOT(ISBLANK(L73))),('Bewertung durch Anwender'!K73),IF(AND(NOT(ISBLANK(J73)),NOT(ISBLANK(I73))),('Bewertung durch Anwender'!I73),(Zielvereinbarung!G73)))","v":0},{"$f":"Zielvereinbarung!G73","v":0},null,null,null,null,{"$f":"SUM(M74:M80)","v":0},{"$f":"SUM(N74:N80)","v":0},null,{"$f":"'BNB-System'!H69","v":200},{"$f":"IF(ISNUMBER(E73*N73/100),E73*N73/100,0)","v":0}]
[null,null,{"$f":"'BNB-System'!C70","v":"Tageslichtverfügbarkeit Gesamtgebäude"},{"$f":"'BNB-System'!D70","v":15},null,null,{"$f":"IF(AND(NOT(ISBLANK(K74)),NOT(ISBLANK(L74))),('Bewertung durch Anwender'!K74),IF(AND(NOT(ISBLANK(J74)),NOT(ISBLANK(I74))),('Bewertung durch Anwender'!I74),(Zielvereinbarung!G74)))","v":0},{"$f":"Zielvereinbarung!G74","v":0},null,null,null,null,null,null,null,{"$f":"'BNB-System'!H70","v":0}]
[null,null,{"$f":"'BNB-System'!C71","v":"Tageslichtverfügbarkeit ständige Arbeitsplätze"},{"$f":"'BNB-System'!D71","v":15},null,null,{"$f":"IF(AND(NOT(ISBLANK(K75)),NOT(ISBLANK(L75))),('Bewertung durch Anwender'!K75),IF(AND(NOT(ISBLANK(J75)),NOT(ISBLANK(I75))),('Bewertung durch Anwender'!I75),(Zielvereinbarung!G75)))","v":0},{"$f":"Zielvereinbarung!G75","v":0},null,null,null,null,null,null,null,{"$f":"'BNB-System'!H71","v":0}]
[null,null,{"$f":"'BNB-System'!C72","v":"Nachweis der Sichtverbindung nach außen"},{"$f":"'BNB-System'!D72","v":25},null,null,{"$f":"IF(AND(NOT(ISBLANK(K76)),NOT(ISBLANK(L76))),('Bewertung durch Anwender'!K76),IF(AND(NOT(ISBLANK(J76)),NOT(ISBLANK(I76))),('Bewertung durch Anwender'!I76),(Zielvereinbarung!G76)))","v":0},{"$f":"Zielvereinbarung!G76","v":0},null,null,null,null,null,null,null,{"$f":"'BNB-System'!H72","v":0}]
[null,null,{"$f":"'BNB-System'!C73","v":"Blendfreiheit Tageslicht"},{"$f":"'BNB-System'!D73","v":12},null,null,{"$f":"IF(AND(NOT(ISBLANK(K77)),NOT(ISBLANK(L77))),('Bewertung durch Anwender'!K77),IF(AND(NOT(ISBLANK(J77)),NOT(ISBLANK(I77))),('Bewertung durch Anwender'!I77),(Zielvereinbarung!G77)))","v":0},{"$f":"Zielvereinbarung!G77","v":0},null,null,null,null,null,null,null,{"$f":"'BNB-System'!H73","v":0}]
[null,null,{"$f":"'BNB-System'!C74","v":"Blendfreiheit  Kunstlicht"},{"$f":"'BNB-System'!D74","v":9},null,null,{"$f":"IF(AND(NOT(ISBLANK(K78)),NOT(ISBLANK(L78))),('Bewertung durch Anwender'!K78),IF(AND(NOT(ISBLANK(J78)),NOT(ISBLANK(I78))),('Bewertung durch Anwender'!I78),(Zielvereinbarung!G78)))","v":0},{"$f":"Zielvereinbarung!G78","v":0},null,null,null,null,null,null,null,{"$f":"'BNB-System'!H74","v":0}]
[null,null,{"$f":"'BNB-System'!C75","v":"Lichtverteilung"},{"$f":"'BNB-System'!D75","v":12},null,null,{"$f":"IF(AND(NOT(ISBLANK(K79)),NOT(ISBLANK(L79))),('Bewertung durch Anwender'!K79),IF(AND(NOT(ISBLANK(J79)),NOT(ISBLANK(I79))),('Bewertung durch Anwender'!I79),(Zielvereinbarung!G79)))","v":0},{"$f":"Zielvereinbarung!G79","v":0},null,null,null,null,null,null,null,{"$f":"'BNB-System'!H75","v":0}]
[null,null,{"$f":"'BNB-System'!C76","v":"Farbwiedergabe"},{"$f":"'BNB-System'!D76","v":12},null,null,{"$f":"IF(AND(NOT(ISBLANK(K80)),NOT(ISBLANK(L80))),('Bewertung durch Anwender'!K80),IF(AND(NOT(ISBLANK(J80)),NOT(ISBLANK(I80))),('Bewertung durch Anwender'!I80),(Zielvereinbarung!G80)))","v":0},{"$f":"Zielvereinbarung!G80","v":0},null,null,null,null,null,null,null,{"$f":"'BNB-System'!H76","v":0}]
[null,{"$f":"'BNB-System'!B77","v":" 3.1.6"},{"$f":"'BNB-System'!C77","v":"Einflussnahmemöglichkeiten durch Nutzer"},{"$f":"'BNB-System'!D77","v":100},{"$f":"'BNB-System'!G77","v":1.2499999999999999E-2},null,{"$f":"IF(AND(NOT(ISBLANK(K81)),NOT(ISBLANK(L81))),('Bewertung durch Anwender'!K81),IF(AND(NOT(ISBLANK(J81)),NOT(ISBLANK(I81))),('Bewertung durch Anwender'!I81),(Zielvereinbarung!G81)))","v":0},{"$f":"Zielvereinbarung!G81","v":0},null,null,null,null,{"$f":"SUM(M82:M89)","v":0},{"$f":"SUM(N82:N89)","v":0},null,{"$f":"'BNB-System'!H77","v":100},{"$f":"IF(ISNUMBER(E81*N81/100),E81*N81/100,0)","v":0}]
[null,null,{"$f":"'BNB-System'!C78","v":"Lüftung"},{"$f":"'BNB-System'!D78","v":10},null,null,{"$f":"IF(AND(NOT(ISBLANK(K82)),NOT(ISBLANK(L82))),('Bewertung durch Anwender'!K82),IF(AND(NOT(ISBLANK(J82)),NOT(ISBLANK(I82))),('Bewertung durch Anwender'!I82),(Zielvereinbarung!G82)))","v":0},{"$f":"Zielvereinbarung!G82","v":0},null,null,null,null,null,null,null,{"$f":"'BNB-System'!H78","v":0}]
[null,null,{"$f":"'BNB-System'!C79","v":"Sonnenschutz"},{"$f":"'BNB-System'!D79","v":10},null,null,{"$f":"IF(AND(NOT(ISBLANK(K83)),NOT(ISBLANK(L83))),('Bewertung durch Anwender'!K83),IF(AND(NOT(ISBLANK(J83)),NOT(ISBLANK(I83))),('Bewertung durch Anwender'!I83),(Zielvereinbarung!G83)))","v":0},{"$f":"Zielvereinbarung!G83","v":0},null,null,null,null,null,null,null,{"$f":"'BNB-System'!H79","v":0}]
[null,null,{"$f":"'BNB-System'!C80","v":"Blendschutz"},{"$f":"'BNB-System'!D80","v":10},null,null,{"$f":"IF(AND(NOT(ISBLANK(K84)),NOT(ISBLANK(L84))),('Bewertung durch Anwender'!K84),IF(AND(NOT(ISBLANK(J84)),NOT(ISBLANK(I84))),('Bewertung durch Anwender'!I84),(Zielvereinbarung!G84)))","v":0},{"$f":"Zielvereinbarung!G84","v":0},null,null,null,null,null,null,null,{"$f":"'BNB-System'!H80","v":0}]
[null,null,{"$f":"'BNB-System'!C81","v":"Temperaturen während der Heizperiode"},{"$f":"'BNB-System'!D81","v":10},null,null,{"$f":"IF(AND(NOT(ISBLANK(K85)),NOT(ISBLANK(L85))),('Bewertung durch Anwender'!K85),IF(AND(NOT(ISBLANK(J85)),NOT(ISBLANK(I85))),('Bewertung durch Anwender'!I85),(Zielvereinbarung!G85)))","v":0},{"$f":"Zielvereinbarung!G85","v":0},null,null,null,null,null,null,null,{"$f":"'BNB-System'!H81","v":0}]
[null,null,{"$f":"'BNB-System'!C82","v":"Temperaturen außerhalb der Heizperiode"},{"$f":"'BNB-System'!D82","v":15},null,null,{"$f":"IF(AND(NOT(ISBLANK(K86)),NOT(ISBLANK(L86))),('Bewertung durch Anwender'!K86),IF(AND(NOT(ISBLANK(J86)),NOT(ISBLANK(I86))),('Bewertung durch Anwender'!I86),(Zielvereinbarung!G86)))","v":0},{"$f":"Zielvereinbarung!G86","v":0},null,null,null,null,null,null,null,{"$f":"'BNB-System'!H82","v":0}]
[null,null,{"$f":"'BNB-System'!C83","v":"Steuerung von Tageslicht"},{"$f":"'BNB-System'!D83","v":15},null,null,{"$f":"IF(AND(NOT(ISBLANK(K87)),NOT(ISBLANK(L87))),('Bewertung durch Anwender'!K87),IF(AND(NOT(ISBLANK(J87)),NOT(ISBLANK(I87))),('Bewertung durch Anwender'!I87),(Zielvereinbarung!G87)))","v":0},{"$f":"Zielvereinbarung!G87","v":0},null,null,null,null,null,null,null,{"$f":"'BNB-System'!H83","v":0}]
[null,null,{"$f":"'BNB-System'!C84","v":"Steuerung von  Kunstlicht"},{"$f":"'BNB-System'!D84","v":15},null,null,{"$f":"IF(AND(NOT(ISBLANK(K88)),NOT(ISBLANK(L88))),('Bewertung durch Anwender'!K88),IF(AND(NOT(ISBLANK(J88)),NOT(ISBLANK(I88))),('Bewertung durch Anwender'!I88),(Zielvereinbarung!G88)))","v":0},{"$f":"Zielvereinbarung!G88","v":0},null,null,null,null,null,null,null,{"$f":"'BNB-System'!H84","v":0}]
[null,null,{"$f":"'BNB-System'!C85","v":"Bedienfreundlichkeit"},{"$f":"'BNB-System'!D85","v":15},null,null,{"$f":"IF(AND(NOT(ISBLANK(K89)),NOT(ISBLANK(L89))),('Bewertung durch Anwender'!K89),IF(AND(NOT(ISBLANK(J89)),NOT(ISBLANK(I89))),('Bewertung durch Anwender'!I89),(Zielvereinbarung!G89)))","v":0},{"$f":"Zielvereinbarung!G89","v":0},null,null,null,null,null,null,null,{"$f":"'BNB-System'!H85","v":0}]
[null,{"$f":"'BNB-System'!B86","v":" 3.1.7"},{"$f":"'BNB-System'!C86","v":"Aufenthaltsqualitäten"},{"$f":"'BNB-System'!D86","v":100},{"$f":"'BNB-System'!G86","v":1.2499999999999999E-2},null,{"$f":"IF(AND(NOT(ISBLANK(K90)),NOT(ISBLANK(L90))),('Bewertung durch Anwender'!K90),IF(AND(NOT(ISBLANK(J90)),NOT(ISBLANK(I90))),('Bewertung durch Anwender'!I90),(Zielvereinbarung!G90)))","v":0},{"$f":"Zielvereinbarung!G90","v":0},null,null,null,null,{"$f":"SUM(M91:M103)","v":0},{"$f":"SUM(N91:N103)","v":0},null,{"$f":"'BNB-System'!H86","v":100},{"$f":"IF(ISNUMBER(E90*N90/100),E90*N90/100,0)","v":0}]
[null,null,{"$f":"'BNB-System'!C87","v":"Anzahl der Aufenthaltsbereiche im Gebäude"},{"$f":"'BNB-System'!D87","v":10},null,null,{"$f":"IF(AND(NOT(ISBLANK(K91)),NOT(ISBLANK(L91))),('Bewertung durch Anwender'!K91),IF(AND(NOT(ISBLANK(J91)),NOT(ISBLANK(I91))),('Bewertung durch Anwender'!I91),(Zielvereinbarung!G91)))","v":0},{"$f":"Zielvereinbarung!G91","v":0},null,null,null,null,null,null,null,{"$f":"'BNB-System'!H87","v":0}]
[null,null,{"$f":"'BNB-System'!C88","v":"Anzahl der Aufenthaltsbereiche im Außenraum"},{"$f":"'BNB-System'!D88","v":10},null,null,{"$f":"IF(AND(NOT(ISBLANK(K92)),NOT(ISBLANK(L92))),('Bewertung durch Anwender'!K92),IF(AND(NOT(ISBLANK(J92)),NOT(ISBLANK(I92))),('Bewertung durch Anwender'!I92),(Zielvereinbarung!G92)))","v":0},{"$f":"Zielvereinbarung!G92","v":0},null,null,null,null,null,null,null,{"$f":"'BNB-System'!H88","v":0}]
[null,null,{"$f":"'BNB-System'!C89","v":"Anzahl der Sitzmöglichkeiten in diesen Bereichen"},{"$f":"'BNB-System'!D89","v":40},null,null,{"$f":"IF(AND(NOT(ISBLANK(K93)),NOT(ISBLANK(L93))),('Bewertung durch Anwender'!K93),IF(AND(NOT(ISBLANK(J93)),NOT(ISBLANK(I93))),('Bewertung durch Anwender'!I93),(Zielvereinbarung!G93)))","v":0},{"$f":"Zielvereinbarung!G93","v":0},null,null,null,null,null,null,null,{"$f":"'BNB-System'!H89","v":0}]
[null,null,{"$f":"'BNB-System'!C90","v":"uneingeschränkte Nutzbarkeit der Erschließungsflächen als Aufenthaltsflächen"},{"$f":"'BNB-System'!D90","v":10},null,null,{"$f":"IF(AND(NOT(ISBLANK(K94)),NOT(ISBLANK(L94))),('Bewertung durch Anwender'!K94),IF(AND(NOT(ISBLANK(J94)),NOT(ISBLANK(I94))),('Bewertung durch Anwender'!I94),(Zielvereinbarung!G94)))","v":0},{"$f":"Zielvereinbarung!G94","v":0},null,null,null,null,null,null,null,{"$f":"'BNB-System'!H90","v":0}]
[null,null,{"$f":"'BNB-System'!C91","v":"Sichtbeziehungen"},{"$f":"'BNB-System'!D91","v":10},null,null,{"$f":"IF(AND(NOT(ISBLANK(K95)),NOT(ISBLANK(L95))),('Bewertung durch Anwender'!K95),IF(AND(NOT(ISBLANK(J95)),NOT(ISBLANK(I95))),('Bewertung durch Anwender'!I95),(Zielvereinbarung!G95)))","v":0},{"$f":"Zielvereinbarung!G95","v":0},null,null,null,null,null,null,null,{"$f":"'BNB-System'!H91","v":0}]
[null,null,{"$f":"'BNB-System'!C92","v":"Außenbezug"},{"$f":"'BNB-System'!D92","v":10},null,null,{"$f":"IF(AND(NOT(ISBLANK(K96)),NOT(ISBLANK(L96))),('Bewertung durch Anwender'!K96),IF(AND(NOT(ISBLANK(J96)),NOT(ISBLANK(I96))),('Bewertung durch Anwender'!I96),(Zielvereinbarung!G96)))","v":0},{"$f":"Zielvereinbarung!G96","v":0},null,null,null,null,null,null,null,{"$f":"'BNB-System'!H92","v":0}]
[null,null,{"$f":"'BNB-System'!C93","v":"Ausstattungsqualität der Aufenthaltsbereiche im Außenraum"},null,null,null,null,{"$f":"Zielvereinbarung!G97","v":0},null,null,null,null,null,null,null,{"$f":"'BNB-System'!H93","v":0}]
[null,null,{"$f":"'BNB-System'!C94","v":"Beleuchtung"},{"$f":"'BNB-System'!D94","v":2},null,null,{"$f":"IF(AND(NOT(ISBLANK(K98)),NOT(ISBLANK(L98))),('Bewertung durch Anwender'!K98),IF(AND(NOT(ISBLANK(J98)),NOT(ISBLANK(I98))),('Bewertung durch Anwender'!I98),(Zielvereinbarung!G98)))","v":0},{"$f":"Zielvereinbarung!G98","v":0},null,null,null,null,null,null,null,{"$f":"'BNB-System'!H94","v":0}]
[null,null,{"$f":"'BNB-System'!C95","v":"Windschutz"},{"$f":"'BNB-System'!D95","v":2},null,null,{"$f":"IF(AND(NOT(ISBLANK(K99)),NOT(ISBLANK(L99))),('Bewertung durch Anwender'!K99),IF(AND(NOT(ISBLANK(J99)),NOT(ISBLANK(I99))),('Bewertung durch Anwender'!I99),(Zielvereinbarung!G99)))","v":0},{"$f":"Zielvereinbarung!G99","v":0},null,null,null,null,null,null,null,{"$f":"'BNB-System'!H95","v":0}]
[null,null,{"$f":"'BNB-System'!C96","v":"Überdachung / Regenschutz"},{"$f":"'BNB-System'!D96","v":2},null,null,{"$f":"IF(AND(NOT(ISBLANK(K100)),NOT(ISBLANK(L100))),('Bewertung durch Anwender'!K100),IF(AND(NOT(ISBLANK(J100)),NOT(ISBLANK(I100))),('Bewertung durch Anwender'!I100),(Zielvereinbarung!G100)))","v":0},{"$f":"Zielvereinbarung!G100","v":0},null,null,null,null,null,null,null,{"$f":"'BNB-System'!H96","v":0}]
[null,null,{"$f":"'BNB-System'!C97","v":"Sonnenschutz"},{"$f":"'BNB-System'!D97","v":2},null,null,{"$f":"IF(AND(NOT(ISBLANK(K101)),NOT(ISBLANK(L101))),('Bewertung durch Anwender'!K101),IF(AND(NOT(ISBLANK(J101)),NOT(ISBLANK(I101))),('Bewertung durch Anwender'!I101),(Zielvereinbarung!G101)))","v":0},{"$f":"Zielvereinbarung!G101","v":0},null,null,null,null,null,null,null,{"$f":"'BNB-System'!H97","v":0}]
[null,null,{"$f":"'BNB-System'!C98","v":"Stromversorgung für Außenarbeitsplätze"},{"$f":"'BNB-System'!D98","v":1},null,null,{"$f":"IF(AND(NOT(ISBLANK(K102)),NOT(ISBLANK(L102))),('Bewertung durch Anwender'!K102),IF(AND(NOT(ISBLANK(J102)),NOT(ISBLANK(I102))),('Bewertung durch Anwender'!I102),(Zielvereinbarung!G102)))","v":0},{"$f":"Zielvereinbarung!G102","v":0},null,null,null,null,null,null,null,{"$f":"'BNB-System'!H98","v":0}]
[null,null,{"$f":"'BNB-System'!C99","v":"Bepflanzung / Begrünung"},{"$f":"'BNB-System'!D99","v":1},null,null,{"$f":"IF(AND(NOT(ISBLANK(K103)),NOT(ISBLANK(L103))),('Bewertung durch Anwender'!K103),IF(AND(NOT(ISBLANK(J103)),NOT(ISBLANK(I103))),('Bewertung durch Anwender'!I103),(Zielvereinbarung!G103)))","v":0},{"$f":"Zielvereinbarung!G103","v":0},null,null,null,null,null,null,null,{"$f":"'BNB-System'!H99","v":0}]
[null,{"$f":"'BNB-System'!B100","v":" 3.1.8"},{"$f":"'BNB-System'!C100","v":"Sicherheit"},{"$f":"'BNB-System'!D100","v":100},{"$f":"'BNB-System'!G100","v":2.4999999999999998E-2},null,{"$f":"IF(AND(NOT(ISBLANK(K104)),NOT(ISBLANK(L104))),('Bewertung durch Anwender'!K104),IF(AND(NOT(ISBLANK(J104)),NOT(ISBLANK(I104))),('Bewertung durch Anwender'!I104),(Zielvereinbarung!G104)))","v":0},{"$f":"Zielvereinbarung!G104","v":0},null,null,null,null,{"$f":"SUM(M105:M112)","v":0},{"$f":"SUM(N105:N112)","v":0},null,{"$f":"'BNB-System'!H100","v":200},{"$f":"IF(ISNUMBER(E104*N104/100),E104*N104/100,0)","v":0}]
[null,null,{"$f":"'BNB-System'!C101","v":"Übersichtliche Wegführungen"},{"$f":"'BNB-System'!D101","v":40},null,null,{"$f":"IF(AND(NOT(ISBLANK(K105)),NOT(ISBLANK(L105))),('Bewertung durch Anwender'!K105),IF(AND(NOT(ISBLANK(J105)),NOT(ISBLANK(I105))),('Bewertung durch Anwender'!I105),(Zielvereinbarung!G105)))","v":0},{"$f":"Zielvereinbarung!G105","v":0},null,null,null,null,null,null,null,{"$f":"'BNB-System'!H101","v":0}]
[null,null,{"$f":"'BNB-System'!C102","v":"Stellplätze"},{"$f":"'BNB-System'!D102","v":8},null,null,{"$f":"IF(AND(NOT(ISBLANK(K106)),NOT(ISBLANK(L106))),('Bewertung durch Anwender'!K106),IF(AND(NOT(ISBLANK(J106)),NOT(ISBLANK(I106))),('Bewertung durch Anwender'!I106),(Zielvereinbarung!G106)))","v":0},{"$f":"Zielvereinbarung!G106","v":0},null,null,null,null,null,null,null,{"$f":"'BNB-System'!H102","v":0}]
[null,null,{"$f":"'BNB-System'!C103","v":"Sicherheitsbereiche"},{"$f":"'BNB-System'!D103","v":8},null,null,{"$f":"IF(AND(NOT(ISBLANK(K107)),NOT(ISBLANK(L107))),('Bewertung durch Anwender'!K107),IF(AND(NOT(ISBLANK(J107)),NOT(ISBLANK(I107))),('Bewertung durch Anwender'!I107),(Zielvereinbarung!G107)))","v":0},{"$f":"Zielvereinbarung!G107","v":0},null,null,null,null,null,null,null,{"$f":"'BNB-System'!H103","v":0}]
[null,null,{"$f":"'BNB-System'!C104","v":"Beleuchtung Wege"},{"$f":"'BNB-System'!D104","v":12},null,null,{"$f":"IF(AND(NOT(ISBLANK(K108)),NOT(ISBLANK(L108))),('Bewertung durch Anwender'!K108),IF(AND(NOT(ISBLANK(J108)),NOT(ISBLANK(I108))),('Bewertung durch Anwender'!I108),(Zielvereinbarung!G108)))","v":0},{"$f":"Zielvereinbarung!G108","v":0},null,null,null,null,null,null,null,{"$f":"'BNB-System'!H104","v":0}]
[null,null,{"$f":"'BNB-System'!C105","v":"Beleuchtung Stellplätze"},{"$f":"'BNB-System'!D105","v":8},null,null,{"$f":"IF(AND(NOT(ISBLANK(K109)),NOT(ISBLANK(L109))),('Bewertung durch Anwender'!K109),IF(AND(NOT(ISBLANK(J109)),NOT(ISBLANK(I109))),('Bewertung durch Anwender'!I109),(Zielvereinbarung!G109)))","v":0},{"$f":"Zielvereinbarung!G109","v":0},null,null,null,null,null,null,null,{"$f":"'BNB-System'!H105","v":0}]
[null,null,{"$f":"'BNB-System'!C106","v":"Beleuchtung Sicherheits- und Gefahrenbereiche"},{"$f":"'BNB-System'!D106","v":8},null,null,{"$f":"IF(AND(NOT(ISBLANK(K110)),NOT(ISBLANK(L110))),('Bewertung durch Anwender'!K110),IF(AND(NOT(ISBLANK(J110)),NOT(ISBLANK(I110))),('Bewertung durch Anwender'!I110),(Zielvereinbarung!G110)))","v":0},{"$f":"Zielvereinbarung!G110","v":0},null,null,null,null,null,null,null,{"$f":"'BNB-System'!H106","v":0}]
[null,null,{"$f":"'BNB-System'!C107","v":"Technische Sicherheitseinrichtungen"},{"$f":"'BNB-System'!D107","v":8},null,null,{"$f":"IF(AND(NOT(ISBLANK(K111)),NOT(ISBLANK(L111))),('Bewertung durch Anwender'!K111),IF(AND(NOT(ISBLANK(J111)),NOT(ISBLANK(I111))),('Bewertung durch Anwender'!I111),(Zielvereinbarung!G111)))","v":0},{"$f":"Zielvereinbarung!G111","v":0},null,null,null,null,null,null,null,{"$f":"'BNB-System'!H107","v":0}]
[null,null,{"$f":"'BNB-System'!C108","v":"Reduktion von Brandgasrisiken"},{"$f":"'BNB-System'!D108","v":8},null,null,{"$f":"IF(AND(NOT(ISBLANK(K112)),NOT(ISBLANK(L112))),('Bewertung durch Anwender'!K112),IF(AND(NOT(ISBLANK(J112)),NOT(ISBLANK(I112))),('Bewertung durch Anwender'!I112),(Zielvereinbarung!G112)))","v":0},{"$f":"Zielvereinbarung!G112","v":0},null,null,null,null,null,null,null,{"$f":"'BNB-System'!H108","v":0}]
[null,null,{"$f":"'BNB-System'!C109","v":"Funktionalität"},null,null,null,null,null,null,null,null,null,null,null,null,{"$f":"'BNB-System'!H109","v":0}]
[null,{"$f":"'BNB-System'!B110","v":" 3.2.1"},{"$f":"'BNB-System'!C110","v":"Barrierefreiheit"},{"$f":"'BNB-System'!D110","v":100},{"$f":"'BNB-System'!G110","v":2.4999999999999998E-2},null,{"$f":"IF(AND(NOT(ISBLANK(K114)),NOT(ISBLANK(L114))),('Bewertung durch Anwender'!K114),IF(AND(NOT(ISBLANK(J114)),NOT(ISBLANK(I114))),('Bewertung durch Anwender'!I114),(Zielvereinbarung!G114)))","v":0},{"$f":"Zielvereinbarung!G114","v":0},null,null,null,null,null,null,null,{"$f":"'BNB-System'!H110","v":200},{"$f":"IF(ISNUMBER(E114*N114/100),E114*N114/100,0)","v":0}]
[null,{"$f":"'BNB-System'!B111","v":" 3.2.4"},{"$f":"'BNB-System'!C111","v":"Zugänglichkeit"},{"$f":"'BNB-System'!D111","v":100},{"$f":"'BNB-System'!G111","v":1.2499999999999999E-2},null,{"$f":"IF(AND(NOT(ISBLANK(K115)),NOT(ISBLANK(L115))),('Bewertung durch Anwender'!K115),IF(AND(NOT(ISBLANK(J115)),NOT(ISBLANK(I115))),('Bewertung durch Anwender'!I115),(Zielvereinbarung!G115)))","v":0},{"$f":"Zielvereinbarung!G115","v":0},null,null,null,null,{"$f":"SUM(M116:M118)","v":0},{"$f":"SUM(N116:N118)","v":0},null,{"$f":"'BNB-System'!H111","v":100},{"$f":"IF(ISNUMBER(E115*N115/100),E115*N115/100,0)","v":0}]
[null,null,{"$f":"'BNB-System'!C112","v":"Grundsätzliche Zugänglichkeit des Gebäudes"},{"$f":"'BNB-System'!D112","v":35},null,null,{"$f":"IF(AND(NOT(ISBLANK(K116)),NOT(ISBLANK(L116))),('Bewertung durch Anwender'!K116),IF(AND(NOT(ISBLANK(J116)),NOT(ISBLANK(I116))),('Bewertung durch Anwender'!I116),(Zielvereinbarung!G116)))","v":0},{"$f":"Zielvereinbarung!G116","v":0},null,null,null,null,null,null,null,{"$f":"'BNB-System'!H112","v":0}]
[null,null,{"$f":"'BNB-System'!C113","v":"Öffnung der Außenanlagen für die Öffentlichkeit"},{"$f":"'BNB-System'!D113","v":35},null,null,{"$f":"IF(AND(NOT(ISBLANK(K117)),NOT(ISBLANK(L117))),('Bewertung durch Anwender'!K117),IF(AND(NOT(ISBLANK(J117)),NOT(ISBLANK(I117))),('Bewertung durch Anwender'!I117),(Zielvereinbarung!G117)))","v":0},{"$f":"Zielvereinbarung!G117","v":0},null,null,null,null,null,null,null,{"$f":"'BNB-System'!H113","v":0}]
[null,null,{"$f":"'BNB-System'!C114","v":"Öffnung gebäudeinterner Einrichtungen für die Öffentlichkeit"},{"$f":"'BNB-System'!D114","v":30},null,null,{"$f":"IF(AND(NOT(ISBLANK(K118)),NOT(ISBLANK(L118))),('Bewertung durch Anwender'!K118),IF(AND(NOT(ISBLANK(J118)),NOT(ISBLANK(I118))),('Bewertung durch Anwender'!I118),(Zielvereinbarung!G118)))","v":0},{"$f":"Zielvereinbarung!G118","v":0},null,null,null,null,null,null,null,{"$f":"'BNB-System'!H114","v":0}]
[null,{"$f":"'BNB-System'!B115","v":" 3.2.5"},{"$f":"'BNB-System'!C115","v":"Mobilitätsinfrastruktur"},{"$f":"'BNB-System'!D115","v":100},{"$f":"'BNB-System'!G115","v":1.2499999999999999E-2},null,{"$f":"IF(AND(NOT(ISBLANK(K119)),NOT(ISBLANK(L119))),('Bewertung durch Anwender'!K119),IF(AND(NOT(ISBLANK(J119)),NOT(ISBLANK(I119))),('Bewertung durch Anwender'!I119),(Zielvereinbarung!G119)))","v":0},{"$f":"Zielvereinbarung!G119","v":0},null,null,null,null,{"$f":"IF(SUM(M120:M138)>100,100,SUM(M120:M138))","v":0},{"$f":"IF(SUM(N120:N138)>100,100,SUM(N120:N138))","v":0},null,{"$f":"'BNB-System'!H115","v":100},{"$f":"IF(ISNUMBER(E119*N119/100),E119*N119/100,0)","v":0}]
[null,null,{"$f":"'BNB-System'!C116","v":"Anzahl der Fahrradstellplätze"},null,null,null,{"$f":"IF(Zielvereinbarung!E120=0,\"\",Zielvereinbarung!E120)","v":""},{"$f":"Zielvereinbarung!G120","v":0},null,null,null,null,null,null,null,{"$f":"'BNB-System'!H116","v":0}]
[null,null,{"$f":"'BNB-System'!C117","v":"1 Fahrradstellplatz / 40 m²NF oder 1 Fahrradstellplatz / 3 Nutzer"},{"$f":"'BNB-System'!D117","v":40},null,null,{"$f":"IF(AND(NOT(ISBLANK(K121)),NOT(ISBLANK(L121))),('Bewertung durch Anwender'!K121),IF(AND(NOT(ISBLANK(J121)),NOT(ISBLANK(I121))),('Bewertung durch Anwender'!I121),(Zielvereinbarung!G121)))","v":0},{"$f":"Zielvereinbarung!G121","v":0},null,null,null,null,null,null,null,{"$f":"'BNB-System'!H117","v":0}]
[null,null,{"$f":"'BNB-System'!C118","v":"1 Fahrradstellplatz / 80m²NF oder 1 Fahrradstellplatz / 6 Nutzer"},{"$f":"'BNB-System'!D118","v":30},null,null,{"$f":"IF(AND(NOT(ISBLANK(K122)),NOT(ISBLANK(L122))),('Bewertung durch Anwender'!K122),IF(AND(NOT(ISBLANK(J122)),NOT(ISBLANK(I122))),('Bewertung durch Anwender'!I122),(Zielvereinbarung!G122)))","v":0},{"$f":"Zielvereinbarung!G122","v":0},null,null,null,null,null,null,null,{"$f":"'BNB-System'!H118","v":0}]
[null,null,{"$f":"'BNB-System'!C119","v":"1 Fahrradstellplatz / 120m²NF oder 1 Fahrradstellplatz / 9 Nutzer"},{"$f":"'BNB-System'!D119","v":20},null,null,{"$f":"IF(AND(NOT(ISBLANK(K123)),NOT(ISBLANK(L123))),('Bewertung durch Anwender'!K123),IF(AND(NOT(ISBLANK(J123)),NOT(ISBLANK(I123))),('Bewertung durch Anwender'!I123),(Zielvereinbarung!G123)))","v":0},{"$f":"Zielvereinbarung!G123","v":0},null,null,null,null,null,null,null,{"$f":"'BNB-System'!H119","v":0}]
[null,null,{"$f":"'BNB-System'!C120","v":"1 Fahrradstellplatz / 160m²NF oder 1 Fahrradstellplatz / 12 Nutzer"},{"$f":"'BNB-System'!D120","v":10},null,null,{"$f":"IF(AND(NOT(ISBLANK(K124)),NOT(ISBLANK(L124))),('Bewertung durch Anwender'!K124),IF(AND(NOT(ISBLANK(J124)),NOT(ISBLANK(I124))),('Bewertung durch Anwender'!I124),(Zielvereinbarung!G124)))","v":0},{"$f":"Zielvereinbarung!G124","v":0},null,null,null,null,null,null,null,{"$f":"'BNB-System'!H120","v":0}]
[null,null,{"$f":"'BNB-System'!C121","v":"Anzahl der Lademöglichkeiten und Carsharing-Stellplätze"},null,null,null,{"$f":"IF(Zielvereinbarung!E125=0,\"\",Zielvereinbarung!E125)","v":""},{"$f":"Zielvereinbarung!G125","v":0},null,null,null,null,null,null,null,{"$f":"'BNB-System'!H121","v":0}]
[null,null,{"$f":"'BNB-System'!C122","v":"Lademögl. für E-Räder für 10 % der Rad-Stellplätze (mind. 2) vorhanden"},{"$f":"'BNB-System'!D122","v":10},null,null,{"$f":"IF(AND(NOT(ISBLANK(K126)),NOT(ISBLANK(L126))),('Bewertung durch Anwender'!K126),IF(AND(NOT(ISBLANK(J126)),NOT(ISBLANK(I126))),('Bewertung durch Anwender'!I126),(Zielvereinbarung!G126)))","v":0},{"$f":"Zielvereinbarung!G126","v":0},null,null,null,null,null,null,null,{"$f":"'BNB-System'!H122","v":0}]
[null,null,{"$f":"'BNB-System'!C123","v":"Lademögl. für E-Pkw für 5 % der Pkw-Stellplätze (mind. 1) vorhanden"},{"$f":"'BNB-System'!D123","v":5},null,null,{"$f":"IF(AND(NOT(ISBLANK(K127)),NOT(ISBLANK(L127))),('Bewertung durch Anwender'!K127),IF(AND(NOT(ISBLANK(J127)),NOT(ISBLANK(I127))),('Bewertung durch Anwender'!I127),(Zielvereinbarung!G127)))","v":0},{"$f":"Zielvereinbarung!G127","v":0},null,null,null,null,null,null,null,{"$f":"'BNB-System'!H123","v":0}]
[null,null,{"$f":"'BNB-System'!C124","v":"Carsharing-Stellplatz ist öffentlich zugänglich auf Grundstück vorhanden"},{"$f":"'BNB-System'!D124","v":5},null,null,{"$f":"IF(AND(NOT(ISBLANK(K128)),NOT(ISBLANK(L128))),('Bewertung durch Anwender'!K128),IF(AND(NOT(ISBLANK(J128)),NOT(ISBLANK(I128))),('Bewertung durch Anwender'!I128),(Zielvereinbarung!G128)))","v":0},{"$f":"Zielvereinbarung!G128","v":0},null,null,null,null,null,null,null,{"$f":"'BNB-System'!H124","v":0}]
[null,null,{"$f":"'BNB-System'!C125","v":"Qualitative Anforderungen an Fahrradstellplätze"},null,null,null,{"$f":"IF(Zielvereinbarung!E129=0,\"\",Zielvereinbarung!E129)","v":""},{"$f":"Zielvereinbarung!G129","v":0},null,null,null,null,null,null,null,{"$f":"'BNB-System'!H125","v":0}]
[null,null,{"$f":"'BNB-System'!C126","v":" Anordnungsprinzipien und Abstände"},{"$f":"'BNB-System'!D126","v":10},null,null,{"$f":"IF(AND(NOT(ISBLANK(K130)),NOT(ISBLANK(L130))),('Bewertung durch Anwender'!K130),IF(AND(NOT(ISBLANK(J130)),NOT(ISBLANK(I130))),('Bewertung durch Anwender'!I130),(Zielvereinbarung!G130)))","v":0},{"$f":"Zielvereinbarung!G130","v":0},null,null,null,null,null,null,null,{"$f":"'BNB-System'!H126","v":0}]
[null,null,{"$f":"'BNB-System'!C127","v":"Position der Fahrradstellplätze für Besucher"},{"$f":"'BNB-System'!D127","v":5},null,null,{"$f":"IF(AND(NOT(ISBLANK(K131)),NOT(ISBLANK(L131))),('Bewertung durch Anwender'!K131),IF(AND(NOT(ISBLANK(J131)),NOT(ISBLANK(I131))),('Bewertung durch Anwender'!I131),(Zielvereinbarung!G131)))","v":0},{"$f":"Zielvereinbarung!G131","v":0},null,null,null,null,null,null,null,{"$f":"'BNB-System'!H127","v":0}]
[null,null,{"$f":"'BNB-System'!C128","v":"Position der Fahrradstellplätze für Nutzer"},{"$f":"'BNB-System'!D128","v":5},null,null,{"$f":"IF(AND(NOT(ISBLANK(K132)),NOT(ISBLANK(L132))),('Bewertung durch Anwender'!K132),IF(AND(NOT(ISBLANK(J132)),NOT(ISBLANK(I132))),('Bewertung durch Anwender'!I132),(Zielvereinbarung!G132)))","v":0},{"$f":"Zielvereinbarung!G132","v":0},null,null,null,null,null,null,null,{"$f":"'BNB-System'!H128","v":0}]
[null,null,{"$f":"'BNB-System'!C129","v":"Witterungsgeschutz"},{"$f":"'BNB-System'!D129","v":10},null,null,{"$f":"IF(AND(NOT(ISBLANK(K133)),NOT(ISBLANK(L133))),('Bewertung durch Anwender'!K133),IF(AND(NOT(ISBLANK(J133)),NOT(ISBLANK(I133))),('Bewertung durch Anwender'!I133),(Zielvereinbarung!G133)))","v":0},{"$f":"Zielvereinbarung!G133","v":0},null,null,null,null,null,null,null,{"$f":"'BNB-System'!H129","v":0}]
[null,null,{"$f":"'BNB-System'!C130","v":"Beleuchtung"},{"$f":"'BNB-System'!D130","v":10},null,null,{"$f":"IF(AND(NOT(ISBLANK(K134)),NOT(ISBLANK(L134))),('Bewertung durch Anwender'!K134),IF(AND(NOT(ISBLANK(J134)),NOT(ISBLANK(I134))),('Bewertung durch Anwender'!I134),(Zielvereinbarung!G134)))","v":0},{"$f":"Zielvereinbarung!G134","v":0},null,null,null,null,null,null,null,{"$f":"'BNB-System'!H130","v":0}]
[null,null,{"$f":"'BNB-System'!C131","v":"Diebstahlgesicherter Bereich"},{"$f":"'BNB-System'!D131","v":5},null,null,{"$f":"IF(AND(NOT(ISBLANK(K135)),NOT(ISBLANK(L135))),('Bewertung durch Anwender'!K135),IF(AND(NOT(ISBLANK(J135)),NOT(ISBLANK(I135))),('Bewertung durch Anwender'!I135),(Zielvereinbarung!G135)))","v":0},{"$f":"Zielvereinbarung!G135","v":0},null,null,null,null,null,null,null,{"$f":"'BNB-System'!H131","v":0}]
[null,null,{"$f":"'BNB-System'!C132","v":"Fläche mit Ausstattung  für Wartungsarbeiten"},{"$f":"'BNB-System'!D132","v":5},null,null,{"$f":"IF(AND(NOT(ISBLANK(K136)),NOT(ISBLANK(L136))),('Bewertung durch Anwender'!K136),IF(AND(NOT(ISBLANK(J136)),NOT(ISBLANK(I136))),('Bewertung durch Anwender'!I136),(Zielvereinbarung!G136)))","v":0},{"$f":"Zielvereinbarung!G136","v":0},null,null,null,null,null,null,null,{"$f":"'BNB-System'!H132","v":0}]
[null,null,{"$f":"'BNB-System'!C133","v":"Duschen und Umkleiden"},{"$f":"'BNB-System'!D133","v":5},null,null,{"$f":"IF(AND(NOT(ISBLANK(K137)),NOT(ISBLANK(L137))),('Bewertung durch Anwender'!K137),IF(AND(NOT(ISBLANK(J137)),NOT(ISBLANK(I137))),('Bewertung durch Anwender'!I137),(Zielvereinbarung!G137)))","v":0},{"$f":"Zielvereinbarung!G137","v":0},null,null,null,null,null,null,null,{"$f":"'BNB-System'!H133","v":0}]
[null,null,{"$f":"'BNB-System'!C134","v":"Trocknungsmöglichkeiten"},{"$f":"'BNB-System'!D134","v":5},null,null,{"$f":"IF(AND(NOT(ISBLANK(K138)),NOT(ISBLANK(L138))),('Bewertung durch Anwender'!K138),IF(AND(NOT(ISBLANK(J138)),NOT(ISBLANK(I138))),('Bewertung durch Anwender'!I138),(Zielvereinbarung!G138)))","v":0},{"$f":"Zielvereinbarung!G138","v":0},null,null,null,null,null,null,null,{"$f":"'BNB-System'!H134","v":0}]
[null,null,{"$f":"'BNB-System'!C135","v":"Sicherung der Gestaltungsqualität"},null,null,null,null,null,null,null,null,null,null,null,null,{"$f":"'BNB-System'!H135","v":0}]
[null,{"$f":"'BNB-System'!B136","v":" 3.3.1"},{"$f":"'BNB-System'!C136","v":"Gestalterische und städtebauliche Qualität"},{"$f":"'BNB-System'!D136","v":100},{"$f":"'BNB-System'!G136","v":2.4999999999999998E-2},null,{"$f":"IF(AND(NOT(ISBLANK(K140)),NOT(ISBLANK(L140))),('Bewertung durch Anwender'!K140),IF(AND(NOT(ISBLANK(J140)),NOT(ISBLANK(I140))),('Bewertung durch Anwender'!I140),(Zielvereinbarung!G140)))","v":0},{"$f":"Zielvereinbarung!G140","v":0},null,null,null,null,{"$f":"IF(AND(M141>0,M145<=M146),SUM(M141:M144),IF(AND(M141>0,M146<=M145),SUM(M141:M144),IF(M145>0,M145,IF(M146>0,M146,M147))))","v":0},{"$f":"IF(AND(N141>0,N145<=N146),SUM(N141:N144),IF(AND(N141>0,N146<=N145),SUM(N141:N144),IF(N145>0,N145,IF(N146>0,N146,N147))))","v":0},null,{"$f":"'BNB-System'!H136","v":200},{"$f":"IF(ISNUMBER(E140*N140/100),E140*N140/100,0)","v":0}]
[null,null,{"$f":"'BNB-System'!C137","v":"Durchführung von Planungswettbewerben"},{"$f":"'BNB-System'!D137","v":20},null,null,{"$f":"IF(AND(NOT(ISBLANK(K141)),NOT(ISBLANK(L141))),('Bewertung durch Anwender'!K141),IF(AND(NOT(ISBLANK(J141)),NOT(ISBLANK(I141))),('Bewertung durch Anwender'!I141),(Zielvereinbarung!G141)))","v":0},{"$f":"Zielvereinbarung!G141","v":0},null,null,null,null,null,null,null,{"$f":"'BNB-System'!H137","v":0}]
[null,null,{"$f":"'BNB-System'!C138","v":"Wettbewerbsverfahren"},{"$f":"'BNB-System'!D138","v":40},null,null,{"$f":"IF(AND(NOT(ISBLANK(K142)),NOT(ISBLANK(L142))),('Bewertung durch Anwender'!K142),IF(AND(NOT(ISBLANK(J142)),NOT(ISBLANK(I142))),('Bewertung durch Anwender'!I142),(Zielvereinbarung!G142)))","v":0},{"$f":"Zielvereinbarung!G142","v":0},null,null,null,null,null,null,null,{"$f":"'BNB-System'!H138","v":0}]
[null,null,{"$f":"'BNB-System'!C139","v":"Ausführung des Entwurfs eines der Preisträger"},{"$f":"'BNB-System'!D139","v":30},null,null,{"$f":"IF(AND(NOT(ISBLANK(K143)),NOT(ISBLANK(L143))),('Bewertung durch Anwender'!K143),IF(AND(NOT(ISBLANK(J143)),NOT(ISBLANK(I143))),('Bewertung durch Anwender'!I143),(Zielvereinbarung!G143)))","v":0},{"$f":"Zielvereinbarung!G143","v":0},null,null,null,null,null,null,null,{"$f":"'BNB-System'!H139","v":0}]
[null,null,{"$f":"'BNB-System'!C140","v":"Beauftragung des Planungsteams"},{"$f":"'BNB-System'!D140","v":10},null,null,{"$f":"IF(AND(NOT(ISBLANK(K144)),NOT(ISBLANK(L144))),('Bewertung durch Anwender'!K144),IF(AND(NOT(ISBLANK(J144)),NOT(ISBLANK(I144))),('Bewertung durch Anwender'!I144),(Zielvereinbarung!G144)))","v":0},{"$f":"Zielvereinbarung!G144","v":0},null,null,null,null,null,null,null,{"$f":"'BNB-System'!H140","v":0}]
[null,null,{"$f":"'BNB-System'!C141","v":"Auszeichnung mit einem Architekturpreis"},{"$f":"'BNB-System'!D141","v":60},null,null,{"$f":"IF(AND(NOT(ISBLANK(K145)),NOT(ISBLANK(L145))),('Bewertung durch Anwender'!K145),IF(AND(NOT(ISBLANK(J145)),NOT(ISBLANK(I145))),('Bewertung durch Anwender'!I145),(Zielvereinbarung!G145)))","v":0},{"$f":"Zielvereinbarung!G145","v":0},null,null,null,null,null,null,null,{"$f":"'BNB-System'!H141","v":0}]
[null,null,{"$f":"'BNB-System'!C142","v":"Unabhängiges Expertengremium"},{"$f":"'BNB-System'!D142","v":40},null,null,{"$f":"IF(AND(NOT(ISBLANK(K146)),NOT(ISBLANK(L146))),('Bewertung durch Anwender'!K146),IF(AND(NOT(ISBLANK(J146)),NOT(ISBLANK(I146))),('Bewertung durch Anwender'!I146),(Zielvereinbarung!G146)))","v":0},{"$f":"Zielvereinbarung!G146","v":0},null,null,null,null,null,null,null,{"$f":"'BNB-System'!H142","v":0}]
[null,null,{"$f":"'BNB-System'!C143","v":"Sonderfall Mindestanforderung"},{"$f":"'BNB-System'!D143","v":10},null,null,{"$f":"IF(AND(NOT(ISBLANK(K147)),NOT(ISBLANK(L147))),('Bewertung durch Anwender'!K147),IF(AND(NOT(ISBLANK(J147)),NOT(ISBLANK(I147))),('Bewertung durch Anwender'!I147),(Zielvereinbarung!G147)))","v":0},{"$f":"Zielvereinbarung!G147","v":0},null,null,null,null,null,null,null,{"$f":"'BNB-System'!H143","v":0}]
[null,{"$f":"'BNB-System'!B144","v":" 3.3.2"},{"$f":"'BNB-System'!C144","v":"Kunst am Bau "},{"$f":"'BNB-System'!D144","v":100},{"$f":"'BNB-System'!G144","v":1.2499999999999999E-2},null,{"$f":"IF(AND(NOT(ISBLANK(K148)),NOT(ISBLANK(L148))),('Bewertung durch Anwender'!K148),IF(AND(NOT(ISBLANK(J148)),NOT(ISBLANK(I148))),('Bewertung durch Anwender'!I148),(Zielvereinbarung!G148)))","v":0},{"$f":"Zielvereinbarung!G148","v":0},null,null,null,null,{"$f":"SUM(M149:M152)","v":0},{"$f":"SUM(N149:N152)","v":0},null,{"$f":"'BNB-System'!H144","v":100},{"$f":"IF(ISNUMBER(E148*N148/100),E148*N148/100,0)","v":0}]
[null,null,{"$f":"'BNB-System'!C145","v":"Mindestanforderung"},{"$f":"'BNB-System'!D145","v":10},null,null,{"$f":"IF(AND(NOT(ISBLANK(K149)),NOT(ISBLANK(L149))),('Bewertung durch Anwender'!K149),IF(AND(NOT(ISBLANK(J149)),NOT(ISBLANK(I149))),('Bewertung durch Anwender'!I149),(Zielvereinbarung!G149)))","v":0},{"$f":"Zielvereinbarung!G149","v":0},null,null,null,null,null,null,null,{"$f":"'BNB-System'!H145","v":0}]
[null,null,{"$f":"'BNB-System'!C146","v":"Bereitstellung von Mitteln im Rahmen der Bauaufgabe"},{"$f":"'BNB-System'!D146","v":30},null,null,{"$f":"IF(AND(NOT(ISBLANK(K150)),NOT(ISBLANK(L150))),('Bewertung durch Anwender'!K150),IF(AND(NOT(ISBLANK(J150)),NOT(ISBLANK(I150))),('Bewertung durch Anwender'!I150),(Zielvereinbarung!G150)))","v":0},{"$f":"Zielvereinbarung!G150","v":0},null,null,null,null,null,null,null,{"$f":"'BNB-System'!H146","v":0}]
[null,null,{"$f":"'BNB-System'!C147","v":"Umsetzung des BMVBS-Leitfadens Kunst am Bau"},{"$f":"'BNB-System'!D147","v":40},null,null,{"$f":"IF(AND(NOT(ISBLANK(K151)),NOT(ISBLANK(L151))),('Bewertung durch Anwender'!K151),IF(AND(NOT(ISBLANK(J151)),NOT(ISBLANK(I151))),('Bewertung durch Anwender'!I151),(Zielvereinbarung!G151)))","v":0},{"$f":"Zielvereinbarung!G151","v":0},null,null,null,null,null,null,null,{"$f":"'BNB-System'!H147","v":0}]
[null,null,{"$f":"'BNB-System'!C148","v":"Öffentlichkeitsarbeit, Rezeption  der Kunst am Bau"},{"$f":"'BNB-System'!D148","v":20},null,null,{"$f":"IF(AND(NOT(ISBLANK(K152)),NOT(ISBLANK(L152))),('Bewertung durch Anwender'!K152),IF(AND(NOT(ISBLANK(J152)),NOT(ISBLANK(I152))),('Bewertung durch Anwender'!I152),(Zielvereinbarung!G152)))","v":0},{"$f":"Zielvereinbarung!G152","v":0},null,null,null,null,null,null,null,{"$f":"'BNB-System'!H148","v":0}]
[null,null,null,null,null,null,null,null,null,null,null,null,null,null,null,{"$f":"'BNB-System'!H149","v":0}]
[null,{"$f":"'BNB-System'!B150","v":"Technische Qualität"},null,null,{"$f":"'BNB-System'!G150","v":0.22500000000000001},null,{"$f":"IF(AND(NOT(ISBLANK(K154)),NOT(ISBLANK(L154))),('Bewertung durch Anwender'!K154),IF(AND(NOT(ISBLANK(J154)),NOT(ISBLANK(I154))),('Bewertung durch Anwender'!I154),(Zielvereinbarung!G154)))","v":0},{"$f":"Zielvereinbarung!G154","v":0},null,null,null,null,{"$f":"M157*($E$157/100)+M162*($E$162/100)+M169*($E$169/100)+M179*($E$179/100)+M180*($E$180/100)+M181*($E$181/100)+M182*($E$182/100)","v":0},{"$f":"N157*($E$157/100)+N162*($E$162/100)+N169*($E$169/100)+N179*($E$179/100)+N180*($E$180/100)+N181*($E$181/100)+N182*($E$182/100)","v":0},null,{"$f":"'BNB-System'!H150","v":1100}]
[null,null,null,null,null,null,null,null,null,null,null,null,null,null,null,{"$f":"'BNB-System'!H151","v":0}]
[null,null,{"$f":"'BNB-System'!C152","v":"technische Ausführung"},null,null,null,null,null,null,null,null,null,null,null,null,{"$f":"'BNB-System'!H152","v":0}]
[null,{"$f":"'BNB-System'!B153","v":" 4.1.1"},{"$f":"'BNB-System'!C153","v":"Schallschutz "},{"$f":"'BNB-System'!D153","v":100},{"$f":"'BNB-System'!G153","v":2.0454545454545454E-2},null,{"$f":"IF(AND(NOT(ISBLANK(K157)),NOT(ISBLANK(L157))),('Bewertung durch Anwender'!K157),IF(AND(NOT(ISBLANK(J157)),NOT(ISBLANK(I157))),('Bewertung durch Anwender'!I157),(Zielvereinbarung!G157)))","v":0},{"$f":"Zielvereinbarung!G157","v":0},null,null,null,null,{"$f":"SUM(M158:M161)","v":0},{"$f":"SUM(N158:N161)","v":0},null,{"$f":"'BNB-System'!H153","v":100},{"$f":"IF(ISNUMBER(E157*N157/100),E157*N157/100,0)","v":0}]
[null,null,{"$f":"'BNB-System'!C154","v":"Luftschallschutz gegen Außenlärm"},{"$f":"'BNB-System'!D154","v":20},null,null,{"$f":"IF(AND(NOT(ISBLANK(K158)),NOT(ISBLANK(L158))),('Bewertung durch Anwender'!K158),IF(AND(NOT(ISBLANK(J158)),NOT(ISBLANK(I158))),('Bewertung durch Anwender'!I158),(Zielvereinbarung!G158)))","v":0},{"$f":"Zielvereinbarung!G158","v":0},null,null,null,null,null,null,null,{"$f":"'BNB-System'!H154","v":0}]
[null,null,{"$f":"'BNB-System'!C155","v":"Luftschallschutz im Gebäudeinneren"},{"$f":"'BNB-System'!D155","v":30},null,null,{"$f":"IF(AND(NOT(ISBLANK(K159)),NOT(ISBLANK(L159))),('Bewertung durch Anwender'!K159),IF(AND(NOT(ISBLANK(J159)),NOT(ISBLANK(I159))),('Bewertung durch Anwender'!I159),(Zielvereinbarung!G159)))","v":0},{"$f":"Zielvereinbarung!G159","v":0},null,null,null,null,null,null,null,{"$f":"'BNB-System'!H155","v":0}]
[null,null,{"$f":"'BNB-System'!C156","v":"Trittschallschutz gegenüber fremden und eigenen Arbeitsbereichen"},{"$f":"'BNB-System'!D156","v":30},null,null,{"$f":"IF(AND(NOT(ISBLANK(K160)),NOT(ISBLANK(L160))),('Bewertung durch Anwender'!K160),IF(AND(NOT(ISBLANK(J160)),NOT(ISBLANK(I160))),('Bewertung durch Anwender'!I160),(Zielvereinbarung!G160)))","v":0},{"$f":"Zielvereinbarung!G160","v":0},null,null,null,null,null,null,null,{"$f":"'BNB-System'!H156","v":0}]
[null,null,{"$f":"'BNB-System'!C157","v":"Schallschutz gegenüber haustechnischen Anlagen"},{"$f":"'BNB-System'!D157","v":20},null,null,{"$f":"IF(AND(NOT(ISBLANK(K161)),NOT(ISBLANK(L161))),('Bewertung durch Anwender'!K161),IF(AND(NOT(ISBLANK(J161)),NOT(ISBLANK(I161))),('Bewertung durch Anwender'!I161),(Zielvereinbarung!G161)))","v":0},{"$f":"Zielvereinbarung!G161","v":0},null,null,null,null,null,null,null,{"$f":"'BNB-System'!H157","v":0}]
[null,{"$f":"'BNB-System'!B158","v":" 4.1.2"},{"$f":"'BNB-System'!C158","v":"Wärme- und Tauwasserschutz "},{"$f":"'BNB-System'!D158","v":100},{"$f":"'BNB-System'!G158","v":2.0454545454545454E-2},null,{"$f":"IF(AND(NOT(ISBLANK(K162)),NOT(ISBLANK(L162))),('Bewertung durch Anwender'!K162),IF(AND(NOT(ISBLANK(J162)),NOT(ISBLANK(I162))),('Bewertung durch Anwender'!I162),(Zielvereinbarung!G162)))","v":0},{"$f":"Zielvereinbarung!G162","v":0},null,null,null,null,{"$f":"SUM(M163:M168)","v":0},{"$f":"SUM(N163:N168)","v":0},null,{"$f":"'BNB-System'!H158","v":100},{"$f":"IF(ISNUMBER(E162*N162/100),E162*N162/100,0)","v":0}]
[null,null,{"$f":"'BNB-System'!C159","v":"Mittlere Wärmeduchgangskoeffizienten"},{"$f":"'BNB-System'!D159","v":30},null,null,{"$f":"IF(AND(NOT(ISBLANK(K163)),NOT(ISBLANK(L163))),('Bewertung durch Anwender'!K163),IF(AND(NOT(ISBLANK(J163)),NOT(ISBLANK(I163))),('Bewertung durch Anwender'!I163),(Zielvereinbarung!G163)))","v":0},{"$f":"Zielvereinbarung!G163","v":0},null,null,null,null,null,null,null,{"$f":"'BNB-System'!H159","v":0}]
[null,null,{"$f":"'BNB-System'!C160","v":"Wärmebrückenzuschlag"},{"$f":"'BNB-System'!D160","v":15},null,null,{"$f":"IF(AND(NOT(ISBLANK(K164)),NOT(ISBLANK(L164))),('Bewertung durch Anwender'!K164),IF(AND(NOT(ISBLANK(J164)),NOT(ISBLANK(I164))),('Bewertung durch Anwender'!I164),(Zielvereinbarung!G164)))","v":0},{"$f":"Zielvereinbarung!G164","v":0},null,null,null,null,null,null,null,{"$f":"'BNB-System'!H160","v":0}]
[null,null,{"$f":"'BNB-System'!C161","v":"Klassen der Luftdurchlässigkeit (Fugendurchlässigkeit)"},{"$f":"'BNB-System'!D161","v":15},null,null,{"$f":"IF(AND(NOT(ISBLANK(K165)),NOT(ISBLANK(L165))),('Bewertung durch Anwender'!K165),IF(AND(NOT(ISBLANK(J165)),NOT(ISBLANK(I165))),('Bewertung durch Anwender'!I165),(Zielvereinbarung!G165)))","v":0},{"$f":"Zielvereinbarung!G165","v":0},null,null,null,null,null,null,null,{"$f":"'BNB-System'!H161","v":0}]
[null,null,{"$f":"'BNB-System'!C162","v":"Tauwasserbildung"},{"$f":"'BNB-System'!D162","v":10},null,null,{"$f":"IF(AND(NOT(ISBLANK(K166)),NOT(ISBLANK(L166))),('Bewertung durch Anwender'!K166),IF(AND(NOT(ISBLANK(J166)),NOT(ISBLANK(I166))),('Bewertung durch Anwender'!I166),(Zielvereinbarung!G166)))","v":0},{"$f":"Zielvereinbarung!G166","v":0},null,null,null,null,null,null,null,{"$f":"'BNB-System'!H162","v":0}]
[null,null,{"$f":"'BNB-System'!C163","v":"Luftwechsel"},{"$f":"'BNB-System'!D163","v":15},null,null,{"$f":"IF(AND(NOT(ISBLANK(K167)),NOT(ISBLANK(L167))),('Bewertung durch Anwender'!K167),IF(AND(NOT(ISBLANK(J167)),NOT(ISBLANK(I167))),('Bewertung durch Anwender'!I167),(Zielvereinbarung!G167)))","v":0},{"$f":"Zielvereinbarung!G167","v":0},null,null,null,null,null,null,null,{"$f":"'BNB-System'!H163","v":0}]
[null,null,{"$f":"'BNB-System'!C164","v":"Sonneneintragswert"},{"$f":"'BNB-System'!D164","v":15},null,null,{"$f":"IF(AND(NOT(ISBLANK(K168)),NOT(ISBLANK(L168))),('Bewertung durch Anwender'!K168),IF(AND(NOT(ISBLANK(J168)),NOT(ISBLANK(I168))),('Bewertung durch Anwender'!I168),(Zielvereinbarung!G168)))","v":0},{"$f":"Zielvereinbarung!G168","v":0},null,null,null,null,null,null,null,{"$f":"'BNB-System'!H164","v":0}]
[null,{"$f":"'BNB-System'!B165","v":" 4.1.3"},{"$f":"'BNB-System'!C165","v":"Reinigungs- und Instandhaltungsfreundlichkeit"},{"$f":"'BNB-System'!D165","v":100},{"$f":"'BNB-System'!G165","v":4.0909090909090909E-2},null,{"$f":"IF(AND(NOT(ISBLANK(K169)),NOT(ISBLANK(L169))),('Bewertung durch Anwender'!K169),IF(AND(NOT(ISBLANK(J169)),NOT(ISBLANK(I169))),('Bewertung durch Anwender'!I169),(Zielvereinbarung!G169)))","v":0},{"$f":"Zielvereinbarung!G169","v":0},null,null,null,null,{"$f":"SUM(M170:M178)","v":0},{"$f":"SUM(N170:N178)","v":0},null,{"$f":"'BNB-System'!H165","v":200},{"$f":"IF(ISNUMBER(E169*N169/100),E169*N169/100,0)","v":0}]
[null,null,{"$f":"'BNB-System'!C166","v":"Tragkonstruktion"},{"$f":"'BNB-System'!D166","v":15},null,null,{"$f":"IF(AND(NOT(ISBLANK(K170)),NOT(ISBLANK(L170))),('Bewertung durch Anwender'!K170),IF(AND(NOT(ISBLANK(J170)),NOT(ISBLANK(I170))),('Bewertung durch Anwender'!I170),(Zielvereinbarung!G170)))","v":0},{"$f":"Zielvereinbarung!G170","v":0},null,null,null,null,null,null,null,{"$f":"'BNB-System'!H166","v":0}]
[null,null,{"$f":"'BNB-System'!C167","v":"Zugänglichkeit der Außenglasflächen"},{"$f":"'BNB-System'!D167","v":15},null,null,{"$f":"IF(AND(NOT(ISBLANK(K171)),NOT(ISBLANK(L171))),('Bewertung durch Anwender'!K171),IF(AND(NOT(ISBLANK(J171)),NOT(ISBLANK(I171))),('Bewertung durch Anwender'!I171),(Zielvereinbarung!G171)))","v":0},{"$f":"Zielvereinbarung!G171","v":0},null,null,null,null,null,null,null,{"$f":"'BNB-System'!H167","v":0}]
[null,null,{"$f":"'BNB-System'!C168","v":"Außenbauteile"},{"$f":"'BNB-System'!D168","v":9},null,null,{"$f":"IF(AND(NOT(ISBLANK(K172)),NOT(ISBLANK(L172))),('Bewertung durch Anwender'!K172),IF(AND(NOT(ISBLANK(J172)),NOT(ISBLANK(I172))),('Bewertung durch Anwender'!I172),(Zielvereinbarung!G172)))","v":0},{"$f":"Zielvereinbarung!G172","v":0},null,null,null,null,null,null,null,{"$f":"'BNB-System'!H168","v":0}]
[null,null,{"$f":"'BNB-System'!C169","v":"Bodenbelag"},{"$f":"'BNB-System'!D169","v":9},null,null,{"$f":"IF(AND(NOT(ISBLANK(K173)),NOT(ISBLANK(L173))),('Bewertung durch Anwender'!K173),IF(AND(NOT(ISBLANK(J173)),NOT(ISBLANK(I173))),('Bewertung durch Anwender'!I173),(Zielvereinbarung!G173)))","v":0},{"$f":"Zielvereinbarung!G173","v":0},null,null,null,null,null,null,null,{"$f":"'BNB-System'!H169","v":0}]
[null,null,{"$f":"'BNB-System'!C170","v":"Schmutzfangzone"},{"$f":"'BNB-System'!D170","v":9},null,null,{"$f":"IF(AND(NOT(ISBLANK(K174)),NOT(ISBLANK(L174))),('Bewertung durch Anwender'!K174),IF(AND(NOT(ISBLANK(J174)),NOT(ISBLANK(I174))),('Bewertung durch Anwender'!I174),(Zielvereinbarung!G174)))","v":0},{"$f":"Zielvereinbarung!G174","v":0},null,null,null,null,null,null,null,{"$f":"'BNB-System'!H170","v":0}]
[null,null,{"$f":"'BNB-System'!C171","v":"Fußbodenleisten"},{"$f":"'BNB-System'!D171","v":9},null,null,{"$f":"IF(AND(NOT(ISBLANK(K175)),NOT(ISBLANK(L175))),('Bewertung durch Anwender'!K175),IF(AND(NOT(ISBLANK(J175)),NOT(ISBLANK(I175))),('Bewertung durch Anwender'!I175),(Zielvereinbarung!G175)))","v":0},{"$f":"Zielvereinbarung!G175","v":0},null,null,null,null,null,null,null,{"$f":"'BNB-System'!H171","v":0}]
[null,null,{"$f":"'BNB-System'!C172","v":"Hindernisfreie Grundrissgestaltung"},{"$f":"'BNB-System'!D172","v":9},null,null,{"$f":"IF(AND(NOT(ISBLANK(K176)),NOT(ISBLANK(L176))),('Bewertung durch Anwender'!K176),IF(AND(NOT(ISBLANK(J176)),NOT(ISBLANK(I176))),('Bewertung durch Anwender'!I176),(Zielvereinbarung!G176)))","v":0},{"$f":"Zielvereinbarung!G176","v":0},null,null,null,null,null,null,null,{"$f":"'BNB-System'!H172","v":0}]
[null,null,{"$f":"'BNB-System'!C173","v":"Einbauten"},{"$f":"'BNB-System'!D173","v":10},null,null,{"$f":"IF(AND(NOT(ISBLANK(K177)),NOT(ISBLANK(L177))),('Bewertung durch Anwender'!K177),IF(AND(NOT(ISBLANK(J177)),NOT(ISBLANK(I177))),('Bewertung durch Anwender'!I177),(Zielvereinbarung!G177)))","v":0},{"$f":"Zielvereinbarung!G177","v":0},null,null,null,null,null,null,null,{"$f":"'BNB-System'!H173","v":0}]
[null,null,{"$f":"'BNB-System'!C174","v":"Zugänglichkeit der Innenglasflächen "},{"$f":"'BNB-System'!D174","v":15},null,null,{"$f":"IF(AND(NOT(ISBLANK(K178)),NOT(ISBLANK(L178))),('Bewertung durch Anwender'!K178),IF(AND(NOT(ISBLANK(J178)),NOT(ISBLANK(I178))),('Bewertung durch Anwender'!I178),(Zielvereinbarung!G178)))","v":0},{"$f":"Zielvereinbarung!G178","v":0},null,null,null,null,null,null,null,{"$f":"'BNB-System'!H174","v":0}]
[null,{"$f":"'BNB-System'!B175","v":" 4.1.4"},{"$f":"'BNB-System'!C175","v":"Rückbau, Trennung und Verwertung"},{"$f":"'BNB-System'!D175","v":100},{"$f":"'BNB-System'!G175","v":2.0454545454545454E-2},null,{"$f":"IF(AND(NOT(ISBLANK(K179)),NOT(ISBLANK(L179))),('Bewertung durch Anwender'!K179),IF(AND(NOT(ISBLANK(J179)),NOT(ISBLANK(I179))),('Bewertung durch Anwender'!I179),(Zielvereinbarung!G179)))","v":0},{"$f":"Zielvereinbarung!G179","v":0},null,null,null,null,null,null,null,{"$f":"'BNB-System'!H175","v":100},{"$f":"IF(ISNUMBER(E179*N179/100),E179*N179/100,0)","v":0}]
[null,{"$f":"'BNB-System'!B176","v":" 4.1.5"},{"$f":"'BNB-System'!C176","v":"Widerstandsfähigkeit gegen Naturgefahren"},{"$f":"'BNB-System'!D176","v":100},{"$f":"'BNB-System'!G176","v":2.0454545454545454E-2},null,{"$f":"IF(AND(NOT(ISBLANK(K180)),NOT(ISBLANK(L180))),('Bewertung durch Anwender'!K180),IF(AND(NOT(ISBLANK(J180)),NOT(ISBLANK(I180))),('Bewertung durch Anwender'!I180),(Zielvereinbarung!G180)))","v":0},{"$f":"Zielvereinbarung!G180","v":0},null,null,null,null,null,null,null,{"$f":"'BNB-System'!H176","v":100},{"$f":"IF(ISNUMBER(E180*N180/100),E180*N180/100,0)","v":0}]
[null,{"$f":"'BNB-System'!B177","v":" 4.1.6"},{"$f":"'BNB-System'!C177","v":"Bedienungs- und Instandhaltungsfreundlichkeit der TGA"},{"$f":"'BNB-System'!D177","v":100},{"$f":"'BNB-System'!G177","v":4.0909090909090909E-2},null,{"$f":"IF(AND(NOT(ISBLANK(K181)),NOT(ISBLANK(L181))),('Bewertung durch Anwender'!K181),IF(AND(NOT(ISBLANK(J181)),NOT(ISBLANK(I181))),('Bewertung durch Anwender'!I181),(Zielvereinbarung!G181)))","v":0},{"$f":"Zielvereinbarung!G181","v":0},null,null,null,null,null,null,null,{"$f":"'BNB-System'!H177","v":200},{"$f":"IF(ISNUMBER(E181*N181/100),E181*N181/100,0)","v":0}]
[null,{"$f":"'BNB-System'!B178","v":" 4.1.7"},{"$f":"'BNB-System'!C178","v":"Systemqualität der TGA"},{"$f":"'BNB-System'!D178","v":100},{"$f":"'BNB-System'!G178","v":6.1363636363636363E-2},null,{"$f":"IF(AND(NOT(ISBLANK(K182)),NOT(ISBLANK(L182))),('Bewertung durch Anwender'!K182),IF(AND(NOT(ISBLANK(J182)),NOT(ISBLANK(I182))),('Bewertung durch Anwender'!I182),(Zielvereinbarung!G182)))","v":0},{"$f":"Zielvereinbarung!G182","v":0},null,null,null,null,null,null,null,{"$f":"'BNB-System'!H178","v":300},{"$f":"IF(ISNUMBER(E182*N182/100),E182*N182/100,0)","v":0}]
[null,null,null,null,null,null,null,null,null,null,null,null,null,null,null,{"$f":"'BNB-System'!H179","v":0}]
[null,{"$f":"'BNB-System'!B180","v":"Prozessqualität"},null,null,{"$f":"'BNB-System'!G180","v":0.1},null,{"$f":"IF(AND(NOT(ISBLANK(K184)),NOT(ISBLANK(L184))),('Bewertung durch Anwender'!K184),IF(AND(NOT(ISBLANK(J184)),NOT(ISBLANK(I184))),('Bewertung durch Anwender'!I184),(Zielvereinbarung!G184)))","v":0},{"$f":"Zielvereinbarung!G184","v":0},null,null,null,null,{"$f":"M187*($E$187/100)+M191*($E$191/100)+M197*($E$197/100)+M213*($E$213/100)+M214*($E$214/100)+M221*($E$221/100)+M226*($E$226/100)+M229*($E$229/100)","v":0},{"$f":"N187*($E$187/100)+N191*($E$191/100)+N197*($E$197/100)+N213*($E$213/100)+N214*($E$214/100)+N221*($E$221/100)+N226*($E$226/100)+N229*($E$229/100)","v":0},null,{"$f":"'BNB-System'!H180","v":2100}]
[null,null,null,null,null,null,null,null,null,null,null,null,null,null,null,{"$f":"'BNB-System'!H181","v":0}]
[null,null,{"$f":"'BNB-System'!C182","v":"Planung"},null,null,null,null,null,null,null,null,null,null,null,null,{"$f":"'BNB-System'!H182","v":0}]
[null,{"$f":"'BNB-System'!B183","v":" 5.1.1"},{"$f":"'BNB-System'!C183","v":"Projektvorbereitung"},{"$f":"'BNB-System'!D183","v":100},{"$f":"'BNB-System'!G183","v":1.4285714285714285E-2},null,{"$f":"IF(AND(NOT(ISBLANK(K187)),NOT(ISBLANK(L187))),('Bewertung durch Anwender'!K187),IF(AND(NOT(ISBLANK(J187)),NOT(ISBLANK(I187))),('Bewertung durch Anwender'!I187),(Zielvereinbarung!G187)))","v":0},{"$f":"Zielvereinbarung!G187","v":0},null,null,null,null,{"$f":"SUM(M188:M190)","v":0},{"$f":"SUM(N188:N190)","v":0},null,{"$f":"'BNB-System'!H183","v":300},{"$f":"IF(ISNUMBER(E187*N187/100),E187*N187/100,0)","v":0}]
[null,null,{"$f":"'BNB-System'!C184","v":"Bedarfsplanung oder vergleichbare Planung"},{"$f":"'BNB-System'!D184","v":35},null,null,{"$f":"IF(AND(NOT(ISBLANK(K188)),NOT(ISBLANK(L188))),('Bewertung durch Anwender'!K188),IF(AND(NOT(ISBLANK(J188)),NOT(ISBLANK(I188))),('Bewertung durch Anwender'!I188),(Zielvereinbarung!G188)))","v":0},{"$f":"Zielvereinbarung!G188","v":0},null,null,null,null,null,null,null,{"$f":"'BNB-System'!H184","v":0}]
[null,null,{"$f":"'BNB-System'!C185","v":"Zielvereinbarung"},{"$f":"'BNB-System'!D185","v":35},null,null,{"$f":"IF(AND(NOT(ISBLANK(K189)),NOT(ISBLANK(L189))),('Bewertung durch Anwender'!K189),IF(AND(NOT(ISBLANK(J189)),NOT(ISBLANK(I189))),('Bewertung durch Anwender'!I189),(Zielvereinbarung!G189)))","v":0},{"$f":"Zielvereinbarung!G189","v":0},null,null,null,null,null,null,null,{"$f":"'BNB-System'!H185","v":0}]
[null,null,{"$f":"'BNB-System'!C186","v":"Architektenwettbewerb"},{"$f":"'BNB-System'!D186","v":30},null,null,{"$f":"IF(AND(NOT(ISBLANK(K190)),NOT(ISBLANK(L190))),('Bewertung durch Anwender'!K190),IF(AND(NOT(ISBLANK(J190)),NOT(ISBLANK(I190))),('Bewertung durch Anwender'!I190),(Zielvereinbarung!G190)))","v":0},{"$f":"Zielvereinbarung!G190","v":0},null,null,null,null,null,null,null,{"$f":"'BNB-System'!H186","v":0}]
[null,{"$f":"'BNB-System'!B187","v":" 5.1.2"},{"$f":"'BNB-System'!C187","v":"Integrale Planung"},{"$f":"'BNB-System'!D187","v":100},{"$f":"'BNB-System'!G187","v":1.4285714285714285E-2},null,{"$f":"IF(AND(NOT(ISBLANK(K191)),NOT(ISBLANK(L191))),('Bewertung durch Anwender'!K191),IF(AND(NOT(ISBLANK(J191)),NOT(ISBLANK(I191))),('Bewertung durch Anwender'!I191),(Zielvereinbarung!G191)))","v":0},{"$f":"Zielvereinbarung!G191","v":0},null,null,null,null,{"$f":"SUM(M192:M196)","v":0},{"$f":"SUM(N192:N196)","v":0},null,{"$f":"'BNB-System'!H187","v":300},{"$f":"IF(ISNUMBER(E191*N191/100),E191*N191/100,0)","v":0}]
[null,null,{"$f":"'BNB-System'!C188","v":"Interdisziplinäres Projektteam"},{"$f":"'BNB-System'!D188","v":30},null,null,{"$f":"IF(AND(NOT(ISBLANK(K192)),NOT(ISBLANK(L192))),('Bewertung durch Anwender'!K192),IF(AND(NOT(ISBLANK(J192)),NOT(ISBLANK(I192))),('Bewertung durch Anwender'!I192),(Zielvereinbarung!G192)))","v":0},{"$f":"Zielvereinbarung!G192","v":0},null,null,null,null,null,null,null,{"$f":"'BNB-System'!H188","v":0}]
[null,null,{"$f":"'BNB-System'!C189","v":"Qualifikation des Projektteams"},{"$f":"'BNB-System'!D189","v":20},null,null,{"$f":"IF(AND(NOT(ISBLANK(K193)),NOT(ISBLANK(L193))),('Bewertung durch Anwender'!K193),IF(AND(NOT(ISBLANK(J193)),NOT(ISBLANK(I193))),('Bewertung durch Anwender'!I193),(Zielvereinbarung!G193)))","v":0},{"$f":"Zielvereinbarung!G193","v":0},null,null,null,null,null,null,null,{"$f":"'BNB-System'!H189","v":0}]
[null,null,{"$f":"'BNB-System'!C190","v":"Integraler Planungsprozess"},{"$f":"'BNB-System'!D190","v":20},null,null,{"$f":"IF(AND(NOT(ISBLANK(K194)),NOT(ISBLANK(L194))),('Bewertung durch Anwender'!K194),IF(AND(NOT(ISBLANK(J194)),NOT(ISBLANK(I194))),('Bewertung durch Anwender'!I194),(Zielvereinbarung!G194)))","v":0},{"$f":"Zielvereinbarung!G194","v":0},null,null,null,null,null,null,null,{"$f":"'BNB-System'!H190","v":0}]
[null,null,{"$f":"'BNB-System'!C191","v":"Nutzerbeteiligung"},{"$f":"'BNB-System'!D191","v":20},null,null,{"$f":"IF(AND(NOT(ISBLANK(K195)),NOT(ISBLANK(L195))),('Bewertung durch Anwender'!K195),IF(AND(NOT(ISBLANK(J195)),NOT(ISBLANK(I195))),('Bewertung durch Anwender'!I195),(Zielvereinbarung!G195)))","v":0},{"$f":"Zielvereinbarung!G195","v":0},null,null,null,null,null,null,null,{"$f":"'BNB-System'!H191","v":0}]
[null,null,{"$f":"'BNB-System'!C192","v":"Öffentlichkeitsbeteiligung"},{"$f":"'BNB-System'!D192","v":10},null,null,{"$f":"IF(AND(NOT(ISBLANK(K196)),NOT(ISBLANK(L196))),('Bewertung durch Anwender'!K196),IF(AND(NOT(ISBLANK(J196)),NOT(ISBLANK(I196))),('Bewertung durch Anwender'!I196),(Zielvereinbarung!G196)))","v":0},{"$f":"Zielvereinbarung!G196","v":0},null,null,null,null,null,null,null,{"$f":"'BNB-System'!H192","v":0}]
[null,{"$f":"'BNB-System'!B193","v":" 5.1.3"},{"$f":"'BNB-System'!C193","v":"Komplexität und Optimierung der Planung"},{"$f":"'BNB-System'!D193","v":100},{"$f":"'BNB-System'!G193","v":1.4285714285714285E-2},null,{"$f":"IF(AND(NOT(ISBLANK(K197)),NOT(ISBLANK(L197))),('Bewertung durch Anwender'!K197),IF(AND(NOT(ISBLANK(J197)),NOT(ISBLANK(I197))),('Bewertung durch Anwender'!I197),(Zielvereinbarung!G197)))","v":0},{"$f":"Zielvereinbarung!G197","v":0},null,null,null,null,{"$f":"IF(SUM(M198:M212)>100,100,SUM(M198:M212))","v":0},{"$f":"IF(SUM(N198:N212)>100,100,SUM(N198:N212))","v":0},null,{"$f":"'BNB-System'!H193","v":300},{"$f":"IF(ISNUMBER(E197*N197/100),E197*N197/100,0)","v":0}]
[null,null,{"$f":"'BNB-System'!C194","v":"SiGe-Plan"},{"$f":"'BNB-System'!D194","v":10},null,null,{"$f":"IF(AND(NOT(ISBLANK(K198)),NOT(ISBLANK(L198))),('Bewertung durch Anwender'!K198),IF(AND(NOT(ISBLANK(J198)),NOT(ISBLANK(I198))),('Bewertung durch Anwender'!I198),(Zielvereinbarung!G198)))","v":0},{"$f":"Zielvereinbarung!G198","v":0},null,null,null,null,null,null,null,{"$f":"'BNB-System'!H194","v":0}]
[null,null,{"$f":"'BNB-System'!C195","v":"Ver- und Entsiegelungskonzept"},{"$f":"'BNB-System'!D195","v":10},null,null,{"$f":"IF(AND(NOT(ISBLANK(K199)),NOT(ISBLANK(L199))),('Bewertung durch Anwender'!K199),IF(AND(NOT(ISBLANK(J199)),NOT(ISBLANK(I199))),('Bewertung durch Anwender'!I199),(Zielvereinbarung!G199)))","v":0},{"$f":"Zielvereinbarung!G199","v":0},null,null,null,null,null,null,null,{"$f":"'BNB-System'!H195","v":0}]
[null,null,{"$f":"'BNB-System'!C196","v":"Energiekonzept"},{"$f":"'BNB-System'!D196","v":15},null,null,{"$f":"IF(AND(NOT(ISBLANK(K200)),NOT(ISBLANK(L200))),('Bewertung durch Anwender'!K200),IF(AND(NOT(ISBLANK(J200)),NOT(ISBLANK(I200))),('Bewertung durch Anwender'!I200),(Zielvereinbarung!G200)))","v":0},{"$f":"Zielvereinbarung!G200","v":0},null,null,null,null,null,null,null,{"$f":"'BNB-System'!H196","v":0}]
[null,null,{"$f":"'BNB-System'!C197","v":"Mess- und Monitoringkonzept"},{"$f":"'BNB-System'!D197","v":15},null,null,{"$f":"IF(AND(NOT(ISBLANK(K201)),NOT(ISBLANK(L201))),('Bewertung durch Anwender'!K201),IF(AND(NOT(ISBLANK(J201)),NOT(ISBLANK(I201))),('Bewertung durch Anwender'!I201),(Zielvereinbarung!G201)))","v":0},{"$f":"Zielvereinbarung!G201","v":0},null,null,null,null,null,null,null,{"$f":"'BNB-System'!H197","v":0}]
[null,null,{"$f":"'BNB-System'!C198","v":"Wasserkonzept"},{"$f":"'BNB-System'!D198","v":20},null,null,{"$f":"IF(AND(NOT(ISBLANK(K202)),NOT(ISBLANK(L202))),('Bewertung durch Anwender'!K202),IF(AND(NOT(ISBLANK(J202)),NOT(ISBLANK(I202))),('Bewertung durch Anwender'!I202),(Zielvereinbarung!G202)))","v":0},{"$f":"Zielvereinbarung!G202","v":0},null,null,null,null,null,null,null,{"$f":"'BNB-System'!H198","v":0}]
[null,null,{"$f":"'BNB-System'!C199","v":"Konzept zur Vermeid. von Umwelt- & Gesundheitsrisiken aus Bauprod."},{"$f":"'BNB-System'!D199","v":10},null,null,{"$f":"IF(AND(NOT(ISBLANK(K203)),NOT(ISBLANK(L203))),('Bewertung durch Anwender'!K203),IF(AND(NOT(ISBLANK(J203)),NOT(ISBLANK(I203))),('Bewertung durch Anwender'!I203),(Zielvereinbarung!G203)))","v":0},{"$f":"Zielvereinbarung!G203","v":0},null,null,null,null,null,null,null,{"$f":"'BNB-System'!H199","v":0}]
[null,null,{"$f":"'BNB-System'!C200","v":"Lüftungskonzept"},{"$f":"'BNB-System'!D200","v":10},null,null,{"$f":"IF(AND(NOT(ISBLANK(K204)),NOT(ISBLANK(L204))),('Bewertung durch Anwender'!K204),IF(AND(NOT(ISBLANK(J204)),NOT(ISBLANK(I204))),('Bewertung durch Anwender'!I204),(Zielvereinbarung!G204)))","v":0},{"$f":"Zielvereinbarung!G204","v":0},null,null,null,null,null,null,null,{"$f":"'BNB-System'!H200","v":0}]
[null,null,{"$f":"'BNB-System'!C201","v":"Abfallkonzept / Wertstoffkonzept"},{"$f":"'BNB-System'!D201","v":5},null,null,{"$f":"IF(AND(NOT(ISBLANK(K205)),NOT(ISBLANK(L205))),('Bewertung durch Anwender'!K205),IF(AND(NOT(ISBLANK(J205)),NOT(ISBLANK(I205))),('Bewertung durch Anwender'!I205),(Zielvereinbarung!G205)))","v":0},{"$f":"Zielvereinbarung!G205","v":0},null,null,null,null,null,null,null,{"$f":"'BNB-System'!H201","v":0}]
[null,null,{"$f":"'BNB-System'!C202","v":"Tages- / Kunstlichtoptimierung"},{"$f":"'BNB-System'!D202","v":10},null,null,{"$f":"IF(AND(NOT(ISBLANK(K206)),NOT(ISBLANK(L206))),('Bewertung durch Anwender'!K206),IF(AND(NOT(ISBLANK(J206)),NOT(ISBLANK(I206))),('Bewertung durch Anwender'!I206),(Zielvereinbarung!G206)))","v":0},{"$f":"Zielvereinbarung!G206","v":0},null,null,null,null,null,null,null,{"$f":"'BNB-System'!H202","v":0}]
[null,null,{"$f":"'BNB-System'!C203","v":"Konzept zur Sicherung der Reinigungs- & Instandhaltungsfreundlichk."},{"$f":"'BNB-System'!D203","v":10},null,null,{"$f":"IF(AND(NOT(ISBLANK(K207)),NOT(ISBLANK(L207))),('Bewertung durch Anwender'!K207),IF(AND(NOT(ISBLANK(J207)),NOT(ISBLANK(I207))),('Bewertung durch Anwender'!I207),(Zielvereinbarung!G207)))","v":0},{"$f":"Zielvereinbarung!G207","v":0},null,null,null,null,null,null,null,{"$f":"'BNB-System'!H203","v":0}]
[null,null,{"$f":"'BNB-System'!C204","v":"Anpassbarkeits-, Rückbau- und Recyclingkonzept"},{"$f":"'BNB-System'!D204","v":10},null,null,{"$f":"IF(AND(NOT(ISBLANK(K208)),NOT(ISBLANK(L208))),('Bewertung durch Anwender'!K208),IF(AND(NOT(ISBLANK(J208)),NOT(ISBLANK(I208))),('Bewertung durch Anwender'!I208),(Zielvereinbarung!G208)))","v":0},{"$f":"Zielvereinbarung!G208","v":0},null,null,null,null,null,null,null,{"$f":"'BNB-System'!H204","v":0}]
[null,null,{"$f":"'BNB-System'!C205","v":"Konzept zur Vermeidung und Beherrschung von Risiken"},{"$f":"'BNB-System'!D205","v":10},null,null,{"$f":"IF(AND(NOT(ISBLANK(K209)),NOT(ISBLANK(L209))),('Bewertung durch Anwender'!K209),IF(AND(NOT(ISBLANK(J209)),NOT(ISBLANK(I209))),('Bewertung durch Anwender'!I209),(Zielvereinbarung!G209)))","v":0},{"$f":"Zielvereinbarung!G209","v":0},null,null,null,null,null,null,null,{"$f":"'BNB-System'!H205","v":0}]
[null,null,{"$f":"'BNB-System'!C206","v":"Sonstige Konzepte zum Nachhaltigen Bauen"},{"$f":"'BNB-System'!D206","v":10},null,null,{"$f":"IF(AND(NOT(ISBLANK(K210)),NOT(ISBLANK(L210))),('Bewertung durch Anwender'!K210),IF(AND(NOT(ISBLANK(J210)),NOT(ISBLANK(I210))),('Bewertung durch Anwender'!I210),(Zielvereinbarung!G210)))","v":0},{"$f":"Zielvereinbarung!G210","v":0},null,null,null,null,null,null,null,{"$f":"'BNB-System'!H206","v":0}]
[null,null,{"$f":"'BNB-System'!C207","v":"Prüfung der Planungsunterlagen durch unabhängige Dritte"},{"$f":"'BNB-System'!D207","v":5},null,null,{"$f":"IF(AND(NOT(ISBLANK(K211)),NOT(ISBLANK(L211))),('Bewertung durch Anwender'!K211),IF(AND(NOT(ISBLANK(J211)),NOT(ISBLANK(I211))),('Bewertung durch Anwender'!I211),(Zielvereinbarung!G211)))","v":0},{"$f":"Zielvereinbarung!G211","v":0},null,null,null,null,null,null,null,{"$f":"'BNB-System'!H207","v":0}]
[null,null,{"$f":"'BNB-System'!C208","v":"Durchführung von Variantenvergleichen"},{"$f":"'BNB-System'!D208","v":10},null,null,{"$f":"IF(AND(NOT(ISBLANK(K212)),NOT(ISBLANK(L212))),('Bewertung durch Anwender'!K212),IF(AND(NOT(ISBLANK(J212)),NOT(ISBLANK(I212))),('Bewertung durch Anwender'!I212),(Zielvereinbarung!G212)))","v":0},{"$f":"Zielvereinbarung!G212","v":0},null,null,null,null,null,null,null,{"$f":"'BNB-System'!H208","v":0}]
[null,{"$f":"'BNB-System'!B209","v":" 5.1.4"},{"$f":"'BNB-System'!C209","v":"Ausschreibung und Vergabe"},{"$f":"'BNB-System'!D209","v":100},{"$f":"'BNB-System'!G209","v":9.5238095238095247E-3},null,{"$f":"IF(AND(NOT(ISBLANK(K213)),NOT(ISBLANK(L213))),('Bewertung durch Anwender'!K213),IF(AND(NOT(ISBLANK(J213)),NOT(ISBLANK(I213))),('Bewertung durch Anwender'!I213),(Zielvereinbarung!G213)))","v":0},{"$f":"Zielvereinbarung!G213","v":0},null,null,null,null,null,null,null,{"$f":"'BNB-System'!H209","v":200},{"$f":"IF(ISNUMBER(E213*N213/100),E213*N213/100,0)","v":0}]
[null,{"$f":"'BNB-System'!B210","v":" 5.1.5"},{"$f":"'BNB-System'!C210","v":"Voraussetzungen für eine optimale Bewirtschaftung"},{"$f":"'BNB-System'!D210","v":100},{"$f":"'BNB-System'!G210","v":9.5238095238095247E-3},null,{"$f":"IF(AND(NOT(ISBLANK(K214)),NOT(ISBLANK(L214))),('Bewertung durch Anwender'!K214),IF(AND(NOT(ISBLANK(J214)),NOT(ISBLANK(I214))),('Bewertung durch Anwender'!I214),(Zielvereinbarung!G214)))","v":0},{"$f":"Zielvereinbarung!G214","v":0},null,null,null,null,{"$f":"SUM(M215:M219)","v":0},{"$f":"SUM(N215:N219)","v":0},null,{"$f":"'BNB-System'!H210","v":200},{"$f":"IF(ISNUMBER(E214*N214/100),E214*N214/100,0)","v":0}]
[null,null,{"$f":"'BNB-System'!C211","v":"Erstellung einer Gebäudeakte / Objektdokumentation"},{"$f":"'BNB-System'!D211","v":20},null,null,{"$f":"IF(AND(NOT(ISBLANK(K215)),NOT(ISBLANK(L215))),('Bewertung durch Anwender'!K215),IF(AND(NOT(ISBLANK(J215)),NOT(ISBLANK(I215))),('Bewertung durch Anwender'!I215),(Zielvereinbarung!G215)))","v":0},{"$f":"Zielvereinbarung!G215","v":0},null,null,null,null,null,null,null,{"$f":"'BNB-System'!H211","v":0}]
[null,null,{"$f":"'BNB-System'!C212","v":"Erstellung von Wartungs-, Inspektions-, Betriebs-, Pflegeanleitungen"},{"$f":"'BNB-System'!D212","v":20},null,null,{"$f":"IF(AND(NOT(ISBLANK(K216)),NOT(ISBLANK(L216))),('Bewertung durch Anwender'!K216),IF(AND(NOT(ISBLANK(J216)),NOT(ISBLANK(I216))),('Bewertung durch Anwender'!I216),(Zielvereinbarung!G216)))","v":0},{"$f":"Zielvereinbarung!G216","v":0},null,null,null,null,null,null,null,{"$f":"'BNB-System'!H212","v":0}]
[null,null,{"$f":"'BNB-System'!C213","v":"Anpassung der Pläne und Berechnungen an das realisierte Gebäude"},{"$f":"'BNB-System'!D213","v":20},null,null,{"$f":"IF(AND(NOT(ISBLANK(K217)),NOT(ISBLANK(L217))),('Bewertung durch Anwender'!K217),IF(AND(NOT(ISBLANK(J217)),NOT(ISBLANK(I217))),('Bewertung durch Anwender'!I217),(Zielvereinbarung!G217)))","v":0},{"$f":"Zielvereinbarung!G217","v":0},null,null,null,null,null,null,null,{"$f":"'BNB-System'!H213","v":0}]
[null,null,{"$f":"'BNB-System'!C214","v":"Erstellung eines Nutzerhandbuches"},{"$f":"'BNB-System'!D214","v":20},null,null,{"$f":"IF(AND(NOT(ISBLANK(K218)),NOT(ISBLANK(L218))),('Bewertung durch Anwender'!K218),IF(AND(NOT(ISBLANK(J218)),NOT(ISBLANK(I218))),('Bewertung durch Anwender'!I218),(Zielvereinbarung!G218)))","v":0},{"$f":"Zielvereinbarung!G218","v":0},null,null,null,null,null,null,null,{"$f":"'BNB-System'!H214","v":0}]
[null,null,{"$f":"'BNB-System'!C215","v":"Nutzereinweisung"},{"$f":"'BNB-System'!D215","v":20},null,null,{"$f":"IF(AND(NOT(ISBLANK(K219)),NOT(ISBLANK(L219))),('Bewertung durch Anwender'!K219),IF(AND(NOT(ISBLANK(J219)),NOT(ISBLANK(I219))),('Bewertung durch Anwender'!I219),(Zielvereinbarung!G219)))","v":0},{"$f":"Zielvereinbarung!G219","v":0},null,null,null,null,null,null,null,{"$f":"'BNB-System'!H215","v":0}]
[null,null,{"$f":"'BNB-System'!C216","v":"Bauausführung"},null,null,null,null,null,null,null,null,null,null,null,null,{"$f":"'BNB-System'!H216","v":0}]
[null,{"$f":"'BNB-System'!B217","v":" 5.2.1"},{"$f":"'BNB-System'!C217","v":"Baustelle / Bauprozess"},{"$f":"'BNB-System'!D217","v":100},{"$f":"'BNB-System'!G217","v":9.5238095238095247E-3},null,{"$f":"IF(AND(NOT(ISBLANK(K221)),NOT(ISBLANK(L221))),('Bewertung durch Anwender'!K221),IF(AND(NOT(ISBLANK(J221)),NOT(ISBLANK(I221))),('Bewertung durch Anwender'!I221),(Zielvereinbarung!G221)))","v":0},{"$f":"Zielvereinbarung!G221","v":0},null,null,null,null,{"$f":"SUM(M222:M225)","v":0},{"$f":"SUM(N222:N225)","v":0},null,{"$f":"'BNB-System'!H217","v":200},{"$f":"IF(ISNUMBER(E221*N221/100),E221*N221/100,0)","v":0}]
[null,null,{"$f":"'BNB-System'!C218","v":"Wertstoffoptimierte Baustelle"},{"$f":"'BNB-System'!D218","v":25},null,null,{"$f":"IF(AND(NOT(ISBLANK(K222)),NOT(ISBLANK(L222))),('Bewertung durch Anwender'!K222),IF(AND(NOT(ISBLANK(J222)),NOT(ISBLANK(I222))),('Bewertung durch Anwender'!I222),(Zielvereinbarung!G222)))","v":0},{"$f":"Zielvereinbarung!G222","v":0},null,null,null,null,null,null,null,{"$f":"'BNB-System'!H218","v":0}]
[null,null,{"$f":"'BNB-System'!C219","v":"Lärmarme Baustelle"},{"$f":"'BNB-System'!D219","v":25},null,null,{"$f":"IF(AND(NOT(ISBLANK(K223)),NOT(ISBLANK(L223))),('Bewertung durch Anwender'!K223),IF(AND(NOT(ISBLANK(J223)),NOT(ISBLANK(I223))),('Bewertung durch Anwender'!I223),(Zielvereinbarung!G223)))","v":0},{"$f":"Zielvereinbarung!G223","v":0},null,null,null,null,null,null,null,{"$f":"'BNB-System'!H219","v":0}]
[null,null,{"$f":"'BNB-System'!C220","v":"Staubarme Baustelle"},{"$f":"'BNB-System'!D220","v":25},null,null,{"$f":"IF(AND(NOT(ISBLANK(K224)),NOT(ISBLANK(L224))),('Bewertung durch Anwender'!K224),IF(AND(NOT(ISBLANK(J224)),NOT(ISBLANK(I224))),('Bewertung durch Anwender'!I224),(Zielvereinbarung!G224)))","v":0},{"$f":"Zielvereinbarung!G224","v":0},null,null,null,null,null,null,null,{"$f":"'BNB-System'!H220","v":0}]
[null,null,{"$f":"'BNB-System'!C221","v":"Bodenschutz auf der Baustelle"},{"$f":"'BNB-System'!D221","v":25},null,null,{"$f":"IF(AND(NOT(ISBLANK(K225)),NOT(ISBLANK(L225))),('Bewertung durch Anwender'!K225),IF(AND(NOT(ISBLANK(J225)),NOT(ISBLANK(I225))),('Bewertung durch Anwender'!I225),(Zielvereinbarung!G225)))","v":0},{"$f":"Zielvereinbarung!G225","v":0},null,null,null,null,null,null,null,{"$f":"'BNB-System'!H221","v":0}]
[null,{"$f":"'BNB-System'!B222","v":" 5.2.2"},{"$f":"'BNB-System'!C222","v":"Qualitätssicherung der Bauausführung"},{"$f":"'BNB-System'!D222","v":100},{"$f":"'BNB-System'!G222","v":1.4285714285714285E-2},null,{"$f":"IF(AND(NOT(ISBLANK(K226)),NOT(ISBLANK(L226))),('Bewertung durch Anwender'!K226),IF(AND(NOT(ISBLANK(J226)),NOT(ISBLANK(I226))),('Bewertung durch Anwender'!I226),(Zielvereinbarung!G226)))","v":0},{"$f":"Zielvereinbarung!G226","v":0},null,null,null,null,{"$f":"SUM(M227:M228)","v":0},{"$f":"SUM(N227:N228)","v":0},null,{"$f":"'BNB-System'!H222","v":300},{"$f":"IF(ISNUMBER(E226*N226/100),E226*N226/100,0)","v":0}]
[null,null,{"$f":"'BNB-System'!C223","v":"Dokumentation"},{"$f":"'BNB-System'!D223","v":50},null,null,{"$f":"IF(AND(NOT(ISBLANK(K227)),NOT(ISBLANK(L227))),('Bewertung durch Anwender'!K227),IF(AND(NOT(ISBLANK(J227)),NOT(ISBLANK(I227))),('Bewertung durch Anwender'!I227),(Zielvereinbarung!G227)))","v":0},{"$f":"Zielvereinbarung!G227","v":0},null,null,null,null,null,null,null,{"$f":"'BNB-System'!H223","v":0}]
[null,null,{"$f":"'BNB-System'!C224","v":"Messungen zur Qualitätskontrolle"},{"$f":"'BNB-System'!D224","v":50},null,null,{"$f":"IF(AND(NOT(ISBLANK(K228)),NOT(ISBLANK(L228))),('Bewertung durch Anwender'!K228),IF(AND(NOT(ISBLANK(J228)),NOT(ISBLANK(I228))),('Bewertung durch Anwender'!I228),(Zielvereinbarung!G228)))","v":0},{"$f":"Zielvereinbarung!G228","v":0},null,null,null,null,null,null,null,{"$f":"'BNB-System'!H224","v":0}]
[null,{"$f":"'BNB-System'!B225","v":" 5.2.3"},{"$f":"'BNB-System'!C225","v":"Systematische Inbetriebnahme"},{"$f":"'BNB-System'!D225","v":100},{"$f":"'BNB-System'!G225","v":1.4285714285714285E-2},null,{"$f":"IF(AND(NOT(ISBLANK(K229)),NOT(ISBLANK(L229))),('Bewertung durch Anwender'!K229),IF(AND(NOT(ISBLANK(J229)),NOT(ISBLANK(I229))),('Bewertung durch Anwender'!I229),(Zielvereinbarung!G229)))","v":0},{"$f":"Zielvereinbarung!G229","v":0},null,null,null,null,null,null,null,{"$f":"'BNB-System'!H225","v":300},{"$f":"IF(ISNUMBER(E229*N229/100),E229*N229/100,0)","v":0}]
[null,null,null,null,null,null,null,null,null,null,null,null,null,null,null,{"$f":"'BNB-System'!H226","v":0}]
[null,null,null,null,null,null,null,null,null,null,null,null,null,null,null,{"$f":"'BNB-System'!H227","v":0}]
[null,{"$f":"'BNB-System'!B228","v":"Standortmerkmale"},null,null,{"$f":"'BNB-System'!G228","v":1},null,{"$f":"G235*(E235/100)+G241*(E241/100)+G248*(E248/100)+G253*(E253/100)+G257*(E257/100)+G267*(E267/100)","v":0},{"$f":"Zielvereinbarung!G232","v":0},null,null,null,null,{"$f":"M235*(E235/100)+M241*(E241/100)+M248*(E248/100)+M253*(E253/100)+M257*(E257/100)+M267*(E267/100)","v":0},{"$f":"N235*(E235/100)+N241*(E241/100)+N248*(E248/100)+N253*(E253/100)+N257*(E257/100)+N267*(E267/100)","v":0},null,{"$f":"'BNB-System'!H228","v":1300}]
[null,null,null,null,null,null,null,null,null,null,null,null,null,null,null,{"$f":"'BNB-System'!H229","v":0}]
[null,null,{"$f":"'BNB-System'!C230","v":"Standortmerkmale"},null,null,null,null,null,null,null,null,null,null,null,null,{"$f":"'BNB-System'!H230","v":0}]
[null,{"$f":"'BNB-System'!B231","v":" 6.1.1"},{"$f":"'BNB-System'!C231","v":"Risiken am Mikrostandort"},{"$f":"'BNB-System'!D231","v":100},{"$f":"'BNB-System'!G231","v":0.15384615384615385},null,{"$f":"IF(AND(NOT(ISBLANK(K235)),NOT(ISBLANK(L235))),('Bewertung durch Anwender'!K235),IF(AND(NOT(ISBLANK(J235)),NOT(ISBLANK(I235))),('Bewertung durch Anwender'!I235),(Zielvereinbarung!G235)))","v":0},{"$f":"Zielvereinbarung!G235","v":0},null,null,null,null,{"$f":"IF(SUM(M236:M240)>100,100,SUM(M236:M240))","v":0},{"$f":"IF(SUM(N236:N240)>100,100,SUM(N236:N240))","v":0},null,{"$f":"'BNB-System'!H231","v":200}]
[null,null,{"$f":"'BNB-System'!C232","v":"Risiken aus Man-Made-Hazards (Unfälle)"},{"$f":"'BNB-System'!D232","v":20},null,null,{"$f":"IF(AND(NOT(ISBLANK(K236)),NOT(ISBLANK(L236))),('Bewertung durch Anwender'!K236),IF(AND(NOT(ISBLANK(J236)),NOT(ISBLANK(I236))),('Bewertung durch Anwender'!I236),(Zielvereinbarung!G236)))","v":0},{"$f":"Zielvereinbarung!G236","v":0},null,null,null,null,null,null,null,{"$f":"'BNB-System'!H237","v":200}]
[null,null,{"$f":"'BNB-System'!C233","v":"Risiken aus Erdbeben"},{"$f":"'BNB-System'!D233","v":20},null,null,{"$f":"IF(AND(NOT(ISBLANK(K237)),NOT(ISBLANK(L237))),('Bewertung durch Anwender'!K237),IF(AND(NOT(ISBLANK(J237)),NOT(ISBLANK(I237))),('Bewertung durch Anwender'!I237),(Zielvereinbarung!G237)))","v":0},{"$f":"Zielvereinbarung!G237","v":0},null,null,null,null,null,null,null,{"$f":"'BNB-System'!H244","v":200}]
[null,null,{"$f":"'BNB-System'!C234","v":"Risiken aus Lawinen"},{"$f":"'BNB-System'!D234","v":20},null,null,{"$f":"IF(AND(NOT(ISBLANK(K238)),NOT(ISBLANK(L238))),('Bewertung durch Anwender'!K238),IF(AND(NOT(ISBLANK(J238)),NOT(ISBLANK(I238))),('Bewertung durch Anwender'!I238),(Zielvereinbarung!G238)))","v":0},{"$f":"Zielvereinbarung!G238","v":0},null,null,null,null,null,null,null,{"$f":"'BNB-System'!H249","v":300}]
[null,null,{"$f":"'BNB-System'!C235","v":"Risiken aus Sturm"},{"$f":"'BNB-System'!D235","v":20},null,null,{"$f":"IF(AND(NOT(ISBLANK(K239)),NOT(ISBLANK(L239))),('Bewertung durch Anwender'!K239),IF(AND(NOT(ISBLANK(J239)),NOT(ISBLANK(I239))),('Bewertung durch Anwender'!I239),(Zielvereinbarung!G239)))","v":0},{"$f":"Zielvereinbarung!G239","v":0},null,null,null,null,null,null,null,{"$f":"'BNB-System'!H253","v":200}]
[null,null,{"$f":"'BNB-System'!C236","v":"Risiken aus Hochwasser"},{"$f":"'BNB-System'!D236","v":20},null,null,{"$f":"IF(AND(NOT(ISBLANK(K240)),NOT(ISBLANK(L240))),('Bewertung durch Anwender'!K240),IF(AND(NOT(ISBLANK(J240)),NOT(ISBLANK(I240))),('Bewertung durch Anwender'!I240),(Zielvereinbarung!G240)))","v":0},{"$f":"Zielvereinbarung!G240","v":0},null,null,null,null,null,null,null,{"$f":"'BNB-System'!H263","v":200}]
[null,{"$f":"'BNB-System'!B237","v":" 6.1.2"},{"$f":"'BNB-System'!C237","v":"Verhältnisse am Mikrostandort"},{"$f":"'BNB-System'!D237","v":100},{"$f":"'BNB-System'!G237","v":0.15384615384615385},null,{"$f":"IF(AND(NOT(ISBLANK(K241)),NOT(ISBLANK(L241))),('Bewertung durch Anwender'!K241),IF(AND(NOT(ISBLANK(J241)),NOT(ISBLANK(I241))),('Bewertung durch Anwender'!I241),(Zielvereinbarung!G241)))","v":0},{"$f":"Zielvereinbarung!G241","v":0},null,null,null,null,{"$f":"IF(SUM(M242:M247)>100,100,SUM(M242:M247))","v":0},{"$f":"IF(SUM(N242:N247)>100,100,SUM(N242:N247))","v":0}]
[null,null,{"$f":"'BNB-System'!C238","v":"Außenluftqualität"},{"$f":"'BNB-System'!D238","v":16},null,null,{"$f":"IF(AND(NOT(ISBLANK(K242)),NOT(ISBLANK(L242))),('Bewertung durch Anwender'!K242),IF(AND(NOT(ISBLANK(J242)),NOT(ISBLANK(I242))),('Bewertung durch Anwender'!I242),(Zielvereinbarung!G242)))","v":0},{"$f":"Zielvereinbarung!G242","v":0}]
[null,null,{"$f":"'BNB-System'!C239","v":"Außenlärmpegel"},{"$f":"'BNB-System'!D239","v":20},null,null,{"$f":"IF(AND(NOT(ISBLANK(K243)),NOT(ISBLANK(L243))),('Bewertung durch Anwender'!K243),IF(AND(NOT(ISBLANK(J243)),NOT(ISBLANK(I243))),('Bewertung durch Anwender'!I243),(Zielvereinbarung!G243)))","v":0},{"$f":"Zielvereinbarung!G243","v":0}]
[null,null,{"$f":"'BNB-System'!C240","v":"Baugrundverhältnisse, Bodenbelastungen"},{"$f":"'BNB-System'!D240","v":16},null,null,{"$f":"IF(AND(NOT(ISBLANK(K244)),NOT(ISBLANK(L244))),('Bewertung durch Anwender'!K244),IF(AND(NOT(ISBLANK(J244)),NOT(ISBLANK(I244))),('Bewertung durch Anwender'!I244),(Zielvereinbarung!G244)))","v":0},{"$f":"Zielvereinbarung!G244","v":0}]
[null,null,{"$f":"'BNB-System'!C241","v":"Elektromagnetische Felder"},{"$f":"'BNB-System'!D241","v":16},null,null,{"$f":"IF(AND(NOT(ISBLANK(K245)),NOT(ISBLANK(L245))),('Bewertung durch Anwender'!K245),IF(AND(NOT(ISBLANK(J245)),NOT(ISBLANK(I245))),('Bewertung durch Anwender'!I245),(Zielvereinbarung!G245)))","v":0},{"$f":"Zielvereinbarung!G245","v":0}]
[null,null,{"$f":"'BNB-System'!C242","v":"Vorkommen von Radon"},{"$f":"'BNB-System'!D242","v":16},null,null,{"$f":"IF(AND(NOT(ISBLANK(K246)),NOT(ISBLANK(L246))),('Bewertung durch Anwender'!K246),IF(AND(NOT(ISBLANK(J246)),NOT(ISBLANK(I246))),('Bewertung durch Anwender'!I246),(Zielvereinbarung!G246)))","v":0},{"$f":"Zielvereinbarung!G246","v":0}]
[null,null,{"$f":"'BNB-System'!C243","v":"Stadt- und Landschaftsbild / Sichtbeziehungen"},{"$f":"'BNB-System'!D243","v":16},null,null,{"$f":"IF(AND(NOT(ISBLANK(K247)),NOT(ISBLANK(L247))),('Bewertung durch Anwender'!K247),IF(AND(NOT(ISBLANK(J247)),NOT(ISBLANK(I247))),('Bewertung durch Anwender'!I247),(Zielvereinbarung!G247)))","v":0},{"$f":"Zielvereinbarung!G247","v":0}]
[null,{"$f":"'BNB-System'!B244","v":" 6.1.3"},{"$f":"'BNB-System'!C244","v":"Quartiersmerkmale"},{"$f":"'BNB-System'!D244","v":100},{"$f":"'BNB-System'!G244","v":0.15384615384615385},null,{"$f":"IF(AND(NOT(ISBLANK(K248)),NOT(ISBLANK(L248))),('Bewertung durch Anwender'!K248),IF(AND(NOT(ISBLANK(J248)),NOT(ISBLANK(I248))),('Bewertung durch Anwender'!I248),(Zielvereinbarung!G248)))","v":0},{"$f":"Zielvereinbarung!G248","v":0},null,null,null,null,{"$f":"IF(SUM(M249:M252)>100,100,SUM(M249:M252))","v":0},{"$f":"IF(SUM(N249:N252)>100,100,SUM(N249:N252))","v":0}]
[null,null,{"$f":"'BNB-System'!C245","v":"Image, Attraktivität"},{"$f":"'BNB-System'!D245","v":25},null,null,{"$f":"IF(AND(NOT(ISBLANK(K249)),NOT(ISBLANK(L249))),('Bewertung durch Anwender'!K249),IF(AND(NOT(ISBLANK(J249)),NOT(ISBLANK(I249))),('Bewertung durch Anwender'!I249),(Zielvereinbarung!G249)))","v":0},{"$f":"Zielvereinbarung!G249","v":0}]
[null,null,{"$f":"'BNB-System'!C246","v":"Synergie- und Konfliktpotenziale"},{"$f":"'BNB-System'!D246","v":25},null,null,{"$f":"IF(AND(NOT(ISBLANK(K250)),NOT(ISBLANK(L250))),('Bewertung durch Anwender'!K250),IF(AND(NOT(ISBLANK(J250)),NOT(ISBLANK(I250))),('Bewertung durch Anwender'!I250),(Zielvereinbarung!G250)))","v":0},{"$f":"Zielvereinbarung!G250","v":0}]
[null,null,{"$f":"'BNB-System'!C247","v":"Kriminalität"},{"$f":"'BNB-System'!D247","v":25},null,null,{"$f":"IF(AND(NOT(ISBLANK(K251)),NOT(ISBLANK(L251))),('Bewertung durch Anwender'!K251),IF(AND(NOT(ISBLANK(J251)),NOT(ISBLANK(I251))),('Bewertung durch Anwender'!I251),(Zielvereinbarung!G251)))","v":0},{"$f":"Zielvereinbarung!G251","v":0}]
[null,null,{"$f":"'BNB-System'!C248","v":"Pflege und Erhaltungszustand"},{"$f":"'BNB-System'!D248","v":25},null,null,{"$f":"IF(AND(NOT(ISBLANK(K252)),NOT(ISBLANK(L252))),('Bewertung durch Anwender'!K252),IF(AND(NOT(ISBLANK(J252)),NOT(ISBLANK(I252))),('Bewertung durch Anwender'!I252),(Zielvereinbarung!G252)))","v":0},{"$f":"Zielvereinbarung!G252","v":0}]
[null,{"$f":"'BNB-System'!B249","v":" 6.1.4"},{"$f":"'BNB-System'!C249","v":"Verkehrsanbindung"},{"$f":"'BNB-System'!D249","v":100},{"$f":"'BNB-System'!G249","v":0.23076923076923078},null,{"$f":"IF(AND(NOT(ISBLANK(K253)),NOT(ISBLANK(L253))),('Bewertung durch Anwender'!K253),IF(AND(NOT(ISBLANK(J253)),NOT(ISBLANK(I253))),('Bewertung durch Anwender'!I253),(Zielvereinbarung!G253)))","v":0},{"$f":"Zielvereinbarung!G253","v":0},null,null,null,null,{"$f":"IF(SUM(M254:M256)>100,100,SUM(M254:M256))","v":0},{"$f":"IF(SUM(N254:N256)>100,100,SUM(N254:N256))","v":0}]
[null,null,{"$f":"'BNB-System'!C250","v":"Erreichbarkeit Haupt-/ Fernbahnhof"},{"$f":"'BNB-System'!D250","v":30},null,null,{"$f":"IF(AND(NOT(ISBLANK(K254)),NOT(ISBLANK(L254))),('Bewertung durch Anwender'!K254),IF(AND(NOT(ISBLANK(J254)),NOT(ISBLANK(I254))),('Bewertung durch Anwender'!I254),(Zielvereinbarung!G254)))","v":0},{"$f":"Zielvereinbarung!G254","v":0}]
[null,null,{"$f":"'BNB-System'!C251","v":"Erreichbarkeit ÖPNV"},{"$f":"'BNB-System'!D251","v":30},null,null,{"$f":"IF(AND(NOT(ISBLANK(K255)),NOT(ISBLANK(L255))),('Bewertung durch Anwender'!K255),IF(AND(NOT(ISBLANK(J255)),NOT(ISBLANK(I255))),('Bewertung durch Anwender'!I255),(Zielvereinbarung!G255)))","v":0},{"$f":"Zielvereinbarung!G255","v":0}]
[null,null,{"$f":"'BNB-System'!C252","v":"Fuß- und Radwege"},{"$f":"'BNB-System'!D252","v":40},null,null,{"$f":"IF(AND(NOT(ISBLANK(K256)),NOT(ISBLANK(L256))),('Bewertung durch Anwender'!K256),IF(AND(NOT(ISBLANK(J256)),NOT(ISBLANK(I256))),('Bewertung durch Anwender'!I256),(Zielvereinbarung!G256)))","v":0},{"$f":"Zielvereinbarung!G256","v":0}]
[null,{"$f":"'BNB-System'!B253","v":" 6.1.5"},{"$f":"'BNB-System'!C253","v":"Nähe zu nutzungsrelevanten Einrichtungen"},{"$f":"'BNB-System'!D253","v":100},{"$f":"'BNB-System'!G253","v":0.15384615384615385},null,{"$f":"IF(AND(NOT(ISBLANK(K257)),NOT(ISBLANK(L257))),('Bewertung durch Anwender'!K257),IF(AND(NOT(ISBLANK(J257)),NOT(ISBLANK(I257))),('Bewertung durch Anwender'!I257),(Zielvereinbarung!G257)))","v":0},{"$f":"Zielvereinbarung!G257","v":0},null,null,null,null,{"$f":"IF(SUM(M258:M266)>100,100,SUM(M258:M266))","v":0},{"$f":"IF(SUM(N258:N266)>100,100,SUM(N258:N266))","v":0}]
[null,null,{"$f":"'BNB-System'!C254","v":"Gastronomie"},{"$f":"'BNB-System'!D254","v":10},null,null,{"$f":"IF(AND(NOT(ISBLANK(K258)),NOT(ISBLANK(L258))),('Bewertung durch Anwender'!K258),IF(AND(NOT(ISBLANK(J258)),NOT(ISBLANK(I258))),('Bewertung durch Anwender'!I258),(Zielvereinbarung!G258)))","v":0},{"$f":"Zielvereinbarung!G258","v":0}]
[null,null,{"$f":"'BNB-System'!C255","v":"Nahversorgung"},{"$f":"'BNB-System'!D255","v":10},null,null,{"$f":"IF(AND(NOT(ISBLANK(K259)),NOT(ISBLANK(L259))),('Bewertung durch Anwender'!K259),IF(AND(NOT(ISBLANK(J259)),NOT(ISBLANK(I259))),('Bewertung durch Anwender'!I259),(Zielvereinbarung!G259)))","v":0},{"$f":"Zielvereinbarung!G259","v":0}]
[null,null,{"$f":"'BNB-System'!C256","v":"Parkanlagen und Freiräume"},{"$f":"'BNB-System'!D256","v":20},null,null,{"$f":"IF(AND(NOT(ISBLANK(K260)),NOT(ISBLANK(L260))),('Bewertung durch Anwender'!K260),IF(AND(NOT(ISBLANK(J260)),NOT(ISBLANK(I260))),('Bewertung durch Anwender'!I260),(Zielvereinbarung!G260)))","v":0},{"$f":"Zielvereinbarung!G260","v":0}]
[null,null,{"$f":"'BNB-System'!C257","v":"Bildung"},{"$f":"'BNB-System'!D257","v":10},null,null,{"$f":"IF(AND(NOT(ISBLANK(K261)),NOT(ISBLANK(L261))),('Bewertung durch Anwender'!K261),IF(AND(NOT(ISBLANK(J261)),NOT(ISBLANK(I261))),('Bewertung durch Anwender'!I261),(Zielvereinbarung!G261)))","v":0},{"$f":"Zielvereinbarung!G261","v":0}]
[null,null,{"$f":"'BNB-System'!C258","v":"Öffentliche Verwaltung"},{"$f":"'BNB-System'!D258","v":10},null,null,{"$f":"IF(AND(NOT(ISBLANK(K262)),NOT(ISBLANK(L262))),('Bewertung durch Anwender'!K262),IF(AND(NOT(ISBLANK(J262)),NOT(ISBLANK(I262))),('Bewertung durch Anwender'!I262),(Zielvereinbarung!G262)))","v":0},{"$f":"Zielvereinbarung!G262","v":0}]
[null,null,{"$f":"'BNB-System'!C259","v":"Medizinische Versorgung"},{"$f":"'BNB-System'!D259","v":10},null,null,{"$f":"IF(AND(NOT(ISBLANK(K263)),NOT(ISBLANK(L263))),('Bewertung durch Anwender'!K263),IF(AND(NOT(ISBLANK(J263)),NOT(ISBLANK(I263))),('Bewertung durch Anwender'!I263),(Zielvereinbarung!G263)))","v":0},{"$f":"Zielvereinbarung!G263","v":0}]
[null,null,{"$f":"'BNB-System'!C260","v":"Sportstätten"},{"$f":"'BNB-System'!D260","v":10},null,null,{"$f":"IF(AND(NOT(ISBLANK(K264)),NOT(ISBLANK(L264))),('Bewertung durch Anwender'!K264),IF(AND(NOT(ISBLANK(J264)),NOT(ISBLANK(I264))),('Bewertung durch Anwender'!I264),(Zielvereinbarung!G264)))","v":0},{"$f":"Zielvereinbarung!G264","v":0}]
[null,null,{"$f":"'BNB-System'!C261","v":"Freizeit"},{"$f":"'BNB-System'!D261","v":10},null,null,{"$f":"IF(AND(NOT(ISBLANK(K265)),NOT(ISBLANK(L265))),('Bewertung durch Anwender'!K265),IF(AND(NOT(ISBLANK(J265)),NOT(ISBLANK(I265))),('Bewertung durch Anwender'!I265),(Zielvereinbarung!G265)))","v":0},{"$f":"Zielvereinbarung!G265","v":0}]
[null,null,{"$f":"'BNB-System'!C262","v":"Dienstleister"},{"$f":"'BNB-System'!D262","v":10},null,null,{"$f":"IF(AND(NOT(ISBLANK(K266)),NOT(ISBLANK(L266))),('Bewertung durch Anwender'!K266),IF(AND(NOT(ISBLANK(J266)),NOT(ISBLANK(I266))),('Bewertung durch Anwender'!I266),(Zielvereinbarung!G266)))","v":0},{"$f":"Zielvereinbarung!G266","v":0}]
[null,{"$f":"'BNB-System'!B263","v":" 6.1.6"},{"$f":"'BNB-System'!C263","v":"Anliegende Medien / Erschließung"},{"$f":"'BNB-System'!D263","v":100},{"$f":"'BNB-System'!G263","v":0.15384615384615385},null,{"$f":"IF(AND(NOT(ISBLANK(K267)),NOT(ISBLANK(L267))),('Bewertung durch Anwender'!K267),IF(AND(NOT(ISBLANK(J267)),NOT(ISBLANK(I267))),('Bewertung durch Anwender'!I267),(Zielvereinbarung!G267)))","v":0},{"$f":"Zielvereinbarung!G267","v":0},null,null,null,null,{"$f":"IF(SUM(M268:M271)>100,100,SUM(M268:M271))","v":0},{"$f":"IF(SUM(N268:N271)>100,100,SUM(N268:N271))","v":0}]
[null,null,{"$f":"'BNB-System'!C264","v":"Leitungsgebundene Energie"},{"$f":"'BNB-System'!D264","v":25},null,null,{"$f":"IF(AND(NOT(ISBLANK(K268)),NOT(ISBLANK(L268))),('Bewertung durch Anwender'!K268),IF(AND(NOT(ISBLANK(J268)),NOT(ISBLANK(I268))),('Bewertung durch Anwender'!I268),(Zielvereinbarung!G268)))","v":0},{"$f":"Zielvereinbarung!G268","v":0}]
[null,null,{"$f":"'BNB-System'!C265","v":"Solarenergie"},{"$f":"'BNB-System'!D265","v":25},null,null,{"$f":"IF(AND(NOT(ISBLANK(K269)),NOT(ISBLANK(L269))),('Bewertung durch Anwender'!K269),IF(AND(NOT(ISBLANK(J269)),NOT(ISBLANK(I269))),('Bewertung durch Anwender'!I269),(Zielvereinbarung!G269)))","v":0},{"$f":"Zielvereinbarung!G269","v":0}]
[null,null,{"$f":"'BNB-System'!C266","v":"Breitband-Anschluss"},{"$f":"'BNB-System'!D266","v":25},null,null,{"$f":"IF(AND(NOT(ISBLANK(K270)),NOT(ISBLANK(L270))),('Bewertung durch Anwender'!K270),IF(AND(NOT(ISBLANK(J270)),NOT(ISBLANK(I270))),('Bewertung durch Anwender'!I270),(Zielvereinbarung!G270)))","v":0},{"$f":"Zielvereinbarung!G270","v":0}]
[null,null,{"$f":"'BNB-System'!C267","v":"Regenwasserversickerung"},{"$f":"'BNB-System'!D267","v":25},null,null,{"$f":"IF(AND(NOT(ISBLANK(K271)),NOT(ISBLANK(L271))),('Bewertung durch Anwender'!K271),IF(AND(NOT(ISBLANK(J271)),NOT(ISBLANK(I271))),('Bewertung durch Anwender'!I271),(Zielvereinbarung!G271)))","v":0},{"$f":"Zielvereinbarung!G271","v":0}]

{"sheet":"Konformitätsprüfung","index":3,"n_rows":271,"n_cols":14,"rows_kept":271,"cut":false,"hidden":true,"merged":[[0,2,0,7],[3,14,4,14],[6,1,6,2],[3,10,4,10],[3,4,4,4],[3,6,3,7],[3,13,4,13],[3,11,4,11],[3,1,4,2],[3,3,4,3],[3,12,4,12],[3,9,4,9]]}
[null,{"$f":"'BNB-System'!B1","v":"Projekt:"},{"$f":"Zielvereinbarung!C1","v":"Projektbezeichnung"}]
[null,{"$f":"'BNB-System'!B2","v":"Bewertungssystem Nachhaltiges Bauen (BNB)"}]
[null,{"$f":"'BNB-System'!B3","v":"Systemvariante Laborgebäude, Modul Neubau (BNB_LN) - Version 2020"}]
[null,"Nachhaltigkeitskriterien",null,"maximale Punktzahl","Gewichtung\nGesamt-\nbewertung","Punkt-\nzahl","Eingereichte \nEndbewertung",null,"Bemerkung Konformitätsprüfung \n\nPrüfung vom:","Bearbeiter",null,"Zielwert","Gesamt-bewertung Anwender","Gesamt-bewertung Konformitäts-\nprüfung"]
[null,null,null,null,null,"Ziel-\nvereinbarung","Anwender","Konformitätsprüfung",{"$f":"TODAY()","v":"2021-01-14"}]
[]
[null,"Gesamterfüllungsgrad",null,null,null,{"$f":"Zielvereinbarung!$G$7","v":0},{"$f":"'Bewertung durch Anwender'!N7","v":0},{"$f":"H10+H28+H48+H154+H184","v":0}]
[null,null,null,null,null,null,null,"ende",null,null,"qwertz"]
[]
[null,{"$f":"'BNB-System'!B6","v":"Ökologische Qualität"},null,null,{"$f":"'BNB-System'!G6","v":0.22500000000000001},{"$f":"'Bewertung durch Anwender'!G10","v":0},{"$f":"'Bewertung durch Anwender'!N10","v":0},{"$f":"H13*(E13/100)+H14*(E14/100)+H15*(E15/100)+H16*(E16/100)+H17*(E17/100)+H18*(E18/100)+H19*(E19/100)+H21*(E21/100)+H25*(E25/100)+H26*(E26/100)","v":0},null,null,null,{"$f":"'BNB-System'!H6","v":1600}]
[null,null,null,null,null,null,null,null,null,null,null,{"$f":"'BNB-System'!H7","v":0}]
[null,null,"Wirkungen auf die globale und lokale  Umwelt",null,null,null,null,null,null,null,null,{"$f":"'BNB-System'!H8","v":0}]
[null,{"$f":"'BNB-System'!B9","v":" 1.1.1"},{"$f":"'BNB-System'!C9","v":"Treibhauspotenzial (GWP)"},{"$f":"'BNB-System'!D9","v":100},{"$f":"'BNB-System'!G9","v":4.2187500000000003E-2},{"$f":"'Bewertung durch Anwender'!G13","v":0},{"$f":"'Bewertung durch Anwender'!N13","v":0},null,null,null,null,{"$f":"'BNB-System'!H9","v":300},{"$f":"IF(ISNUMBER(G13*E13/100),G13*E13/100,0)","v":0},{"$f":"IF(ISNUMBER(H13*E13/100),H13*E13/100,0)","v":0}]
[null,{"$f":"'BNB-System'!B10","v":" 1.1.2"},{"$f":"'BNB-System'!C10","v":"Ozonschichtabbaupotenzial (ODP)"},{"$f":"'BNB-System'!D10","v":100},{"$f":"'BNB-System'!G10","v":1.40625E-2},{"$f":"'Bewertung durch Anwender'!G14","v":0},{"$f":"'Bewertung durch Anwender'!N14","v":0},null,null,null,null,{"$f":"'BNB-System'!H10","v":100},{"$f":"IF(ISNUMBER(G14*E14/100),G14*E14/100,0)","v":0},0]
[null,{"$f":"'BNB-System'!B11","v":" 1.1.3"},{"$f":"'BNB-System'!C11","v":"Ozonbildungspotenzial (POCP)"},{"$f":"'BNB-System'!D11","v":100},{"$f":"'BNB-System'!G11","v":1.40625E-2},{"$f":"'Bewertung durch Anwender'!G15","v":0},{"$f":"'Bewertung durch Anwender'!N15","v":0},null,null,null,null,{"$f":"'BNB-System'!H11","v":100},0,0]
[null,{"$f":"'BNB-System'!B12","v":" 1.1.4"},{"$f":"'BNB-System'!C12","v":"Versauerungspotenzial (AP)"},{"$f":"'BNB-System'!D12","v":100},{"$f":"'BNB-System'!G12","v":1.40625E-2},{"$f":"'Bewertung durch Anwender'!G16","v":0},{"$f":"'Bewertung durch Anwender'!N16","v":0},null,null,null,null,{"$f":"'BNB-System'!H12","v":100},0,0]
[null,{"$f":"'BNB-System'!B13","v":" 1.1.5"},{"$f":"'BNB-System'!C13","v":"Überdüngungspotenzial (EP)"},{"$f":"'BNB-System'!D13","v":100},{"$f":"'BNB-System'!G13","v":1.40625E-2},{"$f":"'Bewertung durch Anwender'!G17","v":0},{"$f":"'Bewertung durch Anwender'!N17","v":0},null,null,null,null,{"$f":"'BNB-System'!H13","v":100},0,0]
[null,{"$f":"'BNB-System'!B14","v":" 1.1.6"},{"$f":"'BNB-System'!C14","v":"Risiken für die lokale Umwelt"},{"$f":"'BNB-System'!D14","v":100},{"$f":"'BNB-System'!G14","v":4.2187500000000003E-2},{"$f":"'Bewertung durch Anwender'!G18","v":0},{"$f":"'Bewertung durch Anwender'!N18","v":0},null,null,null,null,{"$f":"'BNB-System'!H14","v":300},0,0]
[null,{"$f":"'BNB-System'!B15","v":" 1.1.7"},{"$f":"'BNB-System'!C15","v":"Nachhaltige Materialgewinnung / Biodiversität"},{"$f":"'BNB-System'!D15","v":100},{"$f":"'BNB-System'!G15","v":1.40625E-2},{"$f":"'Bewertung durch Anwender'!G19","v":0},{"$f":"'Bewertung durch Anwender'!N19","v":0},null,null,null,null,{"$f":"'BNB-System'!H15","v":100},0,0]
[null,null,{"$f":"'BNB-System'!C16","v":"Ressourceninanspruchnahme"},null,null,null,null,null,null,null,null,{"$f":"'BNB-System'!H16","v":0}]
[null,{"$f":"'BNB-System'!B17","v":" 1.2.1"},{"$f":"'BNB-System'!C17","v":"Primärenergiebedarf"},{"$f":"'BNB-System'!D17","v":100},{"$f":"'BNB-System'!G17","v":4.2187500000000003E-2},{"$f":"'Bewertung durch Anwender'!G21","v":0},{"$f":"'Bewertung durch Anwender'!N21","v":0},{"$f":"IF(SUM(H22:H24)>100,100,SUM(H22:H24))","v":0},null,null,null,{"$f":"'BNB-System'!H17","v":300},{"$f":"IF(ISNUMBER(G21*E21/100),G21*E21/100,0)","v":0},{"$f":"IF(ISNUMBER(H21*E21/100),H21*E21/100,0)","v":0}]
[null,null,{"$f":"'BNB-System'!C18","v":"Primärenergiebedarf nicht erneuerbar (PEne)"},{"$f":"'BNB-System'!D18","v":60},null,{"$f":"'Bewertung durch Anwender'!G22","v":0},{"$f":"'Bewertung durch Anwender'!N22","v":0},null,null,null,null,{"$f":"'BNB-System'!H18","v":0}]
[null,null,{"$f":"'BNB-System'!C19","v":"Gesamtprimärenergiebedarf (PEges)"},{"$f":"'BNB-System'!D19","v":40},null,{"$f":"'Bewertung durch Anwender'!G23","v":0},{"$f":"'Bewertung durch Anwender'!N23","v":0},null,null,null,null,{"$f":"'BNB-System'!H19","v":0}]
[null,null,{"$f":"'BNB-System'!C20","v":"Anteil erneuerbarer Primärenergie"},{"$f":"'BNB-System'!D20","v":20},null,{"$f":"'Bewertung durch Anwender'!G24","v":0},{"$f":"'Bewertung durch Anwender'!N24","v":0},null,null,null,null,{"$f":"'BNB-System'!H20","v":0}]
[null,{"$f":"'BNB-System'!B21","v":" 1.2.3"},{"$f":"'BNB-System'!C21","v":"Trinkwasserbedarf und Abwasseraufkommen"},{"$f":"'BNB-System'!D21","v":100},{"$f":"'BNB-System'!G21","v":1.40625E-2},{"$f":"'Bewertung durch Anwender'!G25","v":0},{"$f":"'Bewertung durch Anwender'!N25","v":0},null,null,null,null,{"$f":"'BNB-System'!H21","v":100},{"$f":"IF(ISNUMBER(G25*E25/100),G25*E25/100,0)","v":0},{"$f":"IF(ISNUMBER(H25*E25/100),H25*E25/100,0)","v":0}]
[null,{"$f":"'BNB-System'!B22","v":" 1.2.4"},{"$f":"'BNB-System'!C22","v":"Flächeninanspruchnahme"},{"$f":"'BNB-System'!D22","v":100},{"$f":"'BNB-System'!G22","v":1.40625E-2},{"$f":"'Bewertung durch Anwender'!G26","v":0},{"$f":"'Bewertung durch Anwender'!N26","v":0},null,null,null,null,{"$f":"'BNB-System'!H22","v":100},{"$f":"IF(ISNUMBER(G26*E26/100),G26*E26/100,0)","v":0},{"$f":"IF(ISNUMBER(H26*E26/100),H26*E26/100,0)","v":0}]
[null,null,null,null,null,null,null,null,null,null,null,{"$f":"'BNB-System'!H23","v":0}]
[null,{"$f":"'BNB-System'!B24","v":"Ökonomische Qualität"},null,null,{"$f":"'BNB-System'!G24","v":0.22500000000000001},{"$f":"'Bewertung durch Anwender'!G28","v":0},{"$f":"'Bewertung durch Anwender'!N28","v":0},{"$f":"H31*($E$31/100)+H33*($E$33/100)+H34*($E$34/100)","v":0},null,null,null,{"$f":"'BNB-System'!H24","v":600}]
[null,{"$f":"'BNB-System'!B25","v":0},null,null,null,null,null,null,null,null,null,{"$f":"'BNB-System'!H25","v":0}]
[null,null,{"$f":"'BNB-System'!C26","v":"Lebenszykluskosten"},null,null,null,null,null,null,null,null,{"$f":"'BNB-System'!H26","v":0}]
[null,{"$f":"'BNB-System'!B27","v":" 2.1.1"},{"$f":"'BNB-System'!C27","v":"Gebäudebezogene Kosten im Lebenszyklus"},{"$f":"'BNB-System'!D27","v":100},{"$f":"'BNB-System'!G27","v":0.1125},{"$f":"'Bewertung durch Anwender'!G31","v":0},{"$f":"'Bewertung durch Anwender'!N31","v":0},null,null,null,null,{"$f":"'BNB-System'!H27","v":300},{"$f":"IF(ISNUMBER(G31*E31/100),G31*E31/100,0)","v":0},{"$f":"IF(ISNUMBER(H31*E31/100),H31*E31/100,0)","v":0}]
[null,null,{"$f":"'BNB-System'!C28","v":"Wirtschaftlichkeit und Wertstabilität"},null,null,null,null,null,null,null,null,{"$f":"'BNB-System'!H28","v":0}]
[null,{"$f":"'BNB-System'!B29","v":" 2.2.1"},{"$f":"'BNB-System'!C29","v":"Flächeneffizienz"},{"$f":"'BNB-System'!D29","v":100},{"$f":"'BNB-System'!G29","v":3.7499999999999999E-2},{"$f":"'Bewertung durch Anwender'!G33","v":0},{"$f":"'Bewertung durch Anwender'!N33","v":0},null,null,null,null,{"$f":"'BNB-System'!H29","v":100},{"$f":"IF(ISNUMBER(G33*E33/100),G33*E33/100,0)","v":0},{"$f":"IF(ISNUMBER(H33*E33/100),H33*E33/100,0)","v":0}]
[null,{"$f":"'BNB-System'!B30","v":" 2.2.2"},{"$f":"'BNB-System'!C30","v":"Anpassungsfähigkeit "},{"$f":"'BNB-System'!D30","v":100},{"$f":"'BNB-System'!G30","v":7.4999999999999997E-2},{"$f":"'Bewertung durch Anwender'!G34","v":0},{"$f":"'Bewertung durch Anwender'!N34","v":0},{"$f":"SUM(H35:H46)","v":0},null,null,null,{"$f":"'BNB-System'!H30","v":200},{"$f":"IF(ISNUMBER(G34*E34/100),G34*E34/100,0)","v":0},{"$f":"IF(ISNUMBER(H34*E34/100),H34*E34/100,0)","v":0}]
[null,null,{"$f":"'BNB-System'!C31","v":"Raumhöhe"},{"$f":"'BNB-System'!D31","v":8},null,{"$f":"'Bewertung durch Anwender'!G35","v":0},{"$f":"'Bewertung durch Anwender'!N35","v":0},null,null,null,null,{"$f":"'BNB-System'!H31","v":0}]
[null,null,{"$f":"'BNB-System'!C32","v":"Grundrissorganisation"},null,null,{"$f":"'Bewertung durch Anwender'!G36","v":0},{"$f":"'Bewertung durch Anwender'!N36","v":0},null,null,null,null,{"$f":"'BNB-System'!H32","v":0}]
[null,null,{"$f":"'BNB-System'!C33","v":"Positionierung der Erschließung"},{"$f":"'BNB-System'!D33","v":5},null,{"$f":"'Bewertung durch Anwender'!G37","v":0},{"$f":"'Bewertung durch Anwender'!N37","v":0},null,null,null,null,{"$f":"'BNB-System'!H33","v":0}]
[null,null,{"$f":"'BNB-System'!C34","v":"Rettungswege"},{"$f":"'BNB-System'!D34","v":2},null,{"$f":"'Bewertung durch Anwender'!G38","v":0},{"$f":"'Bewertung durch Anwender'!N38","v":0},null,null,null,null,{"$f":"'BNB-System'!H34","v":0}]
[null,null,{"$f":"'BNB-System'!C35","v":"sanitäre Anlagen"},{"$f":"'BNB-System'!D35","v":2},null,{"$f":"'Bewertung durch Anwender'!G39","v":0},{"$f":"'Bewertung durch Anwender'!N39","v":0},null,null,null,null,{"$f":"'BNB-System'!H35","v":0}]
[null,null,{"$f":"'BNB-System'!C36","v":"Konstruktion"},null,null,{"$f":"'Bewertung durch Anwender'!G40","v":0},{"$f":"'Bewertung durch Anwender'!N40","v":0},null,null,null,null,{"$f":"'BNB-System'!H36","v":0}]
[null,null,{"$f":"'BNB-System'!C37","v":"Anteil nicht tragender Innenwände"},{"$f":"'BNB-System'!D37","v":5},null,{"$f":"'Bewertung durch Anwender'!G41","v":0},{"$f":"'Bewertung durch Anwender'!N41","v":0},null,null,null,null,{"$f":"'BNB-System'!H37","v":0}]
[null,null,{"$f":"'BNB-System'!C38","v":"Anschluss von Trennwänden an der Fassadenachse"},{"$f":"'BNB-System'!D38","v":1},null,{"$f":"'Bewertung durch Anwender'!G42","v":0},{"$f":"'Bewertung durch Anwender'!N42","v":0},null,null,null,null,{"$f":"'BNB-System'!H38","v":0}]
[null,null,{"$f":"'BNB-System'!C39","v":"kein Eingriff von Trennwänden in Fußboden, Decke, Abhangdecke"},{"$f":"'BNB-System'!D39","v":1},null,{"$f":"'Bewertung durch Anwender'!G43","v":0},{"$f":"'Bewertung durch Anwender'!N43","v":0},null,null,null,null,{"$f":"'BNB-System'!H39","v":0}]
[null,null,{"$f":"'BNB-System'!C40","v":"zulässige Nutzlasten"},{"$f":"'BNB-System'!D40","v":1},null,{"$f":"'Bewertung durch Anwender'!G44","v":0},{"$f":"'Bewertung durch Anwender'!N44","v":0},null,null,null,null,{"$f":"'BNB-System'!H40","v":0}]
[null,null,{"$f":"'BNB-System'!C41","v":"Technische Ausstattung"},null,null,{"$f":"'Bewertung durch Anwender'!G45","v":0},{"$f":"'Bewertung durch Anwender'!N45","v":0},null,null,null,null,{"$f":"'BNB-System'!H41","v":0}]
[null,null,{"$f":"'BNB-System'!C42","v":"Technische Ausstattung"},{"$f":"'BNB-System'!D42","v":75},null,{"$f":"'Bewertung durch Anwender'!G46","v":0},{"$f":"'Bewertung durch Anwender'!N46","v":0},null,null,null,null,{"$f":"'BNB-System'!H42","v":0}]
[null,null,null,null,null,null,null,null,null,null,null,{"$f":"'BNB-System'!H43","v":0}]
[null,{"$f":"'BNB-System'!B44","v":"Soziokulturelle und funktionale Qualität"},null,null,{"$f":"'BNB-System'!G44","v":0.22500000000000001},{"$f":"'Bewertung durch Anwender'!G48","v":0},{"$f":"'Bewertung durch Anwender'!N48","v":0},{"$f":"H51*($E$51/100)+H62*($E$62/100)+H65*($E$65/100)+H73*($E$73/100)+H81*($E$81/100)+H90*($E$90/100)+H104*($E$104/100)+H114*($E$114/100)+H115*($E$115/100)+H119*($E$119/100)+H140*($E$140/100)+H148*($E$148/100)","v":0},null,null,null,{"$f":"'BNB-System'!H44","v":1800}]
[null,null,null,null,null,null,null,null,null,null,null,{"$f":"'BNB-System'!H45","v":0}]
[null,null,{"$f":"'BNB-System'!C46","v":"Gesundheit, Behaglichkeit und Nutzerzufriedenheit"},null,null,null,null,null,null,null,null,{"$f":"'BNB-System'!H46","v":0}]
[null,{"$f":"'BNB-System'!B47","v":" 3.1.1"},{"$f":"'BNB-System'!C47","v":"Thermischer Komfort"},{"$f":"'BNB-System'!D47","v":100},{"$f":"'BNB-System'!G47","v":2.4999999999999998E-2},{"$f":"'Bewertung durch Anwender'!G51","v":0},{"$f":"'Bewertung durch Anwender'!N51","v":0},{"$f":"SUM(H53:H56,H58:H61)","v":0},null,null,null,{"$f":"'BNB-System'!H47","v":200},{"$f":"IF(ISNUMBER(G51*E51/100),G51*E51/100,0)","v":0},{"$f":"IF(ISNUMBER(H51*E51/100),H51*E51/100,0)","v":0}]
[null,null,{"$f":"'BNB-System'!C48","v":"Winter"},null,null,null,null,null,null,null,null,{"$f":"'BNB-System'!H48","v":0}]
[null,null,{"$f":"'BNB-System'!C49","v":"Operative Temperatur"},{"$f":"'BNB-System'!D49","v":10},null,{"$f":"'Bewertung durch Anwender'!G53","v":0},{"$f":"'Bewertung durch Anwender'!N53","v":0},null,null,null,null,{"$f":"'BNB-System'!H49","v":0}]
[null,null,{"$f":"'BNB-System'!C50","v":" Zugluft"},{"$f":"'BNB-System'!D50","v":10},null,{"$f":"'Bewertung durch Anwender'!G54","v":0},{"$f":"'Bewertung durch Anwender'!N54","v":0},null,null,null,null,{"$f":"'BNB-System'!H50","v":0}]
[null,null,{"$f":"'BNB-System'!C51","v":"Stahlungstemperaturasymmetrie und Fußbodentemperatur"},{"$f":"'BNB-System'!D51","v":10},null,{"$f":"'Bewertung durch Anwender'!G55","v":0},{"$f":"'Bewertung durch Anwender'!N55","v":0},null,null,null,null,{"$f":"'BNB-System'!H51","v":0}]
[null,null,{"$f":"'BNB-System'!C52","v":"Luftfeuchte"},{"$f":"'BNB-System'!D52","v":10},null,{"$f":"'Bewertung durch Anwender'!G56","v":0},{"$f":"'Bewertung durch Anwender'!N56","v":0},null,null,null,null,{"$f":"'BNB-System'!H52","v":0}]
[null,null,{"$f":"'BNB-System'!C53","v":"Sommer"},null,null,{"$f":"'Bewertung durch Anwender'!G57","v":""},null,null,null,null,null,{"$f":"'BNB-System'!H53","v":0}]
[null,null,{"$f":"'BNB-System'!C54","v":"Operative Temperatur"},{"$f":"'BNB-System'!D54","v":30},null,{"$f":"'Bewertung durch Anwender'!G58","v":0},{"$f":"'Bewertung durch Anwender'!N58","v":0},null,null,null,null,{"$f":"'BNB-System'!H54","v":0}]
[null,null,{"$f":"'BNB-System'!C55","v":" Zugluft"},{"$f":"'BNB-System'!D55","v":10},null,{"$f":"'Bewertung durch Anwender'!G59","v":0},{"$f":"'Bewertung durch Anwender'!N59","v":0},null,null,null,null,{"$f":"'BNB-System'!H55","v":0}]
[null,null,{"$f":"'BNB-System'!C56","v":"Stahlungstemperaturasymmetrie und Fußbodentemperatur"},{"$f":"'BNB-System'!D56","v":10},null,{"$f":"'Bewertung durch Anwender'!G60","v":0},{"$f":"'Bewertung durch Anwender'!N60","v":0},null,null,null,null,{"$f":"'BNB-System'!H56","v":0}]
[null,null,{"$f":"'BNB-System'!C57","v":"Luftfeuchte"},{"$f":"'BNB-System'!D57","v":10},null,{"$f":"'Bewertung durch Anwender'!G61","v":0},{"$f":"'Bewertung durch Anwender'!N61","v":0},null,null,null,null,{"$f":"'BNB-System'!H57","v":0}]
[null,{"$f":"'BNB-System'!B58","v":" 3.1.3"},{"$f":"'BNB-System'!C58","v":"Innenraumlufthygiene"},{"$f":"'BNB-System'!D58","v":100},{"$f":"'BNB-System'!G58","v":2.4999999999999998E-2},{"$f":"'Bewertung durch Anwender'!G62","v":0},{"$f":"'Bewertung durch Anwender'!N62","v":0},{"$f":"SUM(H63:H64)","v":0},null,null,null,{"$f":"'BNB-System'!H58","v":200},{"$f":"IF(ISNUMBER(G62*E62/100),G62*E62/100,0)","v":0},{"$f":"IF(ISNUMBER(H62*E62/100),H62*E62/100,0)","v":0}]
[null,null,{"$f":"'BNB-System'!C59","v":"Flüchtige organische Stoffe (VOC) und Formaldehyd"},{"$f":"'BNB-System'!D59","v":50},null,{"$f":"'Bewertung durch Anwender'!G63","v":0},{"$f":"'Bewertung durch Anwender'!N63","v":0},null,null,null,null,{"$f":"'BNB-System'!H59","v":0}]
[null,null,{"$f":"'BNB-System'!C60","v":"Kohlendioxidgehalt"},{"$f":"'BNB-System'!D60","v":50},null,{"$f":"'Bewertung durch Anwender'!G64","v":0},{"$f":"'Bewertung durch Anwender'!N64","v":0},null,null,null,null,{"$f":"'BNB-System'!H60","v":0}]
[null,{"$f":"'BNB-System'!B61","v":" 3.1.4"},{"$f":"'BNB-System'!C61","v":"Akustischer Komfort"},{"$f":"'BNB-System'!D61","v":100},{"$f":"'BNB-System'!G61","v":1.2499999999999999E-2},{"$f":"'Bewertung durch Anwender'!G65","v":0},{"$f":"'Bewertung durch Anwender'!N65","v":0},{"$f":"(IF(IF((ISNUMBER(ROUND(H67/(H67+H69+H71)*H66+H69/(H67+H69+H71)*H68+H71/(H67+H69+H71)*H70,1))),ROUND(H67/(H67+H69+H71)*H66+H69/(H67+H69+H71)*H68+H71/(H67+H69+H71)*H70,1),0)>100,100,IF(ISNUMBER(ROUND(H67/(H67+H69+H71)*H66+H69/(H67+H69+H71)*H68+H71/(H67+H69+H71)*H70,1)),ROUND(H67/(H67+H69+H71)*H66+H69/(H67+H69+H71)*H68+H71/(H67+H69+H71)*H70,1),0)))-H72","v":0},null,null,null,{"$f":"'BNB-System'!H61","v":100},{"$f":"IF(ISNUMBER(G65*E65/100),G65*E65/100,0)","v":0},{"$f":"IF(ISNUMBER(H65*E65/100),H65*E65/100,0)","v":0}]
[null,null,{"$f":"'BNB-System'!C62","v":"Einzel- und Mehrpersonenbüros bis 100 m²"},{"$f":"'BNB-System'!D62","v":100},null,{"$f":"'Bewertung durch Anwender'!G66","v":0},{"$f":"'Bewertung durch Anwender'!N66","v":0},null,null,null,null,{"$f":"'BNB-System'!H62","v":0}]
[null,null,{"$f":"'BNB-System'!C63","v":"NF Einzel- und Mehrpersonenbüros bis 100 m² "},{"$f":"'BNB-System'!D63","v":0},null,null,null,null,null,null,null,{"$f":"'BNB-System'!H63","v":0}]
[null,null,{"$f":"'BNB-System'!C64","v":"Mehrpersonenbüros über 100 m²"},{"$f":"'BNB-System'!D64","v":100},null,{"$f":"'Bewertung durch Anwender'!G68","v":0},{"$f":"'Bewertung durch Anwender'!N68","v":0},null,null,null,null,{"$f":"'BNB-System'!H64","v":0}]
[null,null,{"$f":"'BNB-System'!C65","v":"NF Mehrpersonenbüros über 100m²"},{"$f":"'BNB-System'!D65","v":0},null,null,null,null,null,null,null,{"$f":"'BNB-System'!H65","v":0}]
[null,null,{"$f":"'BNB-System'!C66","v":"Weitere Räume über geringere (Gesprächs-)Entfernung (außer Büros)"},{"$f":"'BNB-System'!D66","v":100},null,{"$f":"'Bewertung durch Anwender'!G70","v":0},{"$f":"'Bewertung durch Anwender'!N70","v":0},null,null,null,null,{"$f":"'BNB-System'!H66","v":0}]
[null,null,{"$f":"'BNB-System'!C67","v":"NF weiterer Räume"},{"$f":"'BNB-System'!D67","v":0},null,null,null,null,null,null,null,{"$f":"'BNB-System'!H67","v":0}]
[null,null,{"$f":"'BNB-System'!C68","v":"Punktabzug"},{"$f":"'BNB-System'!D68","v":0},null,{"$f":"'Bewertung durch Anwender'!G72","v":0},{"$f":"'Bewertung durch Anwender'!N72","v":0},null,null,null,null,{"$f":"'BNB-System'!H68","v":0}]
[null,{"$f":"'BNB-System'!B69","v":" 3.1.5"},{"$f":"'BNB-System'!C69","v":"Visueller Komfort"},{"$f":"'BNB-System'!D69","v":100},{"$f":"'BNB-System'!G69","v":2.4999999999999998E-2},{"$f":"'Bewertung durch Anwender'!G73","v":0},{"$f":"'Bewertung durch Anwender'!N73","v":0},{"$f":"SUM(H74:H80)","v":0},null,null,null,{"$f":"'BNB-System'!H69","v":200},{"$f":"IF(ISNUMBER(G73*E73/100),G73*E73/100,0)","v":0},{"$f":"IF(ISNUMBER(H73*E73/100),H73*E73/100,0)","v":0}]
[null,null,{"$f":"'BNB-System'!C70","v":"Tageslichtverfügbarkeit Gesamtgebäude"},{"$f":"'BNB-System'!D70","v":15},null,{"$f":"'Bewertung durch Anwender'!G74","v":0},{"$f":"'Bewertung durch Anwender'!N74","v":0},null,null,null,null,{"$f":"'BNB-System'!H70","v":0}]
[null,null,{"$f":"'BNB-System'!C71","v":"Tageslichtverfügbarkeit ständige Arbeitsplätze"},{"$f":"'BNB-System'!D71","v":15},null,{"$f":"'Bewertung durch Anwender'!G75","v":0},{"$f":"'Bewertung durch Anwender'!N75","v":0},null,null,null,null,{"$f":"'BNB-System'!H71","v":0}]
[null,null,{"$f":"'BNB-System'!C72","v":"Nachweis der Sichtverbindung nach außen"},{"$f":"'BNB-System'!D72","v":25},null,{"$f":"'Bewertung durch Anwender'!G76","v":0},{"$f":"'Bewertung durch Anwender'!N76","v":0},null,null,null,null,{"$f":"'BNB-System'!H72","v":0}]
[null,null,{"$f":"'BNB-System'!C73","v":"Blendfreiheit Tageslicht"},{"$f":"'BNB-System'!D73","v":12},null,{"$f":"'Bewertung durch Anwender'!G77","v":0},{"$f":"'Bewertung durch Anwender'!N77","v":0},null,null,null,null,{"$f":"'BNB-System'!H73","v":0}]
[null,null,{"$f":"'BNB-System'!C74","v":"Blendfreiheit  Kunstlicht"},{"$f":"'BNB-System'!D74","v":9},null,{"$f":"'Bewertung durch Anwender'!G78","v":0},{"$f":"'Bewertung durch Anwender'!N78","v":0},null,null,null,null,{"$f":"'BNB-System'!H74","v":0}]
[null,null,{"$f":"'BNB-System'!C75","v":"Lichtverteilung"},{"$f":"'BNB-System'!D75","v":12},null,{"$f":"'Bewertung durch Anwender'!G79","v":0},{"$f":"'Bewertung durch Anwender'!N79","v":0},null,null,null,null,{"$f":"'BNB-System'!H75","v":0}]
[null,null,{"$f":"'BNB-System'!C76","v":"Farbwiedergabe"},{"$f":"'BNB-System'!D76","v":12},null,{"$f":"'Bewertung durch Anwender'!G80","v":0},{"$f":"'Bewertung durch Anwender'!N80","v":0},null,null,null,null,{"$f":"'BNB-System'!H76","v":0}]
[null,{"$f":"'BNB-System'!B77","v":" 3.1.6"},{"$f":"'BNB-System'!C77","v":"Einflussnahmemöglichkeiten durch Nutzer"},{"$f":"'BNB-System'!D77","v":100},{"$f":"'BNB-System'!G77","v":1.2499999999999999E-2},{"$f":"'Bewertung durch Anwender'!G81","v":0},{"$f":"'Bewertung durch Anwender'!N81","v":0},{"$f":"SUM(H82:H89)","v":0},null,null,null,{"$f":"'BNB-System'!H77","v":100},{"$f":"IF(ISNUMBER(G81*E81/100),G81*E81/100,0)","v":0},{"$f":"IF(ISNUMBER(H81*E81/100),H81*E81/100,0)","v":0}]
[null,null,{"$f":"'BNB-System'!C78","v":"Lüftung"},{"$f":"'BNB-System'!D78","v":10},null,{"$f":"'Bewertung durch Anwender'!G82","v":0},{"$f":"'Bewertung durch Anwender'!N82","v":0},null,null,null,null,{"$f":"'BNB-System'!H78","v":0}]
[null,null,{"$f":"'BNB-System'!C79","v":"Sonnenschutz"},{"$f":"'BNB-System'!D79","v":10},null,{"$f":"'Bewertung durch Anwender'!G83","v":0},{"$f":"'Bewertung durch Anwender'!N83","v":0},null,null,null,null,{"$f":"'BNB-System'!H79","v":0}]
[null,null,{"$f":"'BNB-System'!C80","v":"Blendschutz"},{"$f":"'BNB-System'!D80","v":10},null,{"$f":"'Bewertung durch Anwender'!G84","v":0},{"$f":"'Bewertung durch Anwender'!N84","v":0},null,null,null,null,{"$f":"'BNB-System'!H80","v":0}]
[null,null,{"$f":"'BNB-System'!C81","v":"Temperaturen während der Heizperiode"},{"$f":"'BNB-System'!D81","v":10},null,{"$f":"'Bewertung durch Anwender'!G85","v":0},{"$f":"'Bewertung durch Anwender'!N85","v":0},null,null,null,null,{"$f":"'BNB-System'!H81","v":0}]
[null,null,{"$f":"'BNB-System'!C82","v":"Temperaturen außerhalb der Heizperiode"},{"$f":"'BNB-System'!D82","v":15},null,{"$f":"'Bewertung durch Anwender'!G86","v":0},{"$f":"'Bewertung durch Anwender'!N86","v":0},null,null,null,null,{"$f":"'BNB-System'!H82","v":0}]
[null,null,{"$f":"'BNB-System'!C83","v":"Steuerung von Tageslicht"},{"$f":"'BNB-System'!D83","v":15},null,{"$f":"'Bewertung durch Anwender'!G87","v":0},{"$f":"'Bewertung durch Anwender'!N87","v":0},null,null,null,null,{"$f":"'BNB-System'!H83","v":0}]
[null,null,{"$f":"'BNB-System'!C84","v":"Steuerung von  Kunstlicht"},{"$f":"'BNB-System'!D84","v":15},null,{"$f":"'Bewertung durch Anwender'!G88","v":0},{"$f":"'Bewertung durch Anwender'!N88","v":0},null,null,null,null,{"$f":"'BNB-System'!H84","v":0}]
[null,null,{"$f":"'BNB-System'!C85","v":"Bedienfreundlichkeit"},{"$f":"'BNB-System'!D85","v":15},null,{"$f":"'Bewertung durch Anwender'!G89","v":0},{"$f":"'Bewertung durch Anwender'!N89","v":0},null,null,null,null,{"$f":"'BNB-System'!H85","v":0}]
[null,{"$f":"'BNB-System'!B86","v":" 3.1.7"},{"$f":"'BNB-System'!C86","v":"Aufenthaltsqualitäten"},{"$f":"'BNB-System'!D86","v":100},{"$f":"'BNB-System'!G86","v":1.2499999999999999E-2},{"$f":"'Bewertung durch Anwender'!G90","v":0},{"$f":"'Bewertung durch Anwender'!N90","v":0},{"$f":"SUM(H91:H103)","v":0},null,null,null,{"$f":"'BNB-System'!H86","v":100},{"$f":"IF(ISNUMBER(G90*E90/100),G90*E90/100,0)","v":0},{"$f":"IF(ISNUMBER(H90*E90/100),H90*E90/100,0)","v":0}]
[null,null,{"$f":"'BNB-System'!C87","v":"Anzahl der Aufenthaltsbereiche im Gebäude"},{"$f":"'BNB-System'!D87","v":10},null,{"$f":"'Bewertung durch Anwender'!G91","v":0},{"$f":"'Bewertung durch Anwender'!N91","v":0},null,null,null,null,{"$f":"'BNB-System'!H87","v":0}]
[null,null,{"$f":"'BNB-System'!C88","v":"Anzahl der Aufenthaltsbereiche im Außenraum"},{"$f":"'BNB-System'!D88","v":10},null,{"$f":"'Bewertung durch Anwender'!G92","v":0},{"$f":"'Bewertung durch Anwender'!N92","v":0},null,null,null,null,{"$f":"'BNB-System'!H88","v":0}]
[null,null,{"$f":"'BNB-System'!C89","v":"Anzahl der Sitzmöglichkeiten in diesen Bereichen"},{"$f":"'BNB-System'!D89","v":40},null,{"$f":"'Bewertung durch Anwender'!G93","v":0},{"$f":"'Bewertung durch Anwender'!N93","v":0},null,null,null,null,{"$f":"'BNB-System'!H89","v":0}]
[null,null,{"$f":"'BNB-System'!C90","v":"uneingeschränkte Nutzbarkeit der Erschließungsflächen als Aufenthaltsflächen"},{"$f":"'BNB-System'!D90","v":10},null,{"$f":"'Bewertung durch Anwender'!G94","v":0},{"$f":"'Bewertung durch Anwender'!N94","v":0},null,null,null,null,{"$f":"'BNB-System'!H90","v":0}]
[null,null,{"$f":"'BNB-System'!C91","v":"Sichtbeziehungen"},{"$f":"'BNB-System'!D91","v":10},null,{"$f":"'Bewertung durch Anwender'!G95","v":0},{"$f":"'Bewertung durch Anwender'!N95","v":0},null,null,null,null,{"$f":"'BNB-System'!H91","v":0}]
[null,null,{"$f":"'BNB-System'!C92","v":"Außenbezug"},{"$f":"'BNB-System'!D92","v":10},null,{"$f":"'Bewertung durch Anwender'!G96","v":0},{"$f":"'Bewertung durch Anwender'!N96","v":0},null,null,null,null,{"$f":"'BNB-System'!H92","v":0}]
[null,null,{"$f":"'BNB-System'!C93","v":"Ausstattungsqualität der Aufenthaltsbereiche im Außenraum"},null,null,{"$f":"'Bewertung durch Anwender'!G97","v":0},{"$f":"'Bewertung durch Anwender'!N97","v":0},null,null,null,null,{"$f":"'BNB-System'!H93","v":0}]
[null,null,{"$f":"'BNB-System'!C94","v":"Beleuchtung"},{"$f":"'BNB-System'!D94","v":2},null,{"$f":"'Bewertung durch Anwender'!G98","v":0},{"$f":"'Bewertung durch Anwender'!N98","v":0},null,null,null,null,{"$f":"'BNB-System'!H94","v":0}]
[null,null,{"$f":"'BNB-System'!C95","v":"Windschutz"},{"$f":"'BNB-System'!D95","v":2},null,{"$f":"'Bewertung durch Anwender'!G99","v":0},{"$f":"'Bewertung durch Anwender'!N99","v":0},null,null,null,null,{"$f":"'BNB-System'!H95","v":0}]
[null,null,{"$f":"'BNB-System'!C96","v":"Überdachung / Regenschutz"},{"$f":"'BNB-System'!D96","v":2},null,{"$f":"'Bewertung durch Anwender'!G100","v":0},{"$f":"'Bewertung durch Anwender'!N100","v":0},null,null,null,null,{"$f":"'BNB-System'!H96","v":0}]
[null,null,{"$f":"'BNB-System'!C97","v":"Sonnenschutz"},{"$f":"'BNB-System'!D97","v":2},null,{"$f":"'Bewertung durch Anwender'!G101","v":0},{"$f":"'Bewertung durch Anwender'!N101","v":0},null,null,null,null,{"$f":"'BNB-System'!H97","v":0}]
[null,null,{"$f":"'BNB-System'!C98","v":"Stromversorgung für Außenarbeitsplätze"},{"$f":"'BNB-System'!D98","v":1},null,{"$f":"'Bewertung durch Anwender'!G102","v":0},{"$f":"'Bewertung durch Anwender'!N102","v":0},null,null,null,null,{"$f":"'BNB-System'!H98","v":0}]
[null,null,{"$f":"'BNB-System'!C99","v":"Bepflanzung / Begrünung"},{"$f":"'BNB-System'!D99","v":1},null,{"$f":"'Bewertung durch Anwender'!G103","v":0},{"$f":"'Bewertung durch Anwender'!N103","v":0},null,null,null,null,{"$f":"'BNB-System'!H99","v":0}]
[null,{"$f":"'BNB-System'!B100","v":" 3.1.8"},{"$f":"'BNB-System'!C100","v":"Sicherheit"},{"$f":"'BNB-System'!D100","v":100},{"$f":"'BNB-System'!G100","v":2.4999999999999998E-2},{"$f":"'Bewertung durch Anwender'!G104","v":0},{"$f":"'Bewertung durch Anwender'!N104","v":0},{"$f":"SUM(H105:H112)","v":0},null,null,null,{"$f":"'BNB-System'!H100","v":200},{"$f":"IF(ISNUMBER(G104*E104/100),G104*E104/100,0)","v":0},{"$f":"IF(ISNUMBER(H104*E104/100),H104*E104/100,0)","v":0}]
[null,null,{"$f":"'BNB-System'!C101","v":"Übersichtliche Wegführungen"},{"$f":"'BNB-System'!D101","v":40},null,{"$f":"'Bewertung durch Anwender'!G105","v":0},{"$f":"'Bewertung durch Anwender'!N105","v":0},null,null,null,null,{"$f":"'BNB-System'!H101","v":0}]
[null,null,{"$f":"'BNB-System'!C102","v":"Stellplätze"},{"$f":"'BNB-System'!D102","v":8},null,{"$f":"'Bewertung durch Anwender'!G106","v":0},{"$f":"'Bewertung durch Anwender'!N106","v":0},null,null,null,null,{"$f":"'BNB-System'!H102","v":0}]
[null,null,{"$f":"'BNB-System'!C103","v":"Sicherheitsbereiche"},{"$f":"'BNB-System'!D103","v":8},null,{"$f":"'Bewertung durch Anwender'!G107","v":0},{"$f":"'Bewertung durch Anwender'!N107","v":0},null,null,null,null,{"$f":"'BNB-System'!H103","v":0}]
[null,null,{"$f":"'BNB-System'!C104","v":"Beleuchtung Wege"},{"$f":"'BNB-System'!D104","v":12},null,{"$f":"'Bewertung durch Anwender'!G108","v":0},{"$f":"'Bewertung durch Anwender'!N108","v":0},null,null,null,null,{"$f":"'BNB-System'!H104","v":0}]
[null,null,{"$f":"'BNB-System'!C105","v":"Beleuchtung Stellplätze"},{"$f":"'BNB-System'!D105","v":8},null,{"$f":"'Bewertung durch Anwender'!G109","v":0},{"$f":"'Bewertung durch Anwender'!N109","v":0},null,null,null,null,{"$f":"'BNB-System'!H105","v":0}]
[null,null,{"$f":"'BNB-System'!C106","v":"Beleuchtung Sicherheits- und Gefahrenbereiche"},{"$f":"'BNB-System'!D106","v":8},null,{"$f":"'Bewertung durch Anwender'!G110","v":0},{"$f":"'Bewertung durch Anwender'!N110","v":0},null,null,null,null,{"$f":"'BNB-System'!H106","v":0}]
[null,null,{"$f":"'BNB-System'!C107","v":"Technische Sicherheitseinrichtungen"},{"$f":"'BNB-System'!D107","v":8},null,{"$f":"'Bewertung durch Anwender'!G111","v":0},{"$f":"'Bewertung durch Anwender'!N111","v":0},null,null,null,null,{"$f":"'BNB-System'!H107","v":0}]
[null,null,{"$f":"'BNB-System'!C108","v":"Reduktion von Brandgasrisiken"},{"$f":"'BNB-System'!D108","v":8},null,{"$f":"'Bewertung durch Anwender'!G112","v":0},{"$f":"'Bewertung durch Anwender'!N112","v":0},null,null,null,null,{"$f":"'BNB-System'!H108","v":0}]
[null,null,{"$f":"'BNB-System'!C109","v":"Funktionalität"},null,null,null,null,null,null,null,null,{"$f":"'BNB-System'!H109","v":0}]
[null,{"$f":"'BNB-System'!B110","v":" 3.2.1"},{"$f":"'BNB-System'!C110","v":"Barrierefreiheit"},{"$f":"'BNB-System'!D110","v":100},{"$f":"'BNB-System'!G110","v":2.4999999999999998E-2},{"$f":"'Bewertung durch Anwender'!G114","v":0},{"$f":"'Bewertung durch Anwender'!N114","v":0},null,null,null,null,{"$f":"'BNB-System'!H110","v":200},{"$f":"IF(ISNUMBER(G114*E114/100),G114*E114/100,0)","v":0},{"$f":"IF(ISNUMBER(H114*E114/100),H114*E114/100,0)","v":0}]
[null,{"$f":"'BNB-System'!B111","v":" 3.2.4"},{"$f":"'BNB-System'!C111","v":"Zugänglichkeit"},{"$f":"'BNB-System'!D111","v":100},{"$f":"'BNB-System'!G111","v":1.2499999999999999E-2},{"$f":"'Bewertung durch Anwender'!G115","v":0},{"$f":"'Bewertung durch Anwender'!N115","v":0},{"$f":"SUM(H116:H118)","v":0},null,null,null,{"$f":"'BNB-System'!H111","v":100},{"$f":"IF(ISNUMBER(G115*E115/100),G115*E115/100,0)","v":0},{"$f":"IF(ISNUMBER(H115*E115/100),H115*E115/100,0)","v":0}]
[null,null,{"$f":"'BNB-System'!C112","v":"Grundsätzliche Zugänglichkeit des Gebäudes"},{"$f":"'BNB-System'!D112","v":35},null,{"$f":"'Bewertung durch Anwender'!G116","v":0},{"$f":"'Bewertung durch Anwender'!N116","v":0},null,null,null,null,{"$f":"'BNB-System'!H112","v":0}]
[null,null,{"$f":"'BNB-System'!C113","v":"Öffnung der Außenanlagen für die Öffentlichkeit"},{"$f":"'BNB-System'!D113","v":35},null,{"$f":"'Bewertung durch Anwender'!G117","v":0},{"$f":"'Bewertung durch Anwender'!N117","v":0},null,null,null,null,{"$f":"'BNB-System'!H113","v":0}]
[null,null,{"$f":"'BNB-System'!C114","v":"Öffnung gebäudeinterner Einrichtungen für die Öffentlichkeit"},{"$f":"'BNB-System'!D114","v":30},null,{"$f":"'Bewertung durch Anwender'!G118","v":0},{"$f":"'Bewertung durch Anwender'!N118","v":0},null,null,null,null,{"$f":"'BNB-System'!H114","v":0}]
[null,{"$f":"'BNB-System'!B115","v":" 3.2.5"},{"$f":"'BNB-System'!C115","v":"Mobilitätsinfrastruktur"},{"$f":"'BNB-System'!D115","v":100},{"$f":"'BNB-System'!G115","v":1.2499999999999999E-2},{"$f":"'Bewertung durch Anwender'!G119","v":0},{"$f":"'Bewertung durch Anwender'!N119","v":0},{"$f":"IF(SUM(H120:H138)>100,100,SUM(H120:H138))","v":0},null,null,null,{"$f":"'BNB-System'!H115","v":100},{"$f":"IF(ISNUMBER(G119*E119/100),G119*E119/100,0)","v":0},{"$f":"IF(ISNUMBER(H119*E119/100),H119*E119/100,0)","v":0}]
[null,null,{"$f":"'BNB-System'!C116","v":"Anzahl der Fahrradstellplätze"},null,null,null,{"$f":"'Bewertung durch Anwender'!N120","v":0},null,null,null,null,{"$f":"'BNB-System'!H116","v":0}]
[null,null,{"$f":"'BNB-System'!C117","v":"1 Fahrradstellplatz / 40 m²NF oder 1 Fahrradstellplatz / 3 Nutzer"},{"$f":"'BNB-System'!D117","v":40},null,{"$f":"'Bewertung durch Anwender'!G121","v":0},{"$f":"'Bewertung durch Anwender'!N121","v":0},null,null,null,null,{"$f":"'BNB-System'!H117","v":0}]
[null,null,{"$f":"'BNB-System'!C118","v":"1 Fahrradstellplatz / 80m²NF oder 1 Fahrradstellplatz / 6 Nutzer"},{"$f":"'BNB-System'!D118","v":30},null,{"$f":"'Bewertung durch Anwender'!G122","v":0},{"$f":"'Bewertung durch Anwender'!N122","v":0},null,null,null,null,{"$f":"'BNB-System'!H118","v":0}]
[null,null,{"$f":"'BNB-System'!C119","v":"1 Fahrradstellplatz / 120m²NF oder 1 Fahrradstellplatz / 9 Nutzer"},{"$f":"'BNB-System'!D119","v":20},null,{"$f":"'Bewertung durch Anwender'!G123","v":0},{"$f":"'Bewertung durch Anwender'!N123","v":0},null,null,null,null,{"$f":"'BNB-System'!H119","v":0}]
[null,null,{"$f":"'BNB-System'!C120","v":"1 Fahrradstellplatz / 160m²NF oder 1 Fahrradstellplatz / 12 Nutzer"},{"$f":"'BNB-System'!D120","v":10},null,{"$f":"'Bewertung durch Anwender'!G124","v":0},{"$f":"'Bewertung durch Anwender'!N124","v":0},null,null,null,null,{"$f":"'BNB-System'!H120","v":0}]
[null,null,{"$f":"'BNB-System'!C121","v":"Anzahl der Lademöglichkeiten und Carsharing-Stellplätze"},null,null,{"$f":"'Bewertung durch Anwender'!G125","v":""},{"$f":"'Bewertung durch Anwender'!N125","v":0},null,null,null,null,{"$f":"'BNB-System'!H121","v":0}]
[null,null,{"$f":"'BNB-System'!C122","v":"Lademögl. für E-Räder für 10 % der Rad-Stellplätze (mind. 2) vorhanden"},{"$f":"'BNB-System'!D122","v":10},null,{"$f":"'Bewertung durch Anwender'!G126","v":0},{"$f":"'Bewertung durch Anwender'!N126","v":0},null,null,null,null,{"$f":"'BNB-System'!H122","v":0}]
[null,null,{"$f":"'BNB-System'!C123","v":"Lademögl. für E-Pkw für 5 % der Pkw-Stellplätze (mind. 1) vorhanden"},{"$f":"'BNB-System'!D123","v":5},null,{"$f":"'Bewertung durch Anwender'!G127","v":0},{"$f":"'Bewertung durch Anwender'!N127","v":0},null,null,null,null,{"$f":"'BNB-System'!H123","v":0}]
[null,null,{"$f":"'BNB-System'!C124","v":"Carsharing-Stellplatz ist öffentlich zugänglich auf Grundstück vorhanden"},{"$f":"'BNB-System'!D124","v":5},null,{"$f":"'Bewertung durch Anwender'!G128","v":0},{"$f":"'Bewertung durch Anwender'!N128","v":0},null,null,null,null,{"$f":"'BNB-System'!H124","v":0}]
[null,null,{"$f":"'BNB-System'!C125","v":"Qualitative Anforderungen an Fahrradstellplätze"},null,null,null,{"$f":"'Bewertung durch Anwender'!N129","v":0},null,null,null,null,{"$f":"'BNB-System'!H125","v":0}]
[null,null,{"$f":"'BNB-System'!C126","v":" Anordnungsprinzipien und Abstände"},{"$f":"'BNB-System'!D126","v":10},null,{"$f":"'Bewertung durch Anwender'!G130","v":0},{"$f":"'Bewertung durch Anwender'!N130","v":0},null,null,null,null,{"$f":"'BNB-System'!H126","v":0}]
[null,null,{"$f":"'BNB-System'!C127","v":"Position der Fahrradstellplätze für Besucher"},{"$f":"'BNB-System'!D127","v":5},null,{"$f":"'Bewertung durch Anwender'!G131","v":0},{"$f":"'Bewertung durch Anwender'!N131","v":0},null,null,null,null,{"$f":"'BNB-System'!H127","v":0}]
[null,null,{"$f":"'BNB-System'!C128","v":"Position der Fahrradstellplätze für Nutzer"},{"$f":"'BNB-System'!D128","v":5},null,{"$f":"'Bewertung durch Anwender'!G132","v":0},{"$f":"'Bewertung durch Anwender'!N132","v":0},null,null,null,null,{"$f":"'BNB-System'!H128","v":0}]
[null,null,{"$f":"'BNB-System'!C129","v":"Witterungsgeschutz"},{"$f":"'BNB-System'!D129","v":10},null,{"$f":"'Bewertung durch Anwender'!G133","v":0},{"$f":"'Bewertung durch Anwender'!N133","v":0},null,null,null,null,{"$f":"'BNB-System'!H129","v":0}]
[null,null,{"$f":"'BNB-System'!C130","v":"Beleuchtung"},{"$f":"'BNB-System'!D130","v":10},null,{"$f":"'Bewertung durch Anwender'!G134","v":0},{"$f":"'Bewertung durch Anwender'!N134","v":0},null,null,null,null,{"$f":"'BNB-System'!H130","v":0}]
[null,null,{"$f":"'BNB-System'!C131","v":"Diebstahlgesicherter Bereich"},{"$f":"'BNB-System'!D131","v":5},null,{"$f":"'Bewertung durch Anwender'!G135","v":0},{"$f":"'Bewertung durch Anwender'!N135","v":0},null,null,null,null,{"$f":"'BNB-System'!H131","v":0}]
[null,null,{"$f":"'BNB-System'!C132","v":"Fläche mit Ausstattung  für Wartungsarbeiten"},{"$f":"'BNB-System'!D132","v":5},null,{"$f":"'Bewertung durch Anwender'!G136","v":0},{"$f":"'Bewertung durch Anwender'!N136","v":0},null,null,null,null,{"$f":"'BNB-System'!H132","v":0}]
[null,null,{"$f":"'BNB-System'!C133","v":"Duschen und Umkleiden"},{"$f":"'BNB-System'!D133","v":5},null,{"$f":"'Bewertung durch Anwender'!G137","v":0},{"$f":"'Bewertung durch Anwender'!N137","v":0},null,null,null,null,{"$f":"'BNB-System'!H133","v":0}]
[null,null,{"$f":"'BNB-System'!C134","v":"Trocknungsmöglichkeiten"},{"$f":"'BNB-System'!D134","v":5},null,{"$f":"'Bewertung durch Anwender'!G138","v":0},{"$f":"'Bewertung durch Anwender'!N138","v":0},null,null,null,null,{"$f":"'BNB-System'!H134","v":0}]
[null,null,{"$f":"'BNB-System'!C135","v":"Sicherung der Gestaltungsqualität"},null,null,null,null,null,null,null,null,{"$f":"'BNB-System'!H135","v":0}]
[null,{"$f":"'BNB-System'!B136","v":" 3.3.1"},{"$f":"'BNB-System'!C136","v":"Gestalterische und städtebauliche Qualität"},{"$f":"'BNB-System'!D136","v":100},{"$f":"'BNB-System'!G136","v":2.4999999999999998E-2},{"$f":"'Bewertung durch Anwender'!G140","v":0},{"$f":"'Bewertung durch Anwender'!N140","v":0},{"$f":"IF(AND(H141>0,H145<=H146),SUM(H141:H144),IF(AND(H141>0,H146<=H145),SUM(H141:H144),IF(H145>0,H145,IF(H146>0,H146,H147))))","v":0},null,null,null,{"$f":"'BNB-System'!H136","v":200},{"$f":"IF(ISNUMBER(G140*E140/100),G140*E140/100,0)","v":0},{"$f":"IF(ISNUMBER(H140*E140/100),H140*E140/100,0)","v":0}]
[null,null,{"$f":"'BNB-System'!C137","v":"Durchführung von Planungswettbewerben"},{"$f":"'BNB-System'!D137","v":20},null,{"$f":"'Bewertung durch Anwender'!G141","v":0},{"$f":"'Bewertung durch Anwender'!N141","v":0},null,null,null,null,{"$f":"'BNB-System'!H137","v":0}]
[null,null,{"$f":"'BNB-System'!C138","v":"Wettbewerbsverfahren"},{"$f":"'BNB-System'!D138","v":40},null,{"$f":"'Bewertung durch Anwender'!G142","v":0},{"$f":"'Bewertung durch Anwender'!N142","v":0},null,null,null,null,{"$f":"'BNB-System'!H138","v":0}]
[null,null,{"$f":"'BNB-System'!C139","v":"Ausführung des Entwurfs eines der Preisträger"},{"$f":"'BNB-System'!D139","v":30},null,{"$f":"'Bewertung durch Anwender'!G143","v":0},{"$f":"'Bewertung durch Anwender'!N143","v":0},null,null,null,null,{"$f":"'BNB-System'!H139","v":0}]
[null,null,{"$f":"'BNB-System'!C140","v":"Beauftragung des Planungsteams"},{"$f":"'BNB-System'!D140","v":10},null,{"$f":"'Bewertung durch Anwender'!G144","v":0},{"$f":"'Bewertung durch Anwender'!N144","v":0},null,null,null,null,{"$f":"'BNB-System'!H140","v":0}]
[null,null,{"$f":"'BNB-System'!C141","v":"Auszeichnung mit einem Architekturpreis"},{"$f":"'BNB-System'!D141","v":60},null,{"$f":"'Bewertung durch Anwender'!G145","v":0},{"$f":"'Bewertung durch Anwender'!N145","v":0},null,null,null,null,{"$f":"'BNB-System'!H141","v":0}]
[null,null,{"$f":"'BNB-System'!C142","v":"Unabhängiges Expertengremium"},{"$f":"'BNB-System'!D142","v":40},null,{"$f":"'Bewertung durch Anwender'!G146","v":0},{"$f":"'Bewertung durch Anwender'!N146","v":0},null,null,null,null,{"$f":"'BNB-System'!H142","v":0}]
[null,null,{"$f":"'BNB-System'!C143","v":"Sonderfall Mindestanforderung"},{"$f":"'BNB-System'!D143","v":10},null,{"$f":"'Bewertung durch Anwender'!G147","v":0},{"$f":"'Bewertung durch Anwender'!N147","v":0},null,null,null,null,{"$f":"'BNB-System'!H143","v":0}]
[null,{"$f":"'BNB-System'!B144","v":" 3.3.2"},{"$f":"'BNB-System'!C144","v":"Kunst am Bau "},{"$f":"'BNB-System'!D144","v":100},{"$f":"'BNB-System'!G144","v":1.2499999999999999E-2},{"$f":"'Bewertung durch Anwender'!G148","v":0},{"$f":"'Bewertung durch Anwender'!N148","v":0},{"$f":"SUM(H149:H152)","v":0},null,null,null,{"$f":"'BNB-System'!H144","v":100},{"$f":"IF(ISNUMBER(G148*E148/100),G148*E148/100,0)","v":0},{"$f":"IF(ISNUMBER(H148*E148/100),H148*E148/100,0)","v":0}]
[null,null,{"$f":"'BNB-System'!C145","v":"Mindestanforderung"},{"$f":"'BNB-System'!D145","v":10},null,{"$f":"'Bewertung durch Anwender'!G149","v":0},{"$f":"'Bewertung durch Anwender'!N149","v":0},null,null,null,null,{"$f":"'BNB-System'!H145","v":0}]
[null,null,{"$f":"'BNB-System'!C146","v":"Bereitstellung von Mitteln im Rahmen der Bauaufgabe"},{"$f":"'BNB-System'!D146","v":30},null,{"$f":"'Bewertung durch Anwender'!G150","v":0},{"$f":"'Bewertung durch Anwender'!N150","v":0},null,null,null,null,{"$f":"'BNB-System'!H146","v":0}]
[null,null,{"$f":"'BNB-System'!C147","v":"Umsetzung des BMVBS-Leitfadens Kunst am Bau"},{"$f":"'BNB-System'!D147","v":40},null,{"$f":"'Bewertung durch Anwender'!G151","v":0},{"$f":"'Bewertung durch Anwender'!N151","v":0},null,null,null,null,{"$f":"'BNB-System'!H147","v":0}]
[null,null,{"$f":"'BNB-System'!C148","v":"Öffentlichkeitsarbeit, Rezeption  der Kunst am Bau"},{"$f":"'BNB-System'!D148","v":20},null,{"$f":"'Bewertung durch Anwender'!G152","v":0},{"$f":"'Bewertung durch Anwender'!N152","v":0},null,null,null,null,{"$f":"'BNB-System'!H148","v":0}]
[null,null,null,null,null,null,null,null,null,null,null,{"$f":"'BNB-System'!H149","v":0}]
[null,{"$f":"'BNB-System'!B150","v":"Technische Qualität"},null,null,{"$f":"'BNB-System'!G150","v":0.22500000000000001},{"$f":"'Bewertung durch Anwender'!G154","v":0},{"$f":"'Bewertung durch Anwender'!N154","v":0},{"$f":"H157*($E$157/100)+H162*($E$162/100)+H169*($E$169/100)+H179*($E$179/100)+H180*($E$180/100)+H181*($E$181/100)+H182*($E$182/100)","v":0},null,null,null,{"$f":"'BNB-System'!H150","v":1100}]
[null,null,null,null,null,null,null,null,null,null,null,{"$f":"'BNB-System'!H151","v":0}]
[null,null,{"$f":"'BNB-System'!C152","v":"technische Ausführung"},null,null,null,null,null,null,null,null,{"$f":"'BNB-System'!H152","v":0}]
[null,{"$f":"'BNB-System'!B153","v":" 4.1.1"},{"$f":"'BNB-System'!C153","v":"Schallschutz "},{"$f":"'BNB-System'!D153","v":100},{"$f":"'BNB-System'!G153","v":2.0454545454545454E-2},{"$f":"'Bewertung durch Anwender'!G157","v":0},{"$f":"'Bewertung durch Anwender'!N157","v":0},{"$f":"SUM(H158:H161)","v":0},null,null,null,{"$f":"'BNB-System'!H153","v":100},{"$f":"IF(ISNUMBER(G157*E157/100),G157*E157/100,0)","v":0},{"$f":"IF(ISNUMBER(H157*E157/100),H157*E157/100,0)","v":0}]
[null,null,{"$f":"'BNB-System'!C154","v":"Luftschallschutz gegen Außenlärm"},{"$f":"'BNB-System'!D154","v":20},null,{"$f":"'Bewertung durch Anwender'!G158","v":0},{"$f":"'Bewertung durch Anwender'!N158","v":0},null,null,null,null,{"$f":"'BNB-System'!H154","v":0}]
[null,null,{"$f":"'BNB-System'!C155","v":"Luftschallschutz im Gebäudeinneren"},{"$f":"'BNB-System'!D155","v":30},null,{"$f":"'Bewertung durch Anwender'!G159","v":0},{"$f":"'Bewertung durch Anwender'!N159","v":0},null,null,null,null,{"$f":"'BNB-System'!H155","v":0}]
[null,null,{"$f":"'BNB-System'!C156","v":"Trittschallschutz gegenüber fremden und eigenen Arbeitsbereichen"},{"$f":"'BNB-System'!D156","v":30},null,{"$f":"'Bewertung durch Anwender'!G160","v":0},{"$f":"'Bewertung durch Anwender'!N160","v":0},null,null,null,null,{"$f":"'BNB-System'!H156","v":0}]
[null,null,{"$f":"'BNB-System'!C157","v":"Schallschutz gegenüber haustechnischen Anlagen"},{"$f":"'BNB-System'!D157","v":20},null,{"$f":"'Bewertung durch Anwender'!G161","v":0},{"$f":"'Bewertung durch Anwender'!N161","v":0},null,null,null,null,{"$f":"'BNB-System'!H157","v":0}]
[null,{"$f":"'BNB-System'!B158","v":" 4.1.2"},{"$f":"'BNB-System'!C158","v":"Wärme- und Tauwasserschutz "},{"$f":"'BNB-System'!D158","v":100},{"$f":"'BNB-System'!G158","v":2.0454545454545454E-2},{"$f":"'Bewertung durch Anwender'!G162","v":0},{"$f":"'Bewertung durch Anwender'!N162","v":0},{"$f":"SUM(H163:H168)","v":0},null,null,null,{"$f":"'BNB-System'!H158","v":100},{"$f":"IF(ISNUMBER(G162*E162/100),G162*E162/100,0)","v":0},{"$f":"IF(ISNUMBER(H162*E162/100),H162*E162/100,0)","v":0}]
[null,null,{"$f":"'BNB-System'!C159","v":"Mittlere Wärmeduchgangskoeffizienten"},{"$f":"'BNB-System'!D159","v":30},null,{"$f":"'Bewertung durch Anwender'!G163","v":0},{"$f":"'Bewertung durch Anwender'!N163","v":0},null,null,null,null,{"$f":"'BNB-System'!H159","v":0}]
[null,null,{"$f":"'BNB-System'!C160","v":"Wärmebrückenzuschlag"},{"$f":"'BNB-System'!D160","v":15},null,{"$f":"'Bewertung durch Anwender'!G164","v":0},{"$f":"'Bewertung durch Anwender'!N164","v":0},null,null,null,null,{"$f":"'BNB-System'!H160","v":0}]
[null,null,{"$f":"'BNB-System'!C161","v":"Klassen der Luftdurchlässigkeit (Fugendurchlässigkeit)"},{"$f":"'BNB-System'!D161","v":15},null,{"$f":"'Bewertung durch Anwender'!G165","v":0},{"$f":"'Bewertung durch Anwender'!N165","v":0},null,null,null,null,{"$f":"'BNB-System'!H161","v":0}]
[null,null,{"$f":"'BNB-System'!C162","v":"Tauwasserbildung"},{"$f":"'BNB-System'!D162","v":10},null,{"$f":"'Bewertung durch Anwender'!G166","v":0},{"$f":"'Bewertung durch Anwender'!N166","v":0},null,null,null,null,{"$f":"'BNB-System'!H162","v":0}]
[null,null,{"$f":"'BNB-System'!C163","v":"Luftwechsel"},{"$f":"'BNB-System'!D163","v":15},null,{"$f":"'Bewertung durch Anwender'!G167","v":0},{"$f":"'Bewertung durch Anwender'!N167","v":0},null,null,null,null,{"$f":"'BNB-System'!H163","v":0}]
[null,null,{"$f":"'BNB-System'!C164","v":"Sonneneintragswert"},{"$f":"'BNB-System'!D164","v":15},null,{"$f":"'Bewertung durch Anwender'!G168","v":0},{"$f":"'Bewertung durch Anwender'!N168","v":0},null,null,null,null,{"$f":"'BNB-System'!H164","v":0}]
[null,{"$f":"'BNB-System'!B165","v":" 4.1.3"},{"$f":"'BNB-System'!C165","v":"Reinigungs- und Instandhaltungsfreundlichkeit"},{"$f":"'BNB-System'!D165","v":100},{"$f":"'BNB-System'!G165","v":4.0909090909090909E-2},{"$f":"'Bewertung durch Anwender'!G169","v":0},{"$f":"'Bewertung durch Anwender'!N169","v":0},{"$f":"SUM(H170:H178)","v":0},null,null,null,{"$f":"'BNB-System'!H165","v":200},{"$f":"IF(ISNUMBER(G169*E169/100),G169*E169/100,0)","v":0},{"$f":"IF(ISNUMBER(H169*E169/100),H169*E169/100,0)","v":0}]
[null,null,{"$f":"'BNB-System'!C166","v":"Tragkonstruktion"},{"$f":"'BNB-System'!D166","v":15},null,{"$f":"'Bewertung durch Anwender'!G170","v":0},{"$f":"'Bewertung durch Anwender'!N170","v":0},null,null,null,null,{"$f":"'BNB-System'!H166","v":0}]
[null,null,{"$f":"'BNB-System'!C167","v":"Zugänglichkeit der Außenglasflächen"},{"$f":"'BNB-System'!D167","v":15},null,{"$f":"'Bewertung durch Anwender'!G171","v":0},{"$f":"'Bewertung durch Anwender'!N171","v":0},null,null,null,null,{"$f":"'BNB-System'!H167","v":0}]
[null,null,{"$f":"'BNB-System'!C168","v":"Außenbauteile"},{"$f":"'BNB-System'!D168","v":9},null,{"$f":"'Bewertung durch Anwender'!G172","v":0},{"$f":"'Bewertung durch Anwender'!N172","v":0},null,null,null,null,{"$f":"'BNB-System'!H168","v":0}]
[null,null,{"$f":"'BNB-System'!C169","v":"Bodenbelag"},{"$f":"'BNB-System'!D169","v":9},null,{"$f":"'Bewertung durch Anwender'!G173","v":0},{"$f":"'Bewertung durch Anwender'!N173","v":0},null,null,null,null,{"$f":"'BNB-System'!H169","v":0}]
[null,null,{"$f":"'BNB-System'!C170","v":"Schmutzfangzone"},{"$f":"'BNB-System'!D170","v":9},null,{"$f":"'Bewertung durch Anwender'!G174","v":0},{"$f":"'Bewertung durch Anwender'!N174","v":0},null,null,null,null,{"$f":"'BNB-System'!H170","v":0}]
[null,null,{"$f":"'BNB-System'!C171","v":"Fußbodenleisten"},{"$f":"'BNB-System'!D171","v":9},null,{"$f":"'Bewertung durch Anwender'!G175","v":0},{"$f":"'Bewertung durch Anwender'!N175","v":0},null,null,null,null,{"$f":"'BNB-System'!H171","v":0}]
[null,null,{"$f":"'BNB-System'!C172","v":"Hindernisfreie Grundrissgestaltung"},{"$f":"'BNB-System'!D172","v":9},null,{"$f":"'Bewertung durch Anwender'!G176","v":0},{"$f":"'Bewertung durch Anwender'!N176","v":0},null,null,null,null,{"$f":"'BNB-System'!H172","v":0}]
[null,null,{"$f":"'BNB-System'!C173","v":"Einbauten"},{"$f":"'BNB-System'!D173","v":10},null,{"$f":"'Bewertung durch Anwender'!G177","v":0},{"$f":"'Bewertung durch Anwender'!N177","v":0},null,null,null,null,{"$f":"'BNB-System'!H173","v":0}]
[null,null,{"$f":"'BNB-System'!C174","v":"Zugänglichkeit der Innenglasflächen "},{"$f":"'BNB-System'!D174","v":15},null,{"$f":"'Bewertung durch Anwender'!G178","v":0},{"$f":"'Bewertung durch Anwender'!N178","v":0},null,null,null,null,{"$f":"'BNB-System'!H174","v":0}]
[null,{"$f":"'BNB-System'!B175","v":" 4.1.4"},{"$f":"'BNB-System'!C175","v":"Rückbau, Trennung und Verwertung"},{"$f":"'BNB-System'!D175","v":100},{"$f":"'BNB-System'!G175","v":2.0454545454545454E-2},{"$f":"'Bewertung durch Anwender'!G179","v":0},{"$f":"'Bewertung durch Anwender'!N179","v":0},null,null,null,null,{"$f":"'BNB-System'!H175","v":100},{"$f":"IF(ISNUMBER(G179*E179/100),G179*E179/100,0)","v":0},{"$f":"IF(ISNUMBER(H179*E179/100),H179*E179/100,0)","v":0}]
[null,{"$f":"'BNB-System'!B176","v":" 4.1.5"},{"$f":"'BNB-System'!C176","v":"Widerstandsfähigkeit gegen Naturgefahren"},{"$f":"'BNB-System'!D176","v":100},{"$f":"'BNB-System'!G176","v":2.0454545454545454E-2},{"$f":"'Bewertung durch Anwender'!G180","v":0},{"$f":"'Bewertung durch Anwender'!N180","v":0},null,null,null,null,{"$f":"'BNB-System'!H176","v":100},{"$f":"IF(ISNUMBER(G180*E180/100),G180*E180/100,0)","v":0},{"$f":"IF(ISNUMBER(H180*E180/100),H180*E180/100,0)","v":0}]
[null,{"$f":"'BNB-System'!B177","v":" 4.1.6"},{"$f":"'BNB-System'!C177","v":"Bedienungs- und Instandhaltungsfreundlichkeit der TGA"},{"$f":"'BNB-System'!D177","v":100},{"$f":"'BNB-System'!G177","v":4.0909090909090909E-2},{"$f":"'Bewertung durch Anwender'!G181","v":0},{"$f":"'Bewertung durch Anwender'!N181","v":0},null,null,null,null,{"$f":"'BNB-System'!H177","v":200},{"$f":"IF(ISNUMBER(G181*E181/100),G181*E181/100,0)","v":0},{"$f":"IF(ISNUMBER(H181*E181/100),H181*E181/100,0)","v":0}]
[null,{"$f":"'BNB-System'!B178","v":" 4.1.7"},{"$f":"'BNB-System'!C178","v":"Systemqualität der TGA"},{"$f":"'BNB-System'!D178","v":100},{"$f":"'BNB-System'!G178","v":6.1363636363636363E-2},{"$f":"'Bewertung durch Anwender'!G182","v":0},{"$f":"'Bewertung durch Anwender'!N182","v":0},null,null,null,null,{"$f":"'BNB-System'!H178","v":300},{"$f":"IF(ISNUMBER(G182*E182/100),G182*E182/100,0)","v":0},{"$f":"IF(ISNUMBER(H182*E182/100),H182*E182/100,0)","v":0}]
[null,null,null,null,null,null,null,null,null,null,null,{"$f":"'BNB-System'!H179","v":0}]
[null,{"$f":"'BNB-System'!B180","v":"Prozessqualität"},null,null,{"$f":"'BNB-System'!G180","v":0.1},{"$f":"'Bewertung durch Anwender'!G184","v":0},{"$f":"'Bewertung durch Anwender'!N184","v":0},{"$f":"H187*($E$187/100)+H191*($E$191/100)+H197*($E$197/100)+H213*($E$213/100)+H214*($E$214/100)+H221*($E$221/100)+H226*($E$226/100)+H229*($E$229/100)","v":0},null,null,null,{"$f":"'BNB-System'!H180","v":2100}]
[null,null,null,null,null,null,null,null,null,null,null,{"$f":"'BNB-System'!H181","v":0}]
[null,null,{"$f":"'BNB-System'!C182","v":"Planung"},null,null,null,null,null,null,null,null,{"$f":"'BNB-System'!H182","v":0}]
[null,{"$f":"'BNB-System'!B183","v":" 5.1.1"},{"$f":"'BNB-System'!C183","v":"Projektvorbereitung"},{"$f":"'BNB-System'!D183","v":100},{"$f":"'BNB-System'!G183","v":1.4285714285714285E-2},{"$f":"'Bewertung durch Anwender'!G187","v":0},{"$f":"'Bewertung durch Anwender'!N187","v":0},{"$f":"SUM(H188:H190)","v":0},null,null,null,{"$f":"'BNB-System'!H183","v":300},{"$f":"IF(ISNUMBER(G187*E187/100),G187*E187/100,0)","v":0},{"$f":"IF(ISNUMBER(H187*E187/100),H187*E187/100,0)","v":0}]
[null,null,{"$f":"'BNB-System'!C184","v":"Bedarfsplanung oder vergleichbare Planung"},{"$f":"'BNB-System'!D184","v":35},null,{"$f":"'Bewertung durch Anwender'!G188","v":0},{"$f":"'Bewertung durch Anwender'!N188","v":0},null,null,null,null,{"$f":"'BNB-System'!H184","v":0}]
[null,null,{"$f":"'BNB-System'!C185","v":"Zielvereinbarung"},{"$f":"'BNB-System'!D185","v":35},null,{"$f":"'Bewertung durch Anwender'!G189","v":0},{"$f":"'Bewertung durch Anwender'!N189","v":0},null,null,null,null,{"$f":"'BNB-System'!H185","v":0}]
[null,null,{"$f":"'BNB-System'!C186","v":"Architektenwettbewerb"},{"$f":"'BNB-System'!D186","v":30},null,{"$f":"'Bewertung durch Anwender'!G190","v":0},{"$f":"'Bewertung durch Anwender'!N190","v":0},null,null,null,null,{"$f":"'BNB-System'!H186","v":0}]
[null,{"$f":"'BNB-System'!B187","v":" 5.1.2"},{"$f":"'BNB-System'!C187","v":"Integrale Planung"},{"$f":"'BNB-System'!D187","v":100},{"$f":"'BNB-System'!G187","v":1.4285714285714285E-2},{"$f":"'Bewertung durch Anwender'!G191","v":0},{"$f":"'Bewertung durch Anwender'!N191","v":0},{"$f":"SUM(H192:H196)","v":0},null,null,null,{"$f":"'BNB-System'!H187","v":300},{"$f":"IF(ISNUMBER(G191*E191/100),G191*E191/100,0)","v":0},{"$f":"IF(ISNUMBER(H191*E191/100),H191*E191/100,0)","v":0}]
[null,null,{"$f":"'BNB-System'!C188","v":"Interdisziplinäres Projektteam"},{"$f":"'BNB-System'!D188","v":30},null,{"$f":"'Bewertung durch Anwender'!G192","v":0},{"$f":"'Bewertung durch Anwender'!N192","v":0},null,null,null,null,{"$f":"'BNB-System'!H188","v":0}]
[null,null,{"$f":"'BNB-System'!C189","v":"Qualifikation des Projektteams"},{"$f":"'BNB-System'!D189","v":20},null,{"$f":"'Bewertung durch Anwender'!G193","v":0},{"$f":"'Bewertung durch Anwender'!N193","v":0},null,null,null,null,{"$f":"'BNB-System'!H189","v":0}]
[null,null,{"$f":"'BNB-System'!C190","v":"Integraler Planungsprozess"},{"$f":"'BNB-System'!D190","v":20},null,{"$f":"'Bewertung durch Anwender'!G194","v":0},{"$f":"'Bewertung durch Anwender'!N194","v":0},null,null,null,null,{"$f":"'BNB-System'!H190","v":0}]
[null,null,{"$f":"'BNB-System'!C191","v":"Nutzerbeteiligung"},{"$f":"'BNB-System'!D191","v":20},null,{"$f":"'Bewertung durch Anwender'!G195","v":0},{"$f":"'Bewertung durch Anwender'!N195","v":0},null,null,null,null,{"$f":"'BNB-System'!H191","v":0}]
[null,null,{"$f":"'BNB-System'!C192","v":"Öffentlichkeitsbeteiligung"},{"$f":"'BNB-System'!D192","v":10},null,{"$f":"'Bewertung durch Anwender'!G196","v":0},{"$f":"'Bewertung durch Anwender'!N196","v":0},null,null,null,null,{"$f":"'BNB-System'!H192","v":0}]
[null,{"$f":"'BNB-System'!B193","v":" 5.1.3"},{"$f":"'BNB-System'!C193","v":"Komplexität und Optimierung der Planung"},{"$f":"'BNB-System'!D193","v":100},{"$f":"'BNB-System'!G193","v":1.4285714285714285E-2},{"$f":"'Bewertung durch Anwender'!G197","v":0},{"$f":"'Bewertung durch Anwender'!N197","v":0},{"$f":"IF(SUM(H198:H212)>100,100,SUM(H198:H212))","v":0},null,null,null,{"$f":"'BNB-System'!H193","v":300},{"$f":"IF(ISNUMBER(G197*E197/100),G197*E197/100,0)","v":0},{"$f":"IF(ISNUMBER(H197*E197/100),H197*E197/100,0)","v":0}]
[null,null,{"$f":"'BNB-System'!C194","v":"SiGe-Plan"},{"$f":"'BNB-System'!D194","v":10},null,{"$f":"'Bewertung durch Anwender'!G198","v":0},{"$f":"'Bewertung durch Anwender'!N198","v":0},null,null,null,null,{"$f":"'BNB-System'!H194","v":0}]
[null,null,{"$f":"'BNB-System'!C195","v":"Ver- und Entsiegelungskonzept"},{"$f":"'BNB-System'!D195","v":10},null,{"$f":"'Bewertung durch Anwender'!G199","v":0},{"$f":"'Bewertung durch Anwender'!N199","v":0},null,null,null,null,{"$f":"'BNB-System'!H195","v":0}]
[null,null,{"$f":"'BNB-System'!C196","v":"Energiekonzept"},{"$f":"'BNB-System'!D196","v":15},null,{"$f":"'Bewertung durch Anwender'!G200","v":0},{"$f":"'Bewertung durch Anwender'!N200","v":0},null,null,null,null,{"$f":"'BNB-System'!H196","v":0}]
[null,null,{"$f":"'BNB-System'!C197","v":"Mess- und Monitoringkonzept"},{"$f":"'BNB-System'!D197","v":15},null,{"$f":"'Bewertung durch Anwender'!G201","v":0},{"$f":"'Bewertung durch Anwender'!N201","v":0},null,null,null,null,{"$f":"'BNB-System'!H197","v":0}]
[null,null,{"$f":"'BNB-System'!C198","v":"Wasserkonzept"},{"$f":"'BNB-System'!D198","v":20},null,{"$f":"'Bewertung durch Anwender'!G202","v":0},{"$f":"'Bewertung durch Anwender'!N202","v":0},null,null,null,null,{"$f":"'BNB-System'!H198","v":0}]
[null,null,{"$f":"'BNB-System'!C199","v":"Konzept zur Vermeid. von Umwelt- & Gesundheitsrisiken aus Bauprod."},{"$f":"'BNB-System'!D199","v":10},null,{"$f":"'Bewertung durch Anwender'!G203","v":0},{"$f":"'Bewertung durch Anwender'!N203","v":0},null,null,null,null,{"$f":"'BNB-System'!H199","v":0}]
[null,null,{"$f":"'BNB-System'!C200","v":"Lüftungskonzept"},{"$f":"'BNB-System'!D200","v":10},null,{"$f":"'Bewertung durch Anwender'!G204","v":0},{"$f":"'Bewertung durch Anwender'!N204","v":0},null,null,null,null,{"$f":"'BNB-System'!H200","v":0}]
[null,null,{"$f":"'BNB-System'!C201","v":"Abfallkonzept / Wertstoffkonzept"},{"$f":"'BNB-System'!D201","v":5},null,{"$f":"'Bewertung durch Anwender'!G205","v":0},{"$f":"'Bewertung durch Anwender'!N205","v":0},null,null,null,null,{"$f":"'BNB-System'!H201","v":0}]
[null,null,{"$f":"'BNB-System'!C202","v":"Tages- / Kunstlichtoptimierung"},{"$f":"'BNB-System'!D202","v":10},null,{"$f":"'Bewertung durch Anwender'!G206","v":0},{"$f":"'Bewertung durch Anwender'!N206","v":0},null,null,null,null,{"$f":"'BNB-System'!H202","v":0}]
[null,null,{"$f":"'BNB-System'!C203","v":"Konzept zur Sicherung der Reinigungs- & Instandhaltungsfreundlichk."},{"$f":"'BNB-System'!D203","v":10},null,{"$f":"'Bewertung durch Anwender'!G207","v":0},{"$f":"'Bewertung durch Anwender'!N207","v":0},null,null,null,null,{"$f":"'BNB-System'!H203","v":0}]
[null,null,{"$f":"'BNB-System'!C204","v":"Anpassbarkeits-, Rückbau- und Recyclingkonzept"},{"$f":"'BNB-System'!D204","v":10},null,{"$f":"'Bewertung durch Anwender'!G208","v":0},{"$f":"'Bewertung durch Anwender'!N208","v":0},null,null,null,null,{"$f":"'BNB-System'!H204","v":0}]
[null,null,{"$f":"'BNB-System'!C205","v":"Konzept zur Vermeidung und Beherrschung von Risiken"},{"$f":"'BNB-System'!D205","v":10},null,{"$f":"'Bewertung durch Anwender'!G209","v":0},{"$f":"'Bewertung durch Anwender'!N209","v":0},null,null,null,null,{"$f":"'BNB-System'!H205","v":0}]
[null,null,{"$f":"'BNB-System'!C206","v":"Sonstige Konzepte zum Nachhaltigen Bauen"},{"$f":"'BNB-System'!D206","v":10},null,{"$f":"'Bewertung durch Anwender'!G210","v":0},{"$f":"'Bewertung durch Anwender'!N210","v":0},null,null,null,null,{"$f":"'BNB-System'!H206","v":0}]
[null,null,{"$f":"'BNB-System'!C207","v":"Prüfung der Planungsunterlagen durch unabhängige Dritte"},{"$f":"'BNB-System'!D207","v":5},null,{"$f":"'Bewertung durch Anwender'!G211","v":0},{"$f":"'Bewertung durch Anwender'!N211","v":0},null,null,null,null,{"$f":"'BNB-System'!H207","v":0}]
[null,null,{"$f":"'BNB-System'!C208","v":"Durchführung von Variantenvergleichen"},{"$f":"'BNB-System'!D208","v":10},null,{"$f":"'Bewertung durch Anwender'!G212","v":0},{"$f":"'Bewertung durch Anwender'!N212","v":0},null,null,null,null,{"$f":"'BNB-System'!H208","v":0}]
[null,{"$f":"'BNB-System'!B209","v":" 5.1.4"},{"$f":"'BNB-System'!C209","v":"Ausschreibung und Vergabe"},{"$f":"'BNB-System'!D209","v":100},{"$f":"'BNB-System'!G209","v":9.5238095238095247E-3},{"$f":"'Bewertung durch Anwender'!G213","v":0},{"$f":"'Bewertung durch Anwender'!N213","v":0},null,null,null,null,{"$f":"'BNB-System'!H209","v":200},{"$f":"IF(ISNUMBER(G213*E213/100),G213*E213/100,0)","v":0},{"$f":"IF(ISNUMBER(H213*E213/100),H213*E213/100,0)","v":0}]
[null,{"$f":"'BNB-System'!B210","v":" 5.1.5"},{"$f":"'BNB-System'!C210","v":"Voraussetzungen für eine optimale Bewirtschaftung"},{"$f":"'BNB-System'!D210","v":100},{"$f":"'BNB-System'!G210","v":9.5238095238095247E-3},{"$f":"'Bewertung durch Anwender'!G214","v":0},{"$f":"'Bewertung durch Anwender'!N214","v":0},{"$f":"SUM(H215:H219)","v":0},null,null,null,{"$f":"'BNB-System'!H210","v":200},{"$f":"IF(ISNUMBER(G214*E214/100),G214*E214/100,0)","v":0},{"$f":"IF(ISNUMBER(H214*E214/100),H214*E214/100,0)","v":0}]
[null,null,{"$f":"'BNB-System'!C211","v":"Erstellung einer Gebäudeakte / Objektdokumentation"},{"$f":"'BNB-System'!D211","v":20},null,{"$f":"'Bewertung durch Anwender'!G215","v":0},{"$f":"'Bewertung durch Anwender'!N215","v":0},null,null,null,null,{"$f":"'BNB-System'!H211","v":0}]
[null,null,{"$f":"'BNB-System'!C212","v":"Erstellung von Wartungs-, Inspektions-, Betriebs-, Pflegeanleitungen"},{"$f":"'BNB-System'!D212","v":20},null,{"$f":"'Bewertung durch Anwender'!G216","v":0},{"$f":"'Bewertung durch Anwender'!N216","v":0},null,null,null,null,{"$f":"'BNB-System'!H212","v":0}]
[null,null,{"$f":"'BNB-System'!C213","v":"Anpassung der Pläne und Berechnungen an das realisierte Gebäude"},{"$f":"'BNB-System'!D213","v":20},null,{"$f":"'Bewertung durch Anwender'!G217","v":0},{"$f":"'Bewertung durch Anwender'!N217","v":0},null,null,null,null,{"$f":"'BNB-System'!H213","v":0}]
[null,null,{"$f":"'BNB-System'!C214","v":"Erstellung eines Nutzerhandbuches"},{"$f":"'BNB-System'!D214","v":20},null,{"$f":"'Bewertung durch Anwender'!G218","v":0},{"$f":"'Bewertung durch Anwender'!N218","v":0},null,null,null,null,{"$f":"'BNB-System'!H214","v":0}]
[null,null,{"$f":"'BNB-System'!C215","v":"Nutzereinweisung"},{"$f":"'BNB-System'!D215","v":20},null,{"$f":"'Bewertung durch Anwender'!G219","v":0},{"$f":"'Bewertung durch Anwender'!N219","v":0},null,null,null,null,{"$f":"'BNB-System'!H215","v":0}]
[null,null,{"$f":"'BNB-System'!C216","v":"Bauausführung"},null,null,null,null,null,null,null,null,{"$f":"'BNB-System'!H216","v":0}]
[null,{"$f":"'BNB-System'!B217","v":" 5.2.1"},{"$f":"'BNB-System'!C217","v":"Baustelle / Bauprozess"},{"$f":"'BNB-System'!D217","v":100},{"$f":"'BNB-System'!G217","v":9.5238095238095247E-3},{"$f":"'Bewertung durch Anwender'!G221","v":0},{"$f":"'Bewertung durch Anwender'!N221","v":0},{"$f":"SUM(H222:H225)","v":0},null,null,null,{"$f":"'BNB-System'!H217","v":200},{"$f":"IF(ISNUMBER(G221*E221/100),G221*E221/100,0)","v":0},{"$f":"IF(ISNUMBER(H221*E221/100),H221*E221/100,0)","v":0}]
[null,null,{"$f":"'BNB-System'!C218","v":"Wertstoffoptimierte Baustelle"},{"$f":"'BNB-System'!D218","v":25},null,{"$f":"'Bewertung durch Anwender'!G222","v":0},{"$f":"'Bewertung durch Anwender'!N222","v":0},null,null,null,null,{"$f":"'BNB-System'!H218","v":0}]
[null,null,{"$f":"'BNB-System'!C219","v":"Lärmarme Baustelle"},{"$f":"'BNB-System'!D219","v":25},null,{"$f":"'Bewertung durch Anwender'!G223","v":0},{"$f":"'Bewertung durch Anwender'!N223","v":0},null,null,null,null,{"$f":"'BNB-System'!H219","v":0}]
[null,null,{"$f":"'BNB-System'!C220","v":"Staubarme Baustelle"},{"$f":"'BNB-System'!D220","v":25},null,{"$f":"'Bewertung durch Anwender'!G224","v":0},{"$f":"'Bewertung durch Anwender'!N224","v":0},null,null,null,null,{"$f":"'BNB-System'!H220","v":0}]
[null,null,{"$f":"'BNB-System'!C221","v":"Bodenschutz auf der Baustelle"},{"$f":"'BNB-System'!D221","v":25},null,{"$f":"'Bewertung durch Anwender'!G225","v":0},{"$f":"'Bewertung durch Anwender'!N225","v":0},null,null,null,null,{"$f":"'BNB-System'!H221","v":0}]
[null,{"$f":"'BNB-System'!B222","v":" 5.2.2"},{"$f":"'BNB-System'!C222","v":"Qualitätssicherung der Bauausführung"},{"$f":"'BNB-System'!D222","v":100},{"$f":"'BNB-System'!G222","v":1.4285714285714285E-2},{"$f":"'Bewertung durch Anwender'!G226","v":0},{"$f":"'Bewertung durch Anwender'!N226","v":0},{"$f":"SUM(H227:H228)","v":0},null,null,null,{"$f":"'BNB-System'!H222","v":300},{"$f":"IF(ISNUMBER(G226*E226/100),G226*E226/100,0)","v":0},{"$f":"IF(ISNUMBER(H226*E226/100),H226*E226/100,0)","v":0}]
[null,null,{"$f":"'BNB-System'!C223","v":"Dokumentation"},{"$f":"'BNB-System'!D223","v":50},null,{"$f":"'Bewertung durch Anwender'!G227","v":0},{"$f":"'Bewertung durch Anwender'!N227","v":0},null,null,null,null,{"$f":"'BNB-System'!H223","v":0}]
[null,null,{"$f":"'BNB-System'!C224","v":"Messungen zur Qualitätskontrolle"},{"$f":"'BNB-System'!D224","v":50},null,{"$f":"'Bewertung durch Anwender'!G228","v":0},{"$f":"'Bewertung durch Anwender'!N228","v":0},null,null,null,null,{"$f":"'BNB-System'!H224","v":0}]
[null,{"$f":"'BNB-System'!B225","v":" 5.2.3"},{"$f":"'BNB-System'!C225","v":"Systematische Inbetriebnahme"},{"$f":"'BNB-System'!D225","v":100},{"$f":"'BNB-System'!G225","v":1.4285714285714285E-2},{"$f":"'Bewertung durch Anwender'!G229","v":0},{"$f":"'Bewertung durch Anwender'!N229","v":0},null,null,null,null,{"$f":"'BNB-System'!H225","v":300},{"$f":"IF(ISNUMBER(G229*E229/100),G229*E229/100,0)","v":0},{"$f":"IF(ISNUMBER(H229*E229/100),H229*E229/100,0)","v":0}]
[null,null,null,null,null,null,null,null,null,null,null,{"$f":"'BNB-System'!H226","v":0}]
[null,null,null,null,null,null,null,null,null,null,null,{"$f":"'BNB-System'!H227","v":0}]
[null,{"$f":"'BNB-System'!B228","v":"Standortmerkmale"},null,null,{"$f":"'BNB-System'!G228","v":1},{"$f":"Zielvereinbarung!G232","v":0},{"$f":"'Bewertung durch Anwender'!N232","v":0},{"$f":"H235*($E$235/100)+H241*($E$241/100)+H248*($E$248/100)+H253*($E$253/100)+H257*($E$257/100)+H267*($E$267/100)","v":0},null,null,null,{"$f":"'BNB-System'!H228","v":1300}]
[null,null,null,null,null,null,null,null,null,null,null,{"$f":"'BNB-System'!H229","v":0}]
[null,null,{"$f":"'BNB-System'!C230","v":"Standortmerkmale"},null,null,null,null,null,null,null,null,{"$f":"'BNB-System'!H230","v":0}]
[null,{"$f":"'BNB-System'!B231","v":" 6.1.1"},{"$f":"'BNB-System'!C231","v":"Risiken am Mikrostandort"},{"$f":"'BNB-System'!D231","v":100},{"$f":"'BNB-System'!G231","v":0.15384615384615385},{"$f":"'Bewertung durch Anwender'!G235","v":0},{"$f":"'Bewertung durch Anwender'!N235","v":0},{"$f":"SUM(H236:H240)","v":0},null,null,null,{"$f":"'BNB-System'!H231","v":200}]
[null,null,{"$f":"'BNB-System'!C232","v":"Risiken aus Man-Made-Hazards (Unfälle)"},{"$f":"'BNB-System'!D232","v":20},null,{"$f":"'Bewertung durch Anwender'!G236","v":0},{"$f":"'Bewertung durch Anwender'!N236","v":0}]
[null,null,{"$f":"'BNB-System'!C233","v":"Risiken aus Erdbeben"},{"$f":"'BNB-System'!D233","v":20},null,{"$f":"'Bewertung durch Anwender'!G237","v":0},{"$f":"'Bewertung durch Anwender'!N237","v":0}]
[null,null,{"$f":"'BNB-System'!C234","v":"Risiken aus Lawinen"},{"$f":"'BNB-System'!D234","v":20},null,{"$f":"'Bewertung durch Anwender'!G238","v":0},{"$f":"'Bewertung durch Anwender'!N238","v":0}]
[null,null,{"$f":"'BNB-System'!C235","v":"Risiken aus Sturm"},{"$f":"'BNB-System'!D235","v":20},null,{"$f":"'Bewertung durch Anwender'!G239","v":0},{"$f":"'Bewertung durch Anwender'!N239","v":0}]
[null,null,{"$f":"'BNB-System'!C236","v":"Risiken aus Hochwasser"},{"$f":"'BNB-System'!D236","v":20},null,{"$f":"'Bewertung durch Anwender'!G240","v":0},{"$f":"'Bewertung durch Anwender'!N240","v":0}]
[null,{"$f":"'BNB-System'!B237","v":" 6.1.2"},{"$f":"'BNB-System'!C237","v":"Verhältnisse am Mikrostandort"},{"$f":"'BNB-System'!D237","v":100},{"$f":"'BNB-System'!G237","v":0.15384615384615385},{"$f":"'Bewertung durch Anwender'!G241","v":0},{"$f":"'Bewertung durch Anwender'!N241","v":0},{"$f":"SUM(H242:H247)","v":0},null,null,null,{"$f":"'BNB-System'!H237","v":200}]
[null,null,{"$f":"'BNB-System'!C238","v":"Außenluftqualität"},{"$f":"'BNB-System'!D238","v":16},null,{"$f":"'Bewertung durch Anwender'!G242","v":0},{"$f":"'Bewertung durch Anwender'!N242","v":0}]
[null,null,{"$f":"'BNB-System'!C239","v":"Außenlärmpegel"},{"$f":"'BNB-System'!D239","v":20},null,{"$f":"'Bewertung durch Anwender'!G243","v":0},{"$f":"'Bewertung durch Anwender'!N243","v":0}]
[null,null,{"$f":"'BNB-System'!C240","v":"Baugrundverhältnisse, Bodenbelastungen"},{"$f":"'BNB-System'!D240","v":16},null,{"$f":"'Bewertung durch Anwender'!G244","v":0},{"$f":"'Bewertung durch Anwender'!N244","v":0}]
[null,null,{"$f":"'BNB-System'!C241","v":"Elektromagnetische Felder"},{"$f":"'BNB-System'!D241","v":16},null,{"$f":"'Bewertung durch Anwender'!G245","v":0},{"$f":"'Bewertung durch Anwender'!N245","v":0}]
[null,null,{"$f":"'BNB-System'!C242","v":"Vorkommen von Radon"},{"$f":"'BNB-System'!D242","v":16},null,{"$f":"'Bewertung durch Anwender'!G246","v":0},{"$f":"'Bewertung durch Anwender'!N246","v":0}]
[null,null,{"$f":"'BNB-System'!C243","v":"Stadt- und Landschaftsbild / Sichtbeziehungen"},{"$f":"'BNB-System'!D243","v":16},null,{"$f":"'Bewertung durch Anwender'!G247","v":0},{"$f":"'Bewertung durch Anwender'!N247","v":0}]
[null,{"$f":"'BNB-System'!B244","v":" 6.1.3"},{"$f":"'BNB-System'!C244","v":"Quartiersmerkmale"},{"$f":"'BNB-System'!D244","v":100},{"$f":"'BNB-System'!G244","v":0.15384615384615385},{"$f":"'Bewertung durch Anwender'!G248","v":0},{"$f":"'Bewertung durch Anwender'!N248","v":0},{"$f":"SUM(H249:H252)","v":0},null,null,null,{"$f":"'BNB-System'!H244","v":200}]
[null,null,{"$f":"'BNB-System'!C245","v":"Image, Attraktivität"},{"$f":"'BNB-System'!D245","v":25},null,{"$f":"'Bewertung durch Anwender'!G249","v":0},{"$f":"'Bewertung durch Anwender'!N249","v":0}]
[null,null,{"$f":"'BNB-System'!C246","v":"Synergie- und Konfliktpotenziale"},{"$f":"'BNB-System'!D246","v":25},null,{"$f":"'Bewertung durch Anwender'!G250","v":0},{"$f":"'Bewertung durch Anwender'!N250","v":0}]
[null,null,{"$f":"'BNB-System'!C247","v":"Kriminalität"},{"$f":"'BNB-System'!D247","v":25},null,{"$f":"'Bewertung durch Anwender'!G251","v":0},{"$f":"'Bewertung durch Anwender'!N251","v":0}]
[null,null,{"$f":"'BNB-System'!C248","v":"Pflege und Erhaltungszustand"},{"$f":"'BNB-System'!D248","v":25},null,{"$f":"'Bewertung durch Anwender'!G252","v":0},{"$f":"'Bewertung durch Anwender'!N252","v":0}]
[null,{"$f":"'BNB-System'!B249","v":" 6.1.4"},{"$f":"'BNB-System'!C249","v":"Verkehrsanbindung"},{"$f":"'BNB-System'!D249","v":100},{"$f":"'BNB-System'!G249","v":0.23076923076923078},{"$f":"'Bewertung durch Anwender'!G253","v":0},{"$f":"'Bewertung durch Anwender'!N253","v":0},{"$f":"SUM(H254:H256)","v":0},null,null,null,{"$f":"'BNB-System'!H249","v":300}]
[null,null,{"$f":"'BNB-System'!C250","v":"Erreichbarkeit Haupt-/ Fernbahnhof"},{"$f":"'BNB-System'!D250","v":30},null,{"$f":"'Bewertung durch Anwender'!G254","v":0},{"$f":"'Bewertung durch Anwender'!N254","v":0}]
[null,null,{"$f":"'BNB-System'!C251","v":"Erreichbarkeit ÖPNV"},{"$f":"'BNB-System'!D251","v":30},null,{"$f":"'Bewertung durch Anwender'!G255","v":0},{"$f":"'Bewertung durch Anwender'!N255","v":0}]
[null,null,{"$f":"'BNB-System'!C252","v":"Fuß- und Radwege"},{"$f":"'BNB-System'!D252","v":40},null,{"$f":"'Bewertung durch Anwender'!G256","v":0},{"$f":"'Bewertung durch Anwender'!N256","v":0}]
[null,{"$f":"'BNB-System'!B253","v":" 6.1.5"},{"$f":"'BNB-System'!C253","v":"Nähe zu nutzungsrelevanten Einrichtungen"},{"$f":"'BNB-System'!D253","v":100},{"$f":"'BNB-System'!G253","v":0.15384615384615385},{"$f":"'Bewertung durch Anwender'!G257","v":0},{"$f":"'Bewertung durch Anwender'!N257","v":0},{"$f":"SUM(H258:H266)","v":0},null,null,null,{"$f":"'BNB-System'!H253","v":200}]
[null,null,{"$f":"'BNB-System'!C254","v":"Gastronomie"},{"$f":"'BNB-System'!D254","v":10},null,{"$f":"'Bewertung durch Anwender'!G258","v":0},{"$f":"'Bewertung durch Anwender'!N258","v":0}]
[null,null,{"$f":"'BNB-System'!C255","v":"Nahversorgung"},{"$f":"'BNB-System'!D255","v":10},null,{"$f":"'Bewertung durch Anwender'!G259","v":0},{"$f":"'Bewertung durch Anwender'!N259","v":0}]
[null,null,{"$f":"'BNB-System'!C256","v":"Parkanlagen und Freiräume"},{"$f":"'BNB-System'!D256","v":20},null,{"$f":"'Bewertung durch Anwender'!G260","v":0},{"$f":"'Bewertung durch Anwender'!N260","v":0}]
[null,null,{"$f":"'BNB-System'!C257","v":"Bildung"},{"$f":"'BNB-System'!D257","v":10},null,{"$f":"'Bewertung durch Anwender'!G261","v":0},{"$f":"'Bewertung durch Anwender'!N261","v":0}]
[null,null,{"$f":"'BNB-System'!C258","v":"Öffentliche Verwaltung"},{"$f":"'BNB-System'!D258","v":10},null,{"$f":"'Bewertung durch Anwender'!G262","v":0},{"$f":"'Bewertung durch Anwender'!N262","v":0}]
[null,null,{"$f":"'BNB-System'!C259","v":"Medizinische Versorgung"},{"$f":"'BNB-System'!D259","v":10},null,{"$f":"'Bewertung durch Anwender'!G263","v":0},{"$f":"'Bewertung durch Anwender'!N263","v":0}]
[null,null,{"$f":"'BNB-System'!C260","v":"Sportstätten"},{"$f":"'BNB-System'!D260","v":10},null,{"$f":"'Bewertung durch Anwender'!G264","v":0},{"$f":"'Bewertung durch Anwender'!N264","v":0}]
[null,null,{"$f":"'BNB-System'!C261","v":"Freizeit"},{"$f":"'BNB-System'!D261","v":10},null,{"$f":"'Bewertung durch Anwender'!G265","v":0},{"$f":"'Bewertung durch Anwender'!N265","v":0}]
[null,null,{"$f":"'BNB-System'!C262","v":"Dienstleister"},{"$f":"'BNB-System'!D262","v":10},null,{"$f":"'Bewertung durch Anwender'!G266","v":0},{"$f":"'Bewertung durch Anwender'!N266","v":0}]
[null,{"$f":"'BNB-System'!B263","v":" 6.1.6"},{"$f":"'BNB-System'!C263","v":"Anliegende Medien / Erschließung"},{"$f":"'BNB-System'!D263","v":100},{"$f":"'BNB-System'!G263","v":0.15384615384615385},{"$f":"'Bewertung durch Anwender'!G267","v":0},{"$f":"'Bewertung durch Anwender'!N267","v":0},{"$f":"SUM(H268:H271)","v":0},null,null,null,{"$f":"'BNB-System'!H263","v":200}]
[null,null,{"$f":"'BNB-System'!C264","v":"Leitungsgebundene Energie"},{"$f":"'BNB-System'!D264","v":25},null,{"$f":"'Bewertung durch Anwender'!G268","v":0},{"$f":"'Bewertung durch Anwender'!N268","v":0}]
[null,null,{"$f":"'BNB-System'!C265","v":"Solarenergie"},{"$f":"'BNB-System'!D265","v":25},null,{"$f":"'Bewertung durch Anwender'!G269","v":0},{"$f":"'Bewertung durch Anwender'!N269","v":0}]
[null,null,{"$f":"'BNB-System'!C266","v":"Breitband-Anschluss"},{"$f":"'BNB-System'!D266","v":25},null,{"$f":"'Bewertung durch Anwender'!G270","v":0},{"$f":"'Bewertung durch Anwender'!N270","v":0}]
[null,null,{"$f":"'BNB-System'!C267","v":"Regenwasserversickerung"},{"$f":"'BNB-System'!D267","v":25},null,{"$f":"'Bewertung durch Anwender'!G271","v":0},{"$f":"'Bewertung durch Anwender'!N271","v":0}]

{"sheet":"BNB-System","index":4,"n_rows":267,"n_cols":8,"rows_kept":267,"cut":false,"hidden":true,"merged":[]}
[null,"Projekt:"]
[null,"Bewertungssystem Nachhaltiges Bauen (BNB)"]
[null,"Systemvariante Laborgebäude, Modul Neubau (BNB_LN) - Version 2020"]
[null,null,"Nachhaltigkeitskriterien","Zielwert\nmax. Punktzahl","Punktzahl","Bedeutungs-faktor","Gewichtung\nGesamt-bewertung","Zielwert"]
[]
[null,"Ökologische Qualität",null,null,null,null,0.22500000000000001,{"$f":"SUM(H9:H22)","v":1600}]
[]
[null,null,"Wirkungen auf die globale und lokale  Umwelt"]
[null," 1.1.1","Treibhauspotenzial (GWP)",100,null,3,{"$f":"H9/$H6*G6","v":4.2187500000000003E-2},{"$f":"D9*F9","v":300}]
[null," 1.1.2","Ozonschichtabbaupotenzial (ODP)",100,null,1,{"$f":"H10/H6*G6","v":1.40625E-2},100]
[null," 1.1.3","Ozonbildungspotenzial (POCP)",100,null,1,{"$f":"H11/H6*G6","v":1.40625E-2},100]
[null," 1.1.4","Versauerungspotenzial (AP)",100,null,1,{"$f":"H12/H6*G6","v":1.40625E-2},100]
[null," 1.1.5","Überdüngungspotenzial (EP)",100,null,1,{"$f":"H13/H6*G6","v":1.40625E-2},100]
[null," 1.1.6","Risiken für die lokale Umwelt",100,null,3,{"$f":"H14/H6*G6","v":4.2187500000000003E-2},300]
[null," 1.1.7","Nachhaltige Materialgewinnung / Biodiversität",100,null,1,{"$f":"H15/H6*G6","v":1.40625E-2},100]
[null,null,"Ressourceninanspruchnahme"]
[null," 1.2.1","Primärenergiebedarf",100,{"$f":"IF(SUM(E18:E20)>100,100,SUM(E18:E20))","v":0},3,{"$f":"H17/$H6*G6","v":4.2187500000000003E-2},{"$f":"D17*F17","v":300}]
[null,null,"Primärenergiebedarf nicht erneuerbar (PEne)",60]
[null,null,"Gesamtprimärenergiebedarf (PEges)",40]
[null,null,"Anteil erneuerbarer Primärenergie",20]
[null," 1.2.3","Trinkwasserbedarf und Abwasseraufkommen",100,null,1,{"$f":"H21/$H$6*$G$6","v":1.40625E-2},{"$f":"D21*F21","v":100}]
[null," 1.2.4","Flächeninanspruchnahme",100,null,1,{"$f":"H22/$H$6*$G$6","v":1.40625E-2},{"$f":"D22*F22","v":100}]
[]
[null,"Ökonomische Qualität",null,null,null,null,0.22500000000000001,{"$f":"SUM(H27:H42)","v":600}]
[]
[null,null,"Lebenszykluskosten"]
[null," 2.1.1","Gebäudebezogene Kosten im Lebenszyklus",100,null,3,{"$f":"H27/$H24*G24","v":0.1125},{"$f":"D27*F27","v":300}]
[null,null,"Wirtschaftlichkeit und Wertstabilität"]
[null," 2.2.1","Flächeneffizienz",100,null,1,{"$f":"H29/$H$24*$G$24","v":3.7499999999999999E-2},{"$f":"D29*F29","v":100}]
[null," 2.2.2","Anpassungsfähigkeit ",100,{"$f":"IF(SUM(E31:E42)>100,100,SUM(E31:E42))","v":0},2,{"$f":"H30/$H$24*$G$24","v":7.4999999999999997E-2},{"$f":"D30*F30","v":200}]
[null,null,"Raumhöhe",8]
[null,null,"Grundrissorganisation"]
[null,null,"Positionierung der Erschließung",5]
[null,null,"Rettungswege",2]
[null,null,"sanitäre Anlagen",2]
[null,null,"Konstruktion"]
[null,null,"Anteil nicht tragender Innenwände",5]
[null,null,"Anschluss von Trennwänden an der Fassadenachse",1]
[null,null,"kein Eingriff von Trennwänden in Fußboden, Decke, Abhangdecke",1]
[null,null,"zulässige Nutzlasten",1]
[null,null,"Technische Ausstattung"]
[null,null,"Technische Ausstattung",75]
[]
[null,"Soziokulturelle und funktionale Qualität",null,null,null,null,0.22500000000000001,{"$f":"SUM(H47:H148)","v":1800}]
[]
[null,null,"Gesundheit, Behaglichkeit und Nutzerzufriedenheit"]
[null," 3.1.1","Thermischer Komfort",100,{"$f":"IF(SUM(E49:E57)>100,100,SUM(E49:E57))","v":0},2,{"$f":"H47/$H$44*$G$44","v":2.4999999999999998E-2},{"$f":"D47*F47","v":200}]
[null,null,"Winter"]
[null,null,"Operative Temperatur",10]
[null,null," Zugluft",10]
[null,null,"Stahlungstemperaturasymmetrie und Fußbodentemperatur",10]
[null,null,"Luftfeuchte",10]
[null,null,"Sommer"]
[null,null,"Operative Temperatur",30]
[null,null," Zugluft",10]
[null,null,"Stahlungstemperaturasymmetrie und Fußbodentemperatur",10]
[null,null,"Luftfeuchte",10]
[null," 3.1.3","Innenraumlufthygiene",100,{"$f":"IF(SUM(E59:E60)>100,100,SUM(E59:E60))","v":0},2,{"$f":"H58/$H$44*$G$44","v":2.4999999999999998E-2},{"$f":"D58*F58","v":200}]
[null,null,"Flüchtige organische Stoffe (VOC) und Formaldehyd",50]
[null,null,"Kohlendioxidgehalt",50]
[null," 3.1.4","Akustischer Komfort",100,{"$f":"IF(IF(ISNUMBER(ROUND(E63/(E63+E65+E67+#REF!)*E62+E65/(E63+E65+E67+#REF!)*E64+E67/(E63+E65+E67+#REF!)*E66+#REF!/(E63+E65+E67+#REF!)*#REF!,1)),ROUND(E63/(E63+E65+E67+#REF!)*E62+E65/(E63+E65+E67+#REF!)*E64+E67/(E63+E65+E67+#REF!)*E66+#REF!/(E63+E65+E67+#REF!)*#REF!,1),0)>100,100,IF(ISNUMBER(ROUND(E63/(E63+E65+E67+#REF!)*E62+E65/(E63+E65+E67+#REF!)*E64+E67/(E63+E65+E67+#REF!)*E66+#REF!/(E63+E65+E67+#REF!)*#REF!,1)),ROUND(E63/(E63+E65+E67+#REF!)*E62+E65/(E63+E65+E67+#REF!)*E64+E67/(E63+E65+E67+#REF!)*E66+#REF!/(E63+E65+E67+#REF!)*#REF!,1),0))","v":0},1,{"$f":"H61/$H$44*$G$44","v":1.2499999999999999E-2},{"$f":"D61*F61","v":100}]
[null,null,"Einzel- und Mehrpersonenbüros bis 100 m²",100]
[null,null,"NF Einzel- und Mehrpersonenbüros bis 100 m² "]
[null,null,"Mehrpersonenbüros über 100 m²",100]
[null,null,"NF Mehrpersonenbüros über 100m²"]
[null,null,"Weitere Räume über geringere (Gesprächs-)Entfernung (außer Büros)",100]
[null,null,"NF weiterer Räume"]
[null,null,"Punktabzug"]
[null," 3.1.5","Visueller Komfort",100,{"$f":"IF(SUM(E70:E76)>100,100,SUM(E70:E76))","v":0},2,{"$f":"H69/$H$44*$G$44","v":2.4999999999999998E-2},{"$f":"D69*F69","v":200}]
[null,null,"Tageslichtverfügbarkeit Gesamtgebäude",15]
[null,null,"Tageslichtverfügbarkeit ständige Arbeitsplätze",15]
[null,null,"Nachweis der Sichtverbindung nach außen",25]
[null,null,"Blendfreiheit Tageslicht",12]
[null,null,"Blendfreiheit  Kunstlicht",9]
[null,null,"Lichtverteilung",12]
[null,null,"Farbwiedergabe",12]
[null," 3.1.6","Einflussnahmemöglichkeiten durch Nutzer",100,{"$f":"IF(SUM(E78:E85)>100,100,SUM(E78:E85))","v":0},1,{"$f":"H77/$H$44*$G$44","v":1.2499999999999999E-2},{"$f":"D77*F77","v":100}]
[null,null,"Lüftung",10]
[null,null,"Sonnenschutz",10]
[null,null,"Blendschutz",10]
[null,null,"Temperaturen während der Heizperiode",10]
[null,null,"Temperaturen außerhalb der Heizperiode",15]
[null,null,"Steuerung von Tageslicht",15]
[null,null,"Steuerung von  Kunstlicht",15]
[null,null,"Bedienfreundlichkeit",15]
[null," 3.1.7","Aufenthaltsqualitäten",100,{"$f":"IF(SUM(E87:E99)>100,100,SUM(E87:E99))","v":0},1,{"$f":"H86/$H$44*$G$44","v":1.2499999999999999E-2},{"$f":"D86*F86","v":100}]
[null,null,"Anzahl der Aufenthaltsbereiche im Gebäude",10]
[null,null,"Anzahl der Aufenthaltsbereiche im Außenraum",10]
[null,null,"Anzahl der Sitzmöglichkeiten in diesen Bereichen",40]
[null,null,"uneingeschränkte Nutzbarkeit der Erschließungsflächen als Aufenthaltsflächen",10]
[null,null,"Sichtbeziehungen",10]
[null,null,"Außenbezug",10]
[null,null,"Ausstattungsqualität der Aufenthaltsbereiche im Außenraum"]
[null,null,"Beleuchtung",2]
[null,null,"Windschutz",2]
[null,null,"Überdachung / Regenschutz",2]
[null,null,"Sonnenschutz",2]
[null,null,"Stromversorgung für Außenarbeitsplätze",1]
[null,null,"Bepflanzung / Begrünung",1]
[null," 3.1.8","Sicherheit",100,{"$f":"IF(SUM(E101:E108)>100,100,SUM(E101:E108))","v":0},2,{"$f":"H100/$H$44*$G$44","v":2.4999999999999998E-2},{"$f":"D100*F100","v":200}]
[null,null,"Übersichtliche Wegführungen",40]
[null,null,"Stellplätze",8]
[null,null,"Sicherheitsbereiche",8]
[null,null,"Beleuchtung Wege",12]
[null,null,"Beleuchtung Stellplätze",8]
[null,null,"Beleuchtung Sicherheits- und Gefahrenbereiche",8]
[null,null,"Technische Sicherheitseinrichtungen",8]
[null,null,"Reduktion von Brandgasrisiken",8]
[null,null,"Funktionalität"]
[null," 3.2.1","Barrierefreiheit",100,null,2,{"$f":"H110/$H$44*$G$44","v":2.4999999999999998E-2},{"$f":"D110*F110","v":200}]
[null," 3.2.4","Zugänglichkeit",{"$f":"IF(SUM(D112:D114)>100,100,SUM(D112:D114))","v":100},{"$f":"IF(SUM(E112:E114)>100,100,SUM(E112:E114))","v":0},1,{"$f":"H111/$H$44*$G$44","v":1.2499999999999999E-2},{"$f":"D111*F111","v":100}]
[null,null,"Grundsätzliche Zugänglichkeit des Gebäudes",35]
[null,null,"Öffnung der Außenanlagen für die Öffentlichkeit",35]
[null,null,"Öffnung gebäudeinterner Einrichtungen für die Öffentlichkeit",30]
[null," 3.2.5","Mobilitätsinfrastruktur",{"$f":"IF(SUM(D116:D134)>100,100,SUM(D116:D134))","v":100},{"$f":"IF(SUM(E116:E134)>100,100,SUM(E116:E134))","v":0},1,{"$f":"H115/$H$44*$G$44","v":1.2499999999999999E-2},{"$f":"D115*F115","v":100}]
[null,null,"Anzahl der Fahrradstellplätze"]
[null,null,"1 Fahrradstellplatz / 40 m²NF oder 1 Fahrradstellplatz / 3 Nutzer",40]
[null,null,"1 Fahrradstellplatz / 80m²NF oder 1 Fahrradstellplatz / 6 Nutzer",30]
[null,null,"1 Fahrradstellplatz / 120m²NF oder 1 Fahrradstellplatz / 9 Nutzer",20]
[null,null,"1 Fahrradstellplatz / 160m²NF oder 1 Fahrradstellplatz / 12 Nutzer",10]
[null,null,"Anzahl der Lademöglichkeiten und Carsharing-Stellplätze"]
[null,null,"Lademögl. für E-Räder für 10 % der Rad-Stellplätze (mind. 2) vorhanden",10]
[null,null,"Lademögl. für E-Pkw für 5 % der Pkw-Stellplätze (mind. 1) vorhanden",5]
[null,null,"Carsharing-Stellplatz ist öffentlich zugänglich auf Grundstück vorhanden",5]
[null,null,"Qualitative Anforderungen an Fahrradstellplätze"]
[null,null," Anordnungsprinzipien und Abstände",10]
[null,null,"Position der Fahrradstellplätze für Besucher",5]
[null,null,"Position der Fahrradstellplätze für Nutzer",5]
[null,null,"Witterungsgeschutz",10]
[null,null,"Beleuchtung",10]
[null,null,"Diebstahlgesicherter Bereich",5]
[null,null,"Fläche mit Ausstattung  für Wartungsarbeiten",5]
[null,null,"Duschen und Umkleiden",5]
[null,null,"Trocknungsmöglichkeiten",5]
[null,null,"Sicherung der Gestaltungsqualität"]
[null," 3.3.1","Gestalterische und städtebauliche Qualität",{"$f":"IF(SUM(D137:D143)>100,100,SUM(D137:D143))","v":100},{"$f":"IF(AND(E137>0,E141<=E142),SUM(E137:E140),IF(AND(E137>0,E142<=E141),SUM(E137:E140),IF(E141>0,E141,IF(E142>0,E142,E143))))","v":0},2,{"$f":"H136/$H$44*$G$44","v":2.4999999999999998E-2},{"$f":"D136*F136","v":200}]
[null,null,"Durchführung von Planungswettbewerben",20]
[null,null,"Wettbewerbsverfahren",40]
[null,null,"Ausführung des Entwurfs eines der Preisträger",30]
[null,null,"Beauftragung des Planungsteams",10]
[null,null,"Auszeichnung mit einem Architekturpreis",60]
[null,null,"Unabhängiges Expertengremium",40]
[null,null,"Sonderfall Mindestanforderung",10]
[null," 3.3.2","Kunst am Bau ",{"$f":"IF(SUM(D145:D148)>100,100,SUM(D145:D148))","v":100},{"$f":"IF(SUM(E145:E148)>100,100,SUM(E145:E148))","v":0},1,{"$f":"H144/$H$44*$G$44","v":1.2499999999999999E-2},{"$f":"D144*F144","v":100}]
[null,null,"Mindestanforderung",10]
[null,null,"Bereitstellung von Mitteln im Rahmen der Bauaufgabe",30]
[null,null,"Umsetzung des BMVBS-Leitfadens Kunst am Bau",40]
[null,null,"Öffentlichkeitsarbeit, Rezeption  der Kunst am Bau",20]
[]
[null,"Technische Qualität",null,null,null,null,0.22500000000000001,{"$f":"SUM(H153:H178)","v":1100}]
[]
[null,null,"technische Ausführung"]
[null," 4.1.1","Schallschutz ",{"$f":"IF(SUM(D154:D157)>100,100,SUM(D154:D157))","v":100},{"$f":"IF(SUM(E154:E157)>100,100,SUM(E154:E157))","v":0},1,{"$f":"H153/$H$150*$G$150","v":2.0454545454545454E-2},{"$f":"D153*F153","v":100}]
[null,null,"Luftschallschutz gegen Außenlärm",20]
[null,null,"Luftschallschutz im Gebäudeinneren",30]
[null,null,"Trittschallschutz gegenüber fremden und eigenen Arbeitsbereichen",30]
[null,null,"Schallschutz gegenüber haustechnischen Anlagen",20]
[null," 4.1.2","Wärme- und Tauwasserschutz ",{"$f":"IF(SUM(D159:D164)>100,100,SUM(D159:D164))","v":100},{"$f":"IF(SUM(E159:E160)>100,100,SUM(E159:E160))","v":0},1,{"$f":"H158/$H$150*$G$150","v":2.0454545454545454E-2},{"$f":"D158*F158","v":100}]
[null,null,"Mittlere Wärmeduchgangskoeffizienten",30]
[null,null,"Wärmebrückenzuschlag",15]
[null,null,"Klassen der Luftdurchlässigkeit (Fugendurchlässigkeit)",15]
[null,null,"Tauwasserbildung",10]
[null,null,"Luftwechsel",15]
[null,null,"Sonneneintragswert",15]
[null," 4.1.3","Reinigungs- und Instandhaltungsfreundlichkeit",{"$f":"IF(SUM(D166:D174)>100,100,SUM(D166:D174))","v":100},{"$f":"IF(SUM(E166:E174)>100,100,SUM(E166:E174))","v":0},2,{"$f":"H165/$H$150*$G$150","v":4.0909090909090909E-2},{"$f":"D165*F165","v":200}]
[null,null,"Tragkonstruktion",15]
[null,null,"Zugänglichkeit der Außenglasflächen",15]
[null,null,"Außenbauteile",9]
[null,null,"Bodenbelag",9]
[null,null,"Schmutzfangzone",9]
[null,null,"Fußbodenleisten",9]
[null,null,"Hindernisfreie Grundrissgestaltung",9]
[null,null,"Einbauten",10]
[null,null,"Zugänglichkeit der Innenglasflächen ",15]
[null," 4.1.4","Rückbau, Trennung und Verwertung",100,null,1,{"$f":"H175/$H$150*$G$150","v":2.0454545454545454E-2},{"$f":"D175*F175","v":100}]
[null," 4.1.5","Widerstandsfähigkeit gegen Naturgefahren",100,null,1,{"$f":"H176/$H$150*$G$150","v":2.0454545454545454E-2},{"$f":"D176*F176","v":100}]
[null," 4.1.6","Bedienungs- und Instandhaltungsfreundlichkeit der TGA",100,null,2,{"$f":"H177/$H$150*$G$150","v":4.0909090909090909E-2},{"$f":"D177*F177","v":200}]
[null," 4.1.7","Systemqualität der TGA",100,null,3,{"$f":"H178/$H$150*$G$150","v":6.1363636363636363E-2},{"$f":"D178*F178","v":300}]
[]
[null,"Prozessqualität",null,null,null,null,0.1,{"$f":"SUM(H183:H225)","v":2100}]
[]
[null,null,"Planung"]
[null," 5.1.1","Projektvorbereitung",{"$f":"IF(SUM(D184:D186)>100,100,SUM(D184:D186))","v":100},{"$f":"IF(SUM(E184:E186)>100,100,SUM(E184:E186))","v":0},3,{"$f":"H183/$H$180*$G$180","v":1.4285714285714285E-2},{"$f":"D183*F183","v":300}]
[null,null,"Bedarfsplanung oder vergleichbare Planung",35]
[null,null,"Zielvereinbarung",35]
[null,null,"Architektenwettbewerb",30]
[null," 5.1.2","Integrale Planung",{"$f":"IF(SUM(D188:D192)>100,100,SUM(D188:D192))","v":100},{"$f":"IF(SUM(E188:E192)>100,100,SUM(E188:E192))","v":0},3,{"$f":"H187/$H$180*$G$180","v":1.4285714285714285E-2},{"$f":"D187*F187","v":300}]
[null,null,"Interdisziplinäres Projektteam",30]
[null,null,"Qualifikation des Projektteams",20]
[null,null,"Integraler Planungsprozess",20]
[null,null,"Nutzerbeteiligung",20]
[null,null,"Öffentlichkeitsbeteiligung",10]
[null," 5.1.3","Komplexität und Optimierung der Planung",{"$f":"IF(SUM(D194:D208)>100,100,SUM(D194:D208))","v":100},{"$f":"IF(SUM(E194:E208)>100,100,SUM(E194:E208))","v":0},3,{"$f":"H193/$H$180*$G$180","v":1.4285714285714285E-2},{"$f":"D193*F193","v":300}]
[null,null,"SiGe-Plan",10]
[null,null,"Ver- und Entsiegelungskonzept",10]
[null,null,"Energiekonzept",15]
[null,null,"Mess- und Monitoringkonzept",15]
[null,null,"Wasserkonzept",20]
[null,null,"Konzept zur Vermeid. von Umwelt- & Gesundheitsrisiken aus Bauprod.",10]
[null,null,"Lüftungskonzept",10]
[null,null,"Abfallkonzept / Wertstoffkonzept",5]
[null,null,"Tages- / Kunstlichtoptimierung",10]
[null,null,"Konzept zur Sicherung der Reinigungs- & Instandhaltungsfreundlichk.",10]
[null,null,"Anpassbarkeits-, Rückbau- und Recyclingkonzept",10]
[null,null,"Konzept zur Vermeidung und Beherrschung von Risiken",10]
[null,null,"Sonstige Konzepte zum Nachhaltigen Bauen",10]
[null,null,"Prüfung der Planungsunterlagen durch unabhängige Dritte",5]
[null,null,"Durchführung von Variantenvergleichen",10]
[null," 5.1.4","Ausschreibung und Vergabe",100,null,2,{"$f":"H209/$H$180*$G$180","v":9.5238095238095247E-3},{"$f":"D209*F209","v":200}]
[null," 5.1.5","Voraussetzungen für eine optimale Bewirtschaftung",{"$f":"IF(SUM(D211:D215)>100,100,SUM(D211:D215))","v":100},{"$f":"IF(SUM(E211:E215)>100,100,SUM(E211:E215))","v":0},2,{"$f":"H210/$H$180*$G$180","v":9.5238095238095247E-3},{"$f":"D210*F210","v":200}]
[null,null,"Erstellung einer Gebäudeakte / Objektdokumentation",20]
[null,null,"Erstellung von Wartungs-, Inspektions-, Betriebs-, Pflegeanleitungen",20]
[null,null,"Anpassung der Pläne und Berechnungen an das realisierte Gebäude",20]
[null,null,"Erstellung eines Nutzerhandbuches",20]
[null,null,"Nutzereinweisung",20]
[null,null,"Bauausführung"]
[null," 5.2.1","Baustelle / Bauprozess",{"$f":"IF(SUM(D218:D221)>100,100,SUM(D218:D221))","v":100},{"$f":"IF(SUM(E218:E221)>100,100,SUM(E218:E221))","v":0},2,{"$f":"H217/$H$180*$G$180","v":9.5238095238095247E-3},{"$f":"D217*F217","v":200}]
[null,null,"Wertstoffoptimierte Baustelle",25]
[null,null,"Lärmarme Baustelle",25]
[null,null,"Staubarme Baustelle",25]
[null,null,"Bodenschutz auf der Baustelle",25]
[null," 5.2.2","Qualitätssicherung der Bauausführung",{"$f":"IF(SUM(D223:D225)>100,100,SUM(D223:D225))","v":100},{"$f":"IF(SUM(E223:E224)>100,100,SUM(E223:E224))","v":0},3,{"$f":"H222/$H$180*$G$180","v":1.4285714285714285E-2},{"$f":"D222*F222","v":300}]
[null,null,"Dokumentation",50]
[null,null,"Messungen zur Qualitätskontrolle",50]
[null," 5.2.3","Systematische Inbetriebnahme",100,null,3,{"$f":"H225/$H$180*$G$180","v":1.4285714285714285E-2},{"$f":"D225*F225","v":300}]
[]
[]
[null,"Standortmerkmale",null,null,null,null,1,{"$f":"SUM(H231:H263)","v":1300}]
[]
[null,null,"Standortmerkmale"]
[null," 6.1.1","Risiken am Mikrostandort",100,null,2,{"$f":"H231/$H$228*$G$228","v":0.15384615384615385},{"$f":"D231*F231","v":200}]
[null,null,"Risiken aus Man-Made-Hazards (Unfälle)",20]
[null,null,"Risiken aus Erdbeben",20]
[null,null,"Risiken aus Lawinen",20]
[null,null,"Risiken aus Sturm",20]
[null,null,"Risiken aus Hochwasser",20]
[null," 6.1.2","Verhältnisse am Mikrostandort",100,null,2,0.15384615384615385,200]
[null,null,"Außenluftqualität",16]
[null,null,"Außenlärmpegel",20]
[null,null,"Baugrundverhältnisse, Bodenbelastungen",16]
[null,null,"Elektromagnetische Felder",16]
[null,null,"Vorkommen von Radon",16]
[null,null,"Stadt- und Landschaftsbild / Sichtbeziehungen",16]
[null," 6.1.3","Quartiersmerkmale",100,null,2,0.15384615384615385,200]
[null,null,"Image, Attraktivität",25]
[null,null,"Synergie- und Konfliktpotenziale",25]
[null,null,"Kriminalität",25]
[null,null,"Pflege und Erhaltungszustand",25]
[null," 6.1.4","Verkehrsanbindung",100,null,3,0.23076923076923078,300]
[null,null,"Erreichbarkeit Haupt-/ Fernbahnhof",30]
[null,null,"Erreichbarkeit ÖPNV",30]
[null,null,"Fuß- und Radwege",40]
[null," 6.1.5","Nähe zu nutzungsrelevanten Einrichtungen",100,null,2,0.15384615384615385,200]
[null,null,"Gastronomie",10]
[null,null,"Nahversorgung",10]
[null,null,"Parkanlagen und Freiräume",20]
[null,null,"Bildung",10]
[null,null,"Öffentliche Verwaltung",10]
[null,null,"Medizinische Versorgung",10]
[null,null,"Sportstätten",10]
[null,null,"Freizeit",10]
[null,null,"Dienstleister",10]
[null," 6.1.6","Anliegende Medien / Erschließung",100,null,2,0.15384615384615385,200]
[null,null,"Leitungsgebundene Energie",25]
[null,null,"Solarenergie",25]
[null,null,"Breitband-Anschluss",25]
[null,null,"Regenwasserversickerung",25]

{"sheet":"Gültigkeitsliste","index":5,"n_rows":3,"n_cols":1,"rows_kept":3,"cut":false,"hidden":true,"merged":[]}
["Erfüllt / nicht erfüllt"]
["o"]
["x"]

{"sheet":"hilfstabelle","index":6,"n_rows":271,"n_cols":4,"rows_kept":271,"cut":false,"hidden":true,"merged":[[3,0,3,1],[3,3,4,3]]}
[]
[]
[]
["Eingereichte \nEndbewertung",null,"Bemerkung Konformitätsprüfung \n\nPrüfung vom:","Bearbeiter"]
["Anwender","Konformitätsprüfung",{"$f":"TODAY()","v":"2021-01-14"}]
[]
[{"$f":"Konformitätsprüfung!$G7","v":0},{"$f":"B10+B28+B48+B154+B184","v":0}]
[]
[]
[{"$f":"Konformitätsprüfung!$G10","v":0},{"$f":"B13*($E$13/100)+B14*($E$14/100)+B15*($E$15/100)+B16*($E$16/100)+B17*($E$17/100)+B18*($E$18/100)+B19*($E$19/100)+B21*($E$21/100)+B25*($E$25/100)+B26*($E$26/100)","v":0}]
[]
[]
[{"$f":"Konformitätsprüfung!$G13","v":0},{"$f":"Konformitätsprüfung!$H13","v":0}]
[{"$f":"Konformitätsprüfung!$G14","v":0},{"$f":"Konformitätsprüfung!$H14","v":0}]
[{"$f":"Konformitätsprüfung!$G15","v":0},{"$f":"Konformitätsprüfung!$H15","v":0}]
[{"$f":"Konformitätsprüfung!$G16","v":0},{"$f":"Konformitätsprüfung!$H16","v":0}]
[{"$f":"Konformitätsprüfung!$G17","v":0},{"$f":"Konformitätsprüfung!$H17","v":0}]
[{"$f":"Konformitätsprüfung!$G18","v":0},{"$f":"Konformitätsprüfung!$H18","v":0}]
[{"$f":"Konformitätsprüfung!$G19","v":0},{"$f":"Konformitätsprüfung!$H19","v":0}]
[]
[{"$f":"Konformitätsprüfung!$G21","v":0},{"$f":"IF(SUM(B22:B24)>100,100,SUM(B22:B24))","v":0}]
[{"$f":"Konformitätsprüfung!$G22","v":0},{"$f":"Konformitätsprüfung!$H22","v":0}]
[{"$f":"Konformitätsprüfung!$G23","v":0},{"$f":"Konformitätsprüfung!$H23","v":0}]
[{"$f":"Konformitätsprüfung!$G24","v":0},{"$f":"Konformitätsprüfung!$H24","v":0}]
[{"$f":"Konformitätsprüfung!$G25","v":0},{"$f":"Konformitätsprüfung!$H25","v":0}]
[{"$f":"Konformitätsprüfung!$G26","v":0},{"$f":"Konformitätsprüfung!$H26","v":0}]
[]
[{"$f":"Konformitätsprüfung!$G28","v":0},{"$f":"B31*($E$31/100)+B33*($E$33/100)+B34*($E$34/100)","v":0}]
[]
[]
[{"$f":"Konformitätsprüfung!$G31","v":0},{"$f":"Konformitätsprüfung!$H31","v":0}]
[]
[{"$f":"Konformitätsprüfung!$G33","v":0},{"$f":"Konformitätsprüfung!$H33","v":0}]
[{"$f":"Konformitätsprüfung!$G34","v":0},{"$f":"SUM(B35:B46)","v":0}]
[{"$f":"Konformitätsprüfung!$G35","v":0},{"$f":"Konformitätsprüfung!$H35","v":0}]
[{"$f":"Konformitätsprüfung!$G36","v":0},{"$f":"Konformitätsprüfung!$H36","v":0}]
[{"$f":"Konformitätsprüfung!$G37","v":0},{"$f":"Konformitätsprüfung!$H37","v":0}]
[{"$f":"Konformitätsprüfung!$G38","v":0},{"$f":"Konformitätsprüfung!$H38","v":0}]
[{"$f":"Konformitätsprüfung!$G39","v":0},{"$f":"Konformitätsprüfung!$H39","v":0}]
[{"$f":"Konformitätsprüfung!$G40","v":0},{"$f":"Konformitätsprüfung!$H40","v":0}]
[{"$f":"Konformitätsprüfung!$G41","v":0},{"$f":"Konformitätsprüfung!$H41","v":0}]
[{"$f":"Konformitätsprüfung!$G42","v":0},{"$f":"Konformitätsprüfung!$H42","v":0}]
[{"$f":"Konformitätsprüfung!$G43","v":0},{"$f":"Konformitätsprüfung!$H43","v":0}]
[{"$f":"Konformitätsprüfung!$G44","v":0},{"$f":"Konformitätsprüfung!$H44","v":0}]
[{"$f":"Konformitätsprüfung!$G45","v":0},{"$f":"Konformitätsprüfung!$H45","v":0}]
[{"$f":"Konformitätsprüfung!$G46","v":0},{"$f":"Konformitätsprüfung!$H46","v":0}]
[]
[{"$f":"Konformitätsprüfung!$G48","v":0},{"$f":"B51*($E$51/100)+B62*($E$62/100)+B65*($E$65/100)+B73*($E$73/100)+B81*($E$81/100)+B90*($E$90/100)+B104*($E$104/100)+B114*($E$114/100)+B115*($E$115/100)+B119*($E$119/100)+B140*($E$140/100)+B148*($E$148/100)","v":0}]
[]
[]
[{"$f":"Konformitätsprüfung!$G51","v":0},{"$f":"SUM(B52:B61)","v":0}]
[{"$f":"Konformitätsprüfung!$G52","v":0},{"$f":"Konformitätsprüfung!$H52","v":0}]
[{"$f":"Konformitätsprüfung!$G53","v":0},{"$f":"Konformitätsprüfung!$H53","v":0}]
[{"$f":"Konformitätsprüfung!$G54","v":0},{"$f":"Konformitätsprüfung!$H54","v":0}]
[{"$f":"Konformitätsprüfung!$G55","v":0},{"$f":"Konformitätsprüfung!$H55","v":0}]
[{"$f":"Konformitätsprüfung!$G56","v":0},{"$f":"Konformitätsprüfung!$H56","v":0}]
[{"$f":"Konformitätsprüfung!$G57","v":0},{"$f":"Konformitätsprüfung!$H57","v":0}]
[{"$f":"Konformitätsprüfung!$G58","v":0},{"$f":"Konformitätsprüfung!$H58","v":0}]
[{"$f":"Konformitätsprüfung!$G59","v":0},{"$f":"Konformitätsprüfung!$H59","v":0}]
[{"$f":"Konformitätsprüfung!$G60","v":0},{"$f":"Konformitätsprüfung!$H60","v":0}]
[{"$f":"Konformitätsprüfung!$G61","v":0},{"$f":"Konformitätsprüfung!$H61","v":0}]
[{"$f":"Konformitätsprüfung!$G62","v":0},{"$f":"IF(SUM(B63:B64)>100,100,SUM(B63:B65))","v":0}]
[{"$f":"Konformitätsprüfung!$G63","v":0},{"$f":"Konformitätsprüfung!$H63","v":0}]
[{"$f":"Konformitätsprüfung!$G64","v":0},{"$f":"Konformitätsprüfung!$H64","v":0}]
[{"$f":"Konformitätsprüfung!$G65","v":0},{"$f":"SUM(B66:B72)","v":0}]
[{"$f":"Konformitätsprüfung!$G66","v":0},{"$f":"Konformitätsprüfung!$H66","v":0}]
[{"$f":"Konformitätsprüfung!$G67","v":0},{"$f":"Konformitätsprüfung!$H67","v":0}]
[{"$f":"Konformitätsprüfung!$G68","v":0},{"$f":"Konformitätsprüfung!$H68","v":0}]
[{"$f":"Konformitätsprüfung!$G69","v":0},{"$f":"Konformitätsprüfung!$H69","v":0}]
[{"$f":"Konformitätsprüfung!$G70","v":0},{"$f":"Konformitätsprüfung!$H70","v":0}]
[{"$f":"Konformitätsprüfung!$G71","v":0},{"$f":"Konformitätsprüfung!$H71","v":0}]
[{"$f":"Konformitätsprüfung!$G72","v":0},{"$f":"Konformitätsprüfung!$H72","v":0}]
[{"$f":"Konformitätsprüfung!$G73","v":0},{"$f":"SUM(B74:B80)","v":0}]
[{"$f":"Konformitätsprüfung!$G74","v":0},{"$f":"Konformitätsprüfung!$H74","v":0}]
[{"$f":"Konformitätsprüfung!$G75","v":0},{"$f":"Konformitätsprüfung!$H75","v":0}]
[{"$f":"Konformitätsprüfung!$G76","v":0},{"$f":"Konformitätsprüfung!$H76","v":0}]
[{"$f":"Konformitätsprüfung!$G77","v":0},{"$f":"Konformitätsprüfung!$H77","v":0}]
[{"$f":"Konformitätsprüfung!$G78","v":0},{"$f":"Konformitätsprüfung!$H78","v":0}]
[{"$f":"Konformitätsprüfung!$G79","v":0},{"$f":"Konformitätsprüfung!$H79","v":0}]
[{"$f":"Konformitätsprüfung!$G80","v":0},{"$f":"Konformitätsprüfung!$H80","v":0}]
[{"$f":"Konformitätsprüfung!$G81","v":0},{"$f":"SUM(B82:B89)","v":0}]
[{"$f":"Konformitätsprüfung!$G82","v":0},{"$f":"Konformitätsprüfung!$H82","v":0}]
[{"$f":"Konformitätsprüfung!$G83","v":0},{"$f":"Konformitätsprüfung!$H83","v":0}]
[{"$f":"Konformitätsprüfung!$G84","v":0},{"$f":"Konformitätsprüfung!$H84","v":0}]
[{"$f":"Konformitätsprüfung!$G85","v":0},{"$f":"Konformitätsprüfung!$H85","v":0}]
[{"$f":"Konformitätsprüfung!$G86","v":0},{"$f":"Konformitätsprüfung!$H86","v":0}]
[{"$f":"Konformitätsprüfung!$G87","v":0},{"$f":"Konformitätsprüfung!$H87","v":0}]
[{"$f":"Konformitätsprüfung!$G88","v":0},{"$f":"Konformitätsprüfung!$H88","v":0}]
[{"$f":"Konformitätsprüfung!$G89","v":0},{"$f":"Konformitätsprüfung!$H89","v":0}]
[{"$f":"Konformitätsprüfung!$G90","v":0},{"$f":"SUM(B91:B103)","v":0}]
[{"$f":"Konformitätsprüfung!$G91","v":0},{"$f":"Konformitätsprüfung!$H91","v":0}]
[{"$f":"Konformitätsprüfung!$G92","v":0},{"$f":"Konformitätsprüfung!$H92","v":0}]
[{"$f":"Konformitätsprüfung!$G93","v":0},{"$f":"Konformitätsprüfung!$H93","v":0}]
[{"$f":"Konformitätsprüfung!$G94","v":0},{"$f":"Konformitätsprüfung!$H94","v":0}]
[{"$f":"Konformitätsprüfung!$G95","v":0},{"$f":"Konformitätsprüfung!$H95","v":0}]
[{"$f":"Konformitätsprüfung!$G96","v":0},{"$f":"Konformitätsprüfung!$H96","v":0}]
[{"$f":"Konformitätsprüfung!$G97","v":0},{"$f":"Konformitätsprüfung!$H97","v":0}]
[{"$f":"Konformitätsprüfung!$G98","v":0},{"$f":"Konformitätsprüfung!$H98","v":0}]
[{"$f":"Konformitätsprüfung!$G99","v":0},{"$f":"Konformitätsprüfung!$H99","v":0}]
[{"$f":"Konformitätsprüfung!$G100","v":0},{"$f":"Konformitätsprüfung!$H100","v":0}]
[{"$f":"Konformitätsprüfung!$G101","v":0},{"$f":"Konformitätsprüfung!$H101","v":0}]
[{"$f":"Konformitätsprüfung!$G102","v":0},{"$f":"Konformitätsprüfung!$H102","v":0}]
[{"$f":"Konformitätsprüfung!$G103","v":0},{"$f":"Konformitätsprüfung!$H103","v":0}]
[{"$f":"Konformitätsprüfung!$G104","v":0},{"$f":"SUM(B105:B112)","v":0}]
[{"$f":"Konformitätsprüfung!$G105","v":0},{"$f":"Konformitätsprüfung!$H105","v":0}]
[{"$f":"Konformitätsprüfung!$G106","v":0},{"$f":"Konformitätsprüfung!$H106","v":0}]
[{"$f":"Konformitätsprüfung!$G107","v":0},{"$f":"Konformitätsprüfung!$H107","v":0}]
[{"$f":"Konformitätsprüfung!$G108","v":0},{"$f":"Konformitätsprüfung!$H108","v":0}]
[{"$f":"Konformitätsprüfung!$G109","v":0},{"$f":"Konformitätsprüfung!$H109","v":0}]
[{"$f":"Konformitätsprüfung!$G110","v":0},{"$f":"Konformitätsprüfung!$H110","v":0}]
[{"$f":"Konformitätsprüfung!$G111","v":0},{"$f":"Konformitätsprüfung!$H111","v":0}]
[{"$f":"Konformitätsprüfung!$G112","v":0},{"$f":"Konformitätsprüfung!$H112","v":0}]
[]
[{"$f":"Konformitätsprüfung!$G114","v":0},{"$f":"Konformitätsprüfung!$H114","v":0}]
[{"$f":"Konformitätsprüfung!$G115","v":0},{"$f":"SUM(B116:B127)","v":0}]
[{"$f":"Konformitätsprüfung!$G116","v":0},{"$f":"Konformitätsprüfung!$H116","v":0}]
[{"$f":"Konformitätsprüfung!$G117","v":0},{"$f":"Konformitätsprüfung!$H117","v":0}]
[{"$f":"Konformitätsprüfung!$G118","v":0},{"$f":"Konformitätsprüfung!$H118","v":0}]
[{"$f":"Konformitätsprüfung!$G119","v":0},{"$f":"SUM(B120:B138)","v":0}]
[{"$f":"Konformitätsprüfung!$G120","v":0},{"$f":"Konformitätsprüfung!$H120","v":0}]
[{"$f":"Konformitätsprüfung!$G121","v":0},{"$f":"Konformitätsprüfung!$H121","v":0}]
[{"$f":"Konformitätsprüfung!$G122","v":0},{"$f":"Konformitätsprüfung!$H122","v":0}]
[{"$f":"Konformitätsprüfung!$G123","v":0},{"$f":"Konformitätsprüfung!$H123","v":0}]
[{"$f":"Konformitätsprüfung!$G124","v":0},{"$f":"Konformitätsprüfung!$H124","v":0}]
[{"$f":"Konformitätsprüfung!$G125","v":0},{"$f":"Konformitätsprüfung!$H125","v":0}]
[{"$f":"Konformitätsprüfung!$G126","v":0},{"$f":"Konformitätsprüfung!$H126","v":0}]
[{"$f":"Konformitätsprüfung!$G127","v":0},{"$f":"Konformitätsprüfung!$H127","v":0}]
[{"$f":"Konformitätsprüfung!$G128","v":0},{"$f":"Konformitätsprüfung!$H128","v":0}]
[{"$f":"Konformitätsprüfung!$G129","v":0},{"$f":"Konformitätsprüfung!$H129","v":0}]
[{"$f":"Konformitätsprüfung!$G130","v":0},{"$f":"Konformitätsprüfung!$H130","v":0}]
[{"$f":"Konformitätsprüfung!$G131","v":0},{"$f":"Konformitätsprüfung!$H131","v":0}]
[{"$f":"Konformitätsprüfung!$G132","v":0},{"$f":"Konformitätsprüfung!$H132","v":0}]
[{"$f":"Konformitätsprüfung!$G133","v":0},{"$f":"Konformitätsprüfung!$H133","v":0}]
[{"$f":"Konformitätsprüfung!$G134","v":0},{"$f":"Konformitätsprüfung!$H134","v":0}]
[{"$f":"Konformitätsprüfung!$G135","v":0},{"$f":"Konformitätsprüfung!$H135","v":0}]
[{"$f":"Konformitätsprüfung!$G136","v":0},{"$f":"Konformitätsprüfung!$H136","v":0}]
[{"$f":"Konformitätsprüfung!$G137","v":0},{"$f":"Konformitätsprüfung!$H137","v":0}]
[{"$f":"Konformitätsprüfung!$G138","v":0},{"$f":"Konformitätsprüfung!$H138","v":0}]
[]
[{"$f":"Konformitätsprüfung!$G140","v":0},{"$f":"IF(AND(B141>0,B145<=B146),SUM(B141:B144),IF(AND(B141>0,B146<=B145),SUM(B141:B144),IF(B145>0,B145,IF(B146>0,B146,B147))))","v":0}]
[{"$f":"Konformitätsprüfung!$G141","v":0},{"$f":"Konformitätsprüfung!$H141","v":0}]
[{"$f":"Konformitätsprüfung!$G142","v":0},{"$f":"Konformitätsprüfung!$H142","v":0}]
[{"$f":"Konformitätsprüfung!$G143","v":0},{"$f":"Konformitätsprüfung!$H143","v":0}]
[{"$f":"Konformitätsprüfung!$G144","v":0},{"$f":"Konformitätsprüfung!$H144","v":0}]
[{"$f":"Konformitätsprüfung!$G145","v":0},{"$f":"Konformitätsprüfung!$H145","v":0}]
[{"$f":"Konformitätsprüfung!$G146","v":0},{"$f":"Konformitätsprüfung!$H146","v":0}]
[{"$f":"Konformitätsprüfung!$G147","v":0},{"$f":"Konformitätsprüfung!$H147","v":0}]
[{"$f":"Konformitätsprüfung!$G148","v":0},{"$f":"SUM(B149:B152)","v":0}]
[{"$f":"Konformitätsprüfung!$G149","v":0},{"$f":"Konformitätsprüfung!$H149","v":0}]
[{"$f":"Konformitätsprüfung!$G150","v":0},{"$f":"Konformitätsprüfung!$H150","v":0}]
[{"$f":"Konformitätsprüfung!$G151","v":0},{"$f":"Konformitätsprüfung!$H151","v":0}]
[{"$f":"Konformitätsprüfung!$G152","v":0},{"$f":"Konformitätsprüfung!$H152","v":0}]
[]
[{"$f":"Konformitätsprüfung!$G154","v":0},{"$f":"Konformitätsprüfung!$H154","v":0}]
[]
[]
[{"$f":"Konformitätsprüfung!$G157","v":0},{"$f":"SUM(B158:B161)","v":0}]
[{"$f":"Konformitätsprüfung!$G158","v":0},{"$f":"Konformitätsprüfung!$H158","v":0}]
[{"$f":"Konformitätsprüfung!$G159","v":0},{"$f":"Konformitätsprüfung!$H159","v":0}]
[{"$f":"Konformitätsprüfung!$G160","v":0},{"$f":"Konformitätsprüfung!$H160","v":0}]
[{"$f":"Konformitätsprüfung!$G161","v":0},{"$f":"Konformitätsprüfung!$H161","v":0}]
[{"$f":"Konformitätsprüfung!$G162","v":0},{"$f":"SUM(B163:B168)","v":0}]
[{"$f":"Konformitätsprüfung!$G163","v":0},{"$f":"Konformitätsprüfung!$H163","v":0}]
[{"$f":"Konformitätsprüfung!$G164","v":0},{"$f":"Konformitätsprüfung!$H164","v":0}]
[{"$f":"Konformitätsprüfung!$G165","v":0},{"$f":"Konformitätsprüfung!$H165","v":0}]
[{"$f":"Konformitätsprüfung!$G166","v":0},{"$f":"Konformitätsprüfung!$H166","v":0}]
[{"$f":"Konformitätsprüfung!$G167","v":0},{"$f":"Konformitätsprüfung!$H167","v":0}]
[{"$f":"Konformitätsprüfung!$G168","v":0},{"$f":"Konformitätsprüfung!$H168","v":0}]
[{"$f":"Konformitätsprüfung!$G169","v":0},{"$f":"SUM(B170:B178)","v":0}]
[{"$f":"Konformitätsprüfung!$G170","v":0},{"$f":"Konformitätsprüfung!$H170","v":0}]
[{"$f":"Konformitätsprüfung!$G171","v":0},{"$f":"Konformitätsprüfung!$H171","v":0}]
[{"$f":"Konformitätsprüfung!$G172","v":0},{"$f":"Konformitätsprüfung!$H172","v":0}]
[{"$f":"Konformitätsprüfung!$G173","v":0},{"$f":"Konformitätsprüfung!$H173","v":0}]
[{"$f":"Konformitätsprüfung!$G174","v":0},{"$f":"Konformitätsprüfung!$H174","v":0}]
[{"$f":"Konformitätsprüfung!$G175","v":0},{"$f":"Konformitätsprüfung!$H175","v":0}]
[{"$f":"Konformitätsprüfung!$G176","v":0},{"$f":"Konformitätsprüfung!$H176","v":0}]
[{"$f":"Konformitätsprüfung!$G177","v":0},{"$f":"Konformitätsprüfung!$H177","v":0}]
[{"$f":"Konformitätsprüfung!$G178","v":0},{"$f":"Konformitätsprüfung!$H178","v":0}]
[{"$f":"Konformitätsprüfung!$G179","v":0},{"$f":"Konformitätsprüfung!$H179","v":0}]
[{"$f":"Konformitätsprüfung!$G180","v":0},{"$f":"Konformitätsprüfung!$H180","v":0}]
[{"$f":"Konformitätsprüfung!$G181","v":0},{"$f":"Konformitätsprüfung!$H181","v":0}]
[{"$f":"Konformitätsprüfung!$G182","v":0},{"$f":"Konformitätsprüfung!$H182","v":0}]
[]
[{"$f":"Konformitätsprüfung!$G184","v":0},{"$f":"Konformitätsprüfung!$H184","v":0}]
[]
[]
[{"$f":"Konformitätsprüfung!$G187","v":0},{"$f":"SUM(B188:B190)","v":0}]
[{"$f":"Konformitätsprüfung!$G188","v":0},{"$f":"Konformitätsprüfung!$H188","v":0}]
[{"$f":"Konformitätsprüfung!$G189","v":0},{"$f":"Konformitätsprüfung!$H189","v":0}]
[{"$f":"Konformitätsprüfung!$G190","v":0},{"$f":"Konformitätsprüfung!$H190","v":0}]
[{"$f":"Konformitätsprüfung!$G191","v":0},{"$f":"SUM(B192:B196)","v":0}]
[{"$f":"Konformitätsprüfung!$G192","v":0},{"$f":"Konformitätsprüfung!$H192","v":0}]
[{"$f":"Konformitätsprüfung!$G193","v":0},{"$f":"Konformitätsprüfung!$H193","v":0}]
[{"$f":"Konformitätsprüfung!$G194","v":0},{"$f":"Konformitätsprüfung!$H194","v":0}]
[{"$f":"Konformitätsprüfung!$G195","v":0},{"$f":"Konformitätsprüfung!$H195","v":0}]
[{"$f":"Konformitätsprüfung!$G196","v":0},{"$f":"Konformitätsprüfung!$H196","v":0}]
[{"$f":"Konformitätsprüfung!$G197","v":0},{"$f":"SUM(B198:B212)","v":0}]
[{"$f":"Konformitätsprüfung!$G198","v":0},{"$f":"Konformitätsprüfung!$H198","v":0}]
[{"$f":"Konformitätsprüfung!$G199","v":0},{"$f":"Konformitätsprüfung!$H199","v":0}]
[{"$f":"Konformitätsprüfung!$G200","v":0},{"$f":"Konformitätsprüfung!$H200","v":0}]
[{"$f":"Konformitätsprüfung!$G201","v":0},{"$f":"Konformitätsprüfung!$H201","v":0}]
[{"$f":"Konformitätsprüfung!$G202","v":0},{"$f":"Konformitätsprüfung!$H202","v":0}]
[{"$f":"Konformitätsprüfung!$G203","v":0},{"$f":"Konformitätsprüfung!$H203","v":0}]
[{"$f":"Konformitätsprüfung!$G204","v":0},{"$f":"Konformitätsprüfung!$H204","v":0}]
[{"$f":"Konformitätsprüfung!$G205","v":0},{"$f":"Konformitätsprüfung!$H205","v":0}]
[{"$f":"Konformitätsprüfung!$G206","v":0},{"$f":"Konformitätsprüfung!$H206","v":0}]
[{"$f":"Konformitätsprüfung!$G207","v":0},{"$f":"Konformitätsprüfung!$H207","v":0}]
[{"$f":"Konformitätsprüfung!$G208","v":0},{"$f":"Konformitätsprüfung!$H208","v":0}]
[{"$f":"Konformitätsprüfung!$G209","v":0},{"$f":"Konformitätsprüfung!$H209","v":0}]
[{"$f":"Konformitätsprüfung!$G210","v":0},{"$f":"Konformitätsprüfung!$H210","v":0}]
[{"$f":"Konformitätsprüfung!$G211","v":0},{"$f":"Konformitätsprüfung!$H211","v":0}]
[{"$f":"Konformitätsprüfung!$G212","v":0},{"$f":"Konformitätsprüfung!$H212","v":0}]
[{"$f":"Konformitätsprüfung!$G213","v":0},{"$f":"Konformitätsprüfung!$H213","v":0}]
[{"$f":"Konformitätsprüfung!$G214","v":0},{"$f":"SUM(B215:B219)","v":0}]
[{"$f":"Konformitätsprüfung!$G215","v":0},{"$f":"Konformitätsprüfung!$H215","v":0}]
[{"$f":"Konformitätsprüfung!$G216","v":0},{"$f":"Konformitätsprüfung!$H216","v":0}]
[{"$f":"Konformitätsprüfung!$G217","v":0},{"$f":"Konformitätsprüfung!$H217","v":0}]
[{"$f":"Konformitätsprüfung!$G218","v":0},{"$f":"Konformitätsprüfung!$H218","v":0}]
[{"$f":"Konformitätsprüfung!$G219","v":0},{"$f":"Konformitätsprüfung!$H219","v":0}]
[]
[{"$f":"Konformitätsprüfung!$G221","v":0},{"$f":"SUM(B222:B225)","v":0}]
[{"$f":"Konformitätsprüfung!$G222","v":0},{"$f":"Konformitätsprüfung!$H222","v":0}]
[{"$f":"Konformitätsprüfung!$G223","v":0},{"$f":"Konformitätsprüfung!$H223","v":0}]
[{"$f":"Konformitätsprüfung!$G224","v":0},{"$f":"Konformitätsprüfung!$H224","v":0}]
[{"$f":"Konformitätsprüfung!$G225","v":0},{"$f":"Konformitätsprüfung!$H225","v":0}]
[{"$f":"Konformitätsprüfung!$G226","v":0},{"$f":"SUM(B227:B229)","v":0}]
[{"$f":"Konformitätsprüfung!$G227","v":0},{"$f":"Konformitätsprüfung!$H227","v":0}]
[{"$f":"Konformitätsprüfung!$G228","v":0},{"$f":"Konformitätsprüfung!$H228","v":0}]
[{"$f":"Konformitätsprüfung!$G229","v":0},{"$f":"Konformitätsprüfung!$H229","v":0}]
[]
[]
[{"$f":"Konformitätsprüfung!$G232","v":0},{"$f":"Konformitätsprüfung!$H232","v":0}]
[]
[]
[{"$f":"Konformitätsprüfung!$G235","v":0},{"$f":"SUM(B236:B240)","v":0}]
[{"$f":"Konformitätsprüfung!$G236","v":0},{"$f":"Konformitätsprüfung!$H236","v":0}]
[{"$f":"Konformitätsprüfung!$G237","v":0},{"$f":"Konformitätsprüfung!$H237","v":0}]
[{"$f":"Konformitätsprüfung!$G238","v":0},{"$f":"Konformitätsprüfung!$H238","v":0}]
[{"$f":"Konformitätsprüfung!$G239","v":0},{"$f":"Konformitätsprüfung!$H239","v":0}]
[{"$f":"Konformitätsprüfung!$G240","v":0},{"$f":"Konformitätsprüfung!$H240","v":0}]
[{"$f":"Konformitätsprüfung!$G241","v":0},{"$f":"SUM(B242:B247)","v":0}]
[{"$f":"Konformitätsprüfung!$G242","v":0},{"$f":"Konformitätsprüfung!$H242","v":0}]
[{"$f":"Konformitätsprüfung!$G243","v":0},{"$f":"Konformitätsprüfung!$H243","v":0}]
[{"$f":"Konformitätsprüfung!$G244","v":0},{"$f":"Konformitätsprüfung!$H244","v":0}]
[{"$f":"Konformitätsprüfung!$G245","v":0},{"$f":"Konformitätsprüfung!$H245","v":0}]
[{"$f":"Konformitätsprüfung!$G246","v":0},{"$f":"Konformitätsprüfung!$H246","v":0}]
[{"$f":"Konformitätsprüfung!$G247","v":0},{"$f":"Konformitätsprüfung!$H247","v":0}]
[{"$f":"Konformitätsprüfung!$G248","v":0},{"$f":"SUM(B249:B252)","v":0}]
[{"$f":"Konformitätsprüfung!$G249","v":0},{"$f":"Konformitätsprüfung!$H249","v":0}]
[{"$f":"Konformitätsprüfung!$G250","v":0},{"$f":"Konformitätsprüfung!$H250","v":0}]
[{"$f":"Konformitätsprüfung!$G251","v":0},{"$f":"Konformitätsprüfung!$H251","v":0}]
[{"$f":"Konformitätsprüfung!$G252","v":0},{"$f":"Konformitätsprüfung!$H252","v":0}]
[{"$f":"Konformitätsprüfung!$G253","v":0},{"$f":"SUM(B254:B256)","v":0}]
[{"$f":"Konformitätsprüfung!$G254","v":0},{"$f":"Konformitätsprüfung!$H254","v":0}]
[{"$f":"Konformitätsprüfung!$G255","v":0},{"$f":"Konformitätsprüfung!$H255","v":0}]
[{"$f":"Konformitätsprüfung!$G256","v":0},{"$f":"Konformitätsprüfung!$H256","v":0}]
[{"$f":"Konformitätsprüfung!$G257","v":0},{"$f":"SUM(B258:B266)","v":0}]
[{"$f":"Konformitätsprüfung!$G258","v":0},{"$f":"Konformitätsprüfung!$H258","v":0}]
[{"$f":"Konformitätsprüfung!$G259","v":0},{"$f":"Konformitätsprüfung!$H259","v":0}]
[{"$f":"Konformitätsprüfung!$G260","v":0},{"$f":"Konformitätsprüfung!$H260","v":0}]
[{"$f":"Konformitätsprüfung!$G261","v":0},{"$f":"Konformitätsprüfung!$H261","v":0}]
[{"$f":"Konformitätsprüfung!$G262","v":0},{"$f":"Konformitätsprüfung!$H262","v":0}]
[{"$f":"Konformitätsprüfung!$G263","v":0},{"$f":"Konformitätsprüfung!$H263","v":0}]
[{"$f":"Konformitätsprüfung!$G264","v":0},{"$f":"Konformitätsprüfung!$H264","v":0}]
[{"$f":"Konformitätsprüfung!$G265","v":0},{"$f":"Konformitätsprüfung!$H265","v":0}]
[{"$f":"Konformitätsprüfung!$G266","v":0},{"$f":"Konformitätsprüfung!$H266","v":0}]
[{"$f":"Konformitätsprüfung!$G267","v":0},{"$f":"SUM(B268:B271)","v":0}]
[{"$f":"Konformitätsprüfung!$G268","v":0},{"$f":"Konformitätsprüfung!$H268","v":0}]
[{"$f":"Konformitätsprüfung!$G269","v":0},{"$f":"Konformitätsprüfung!$H269","v":0}]
[{"$f":"Konformitätsprüfung!$G270","v":0},{"$f":"Konformitätsprüfung!$H270","v":0}]
[{"$f":"Konformitätsprüfung!$G271","v":0},{"$f":"Konformitätsprüfung!$H271","v":0}]